{"text_format":"1","workbook":"xlsx","n_sheets":36,"sheets":["Suivi Stats Accueil (Séniors A)","Suivi Stats Accueil (Séniors B)","Suivi Stats Accueil (U18)","Suivi Stats Accueil (U11-1)","Suivi Stats Accueil (U11-2)","Suivi Stats Accueil (U9)","Suivi Stats Accueil (U7)","Résultats A","Clst A","Evolution A","Moyenne pts-matches","Répartition 11-12","Répartition Générale","Moyenne par matche","Joueurs A","Forme Buteurs A","Forme Passeurs A","Résultats 2006-2011 - A","Buteurs Club","Passeurs Club","Rapport Buts-Passes","Cartons Jaunes","Cartons Rouges","Coût Sanctions","Résultats B","Clst B","Evolution B","Moyenne pts-matches B","Répartition 11-12 B","Répartition Générale B","Moyenne par matche B","Joueurs B","Forme Buteurs B","Forme Passeurs B","Résultats 2006-2011 B","N°2 - TRP%(fiab)"],"not_rendered":{"charts":1,"images":12,"macros":1,"external_links":4,"defined_names":451,"comments":1,"pivot_tables":0},"unopened":[],"bounds":{"document_bytes":16777216,"sheet_cells":100000,"rows_first":2000,"rows_last":500,"rows_between":2000,"halvings":0,"cell_chars":16384,"cell_head_chars":4096},"cells_cut":0,"cells_raw":0,"read":"whole","date_system":"1900"}

{"sheet":"Suivi Stats Accueil (Séniors A)","index":0,"n_rows":38,"n_cols":30,"rows_kept":38,"cut":false,"hidden":false,"merged":[[38,12,38,14],[38,9,38,11],[38,27,38,29],[38,24,38,26],[38,21,38,23],[38,18,38,20],[38,15,38,17],[0,0,0,38],[1,0,1,38],[2,0,2,38],[4,1,4,4],[4,12,4,14],[4,24,4,26],[10,0,10,38],[6,1,6,4],[6,13,6,16],[6,25,6,28],[37,9,37,29],[12,9,13,29]]}
["ASSOCIATION SPORTIVE DE CERISY GAILLY"]
["SAISON SENIORS 2011-2012"]
["SUIVI STATISTIQUE - SENIORS A & B"]
[]
[null,"Championnats :",null,null,null,"1ère division / 3ème division",null,null,null,null,null,null,"Stade : ",null,null,"rue du marais - 80800 Cerisy",null,null,null,null,null,null,null,null,"Site internet : ",null,null,"as-cerisy.footeo.com"]
[]
[null,"Entraîneur :",null,null,null,"DUPUTEL David",null,null,null,null,null,null,null,"Adjoint : ",null,null,null,"DUBOIS Sébastien",null,null,null,null,null,null,null,"Coach B :",null,null,null,"DEFOSSEZ Martial"]
[null,null,null,null,null,"duputel.david@gmail.com",null,null,null,null,null,null,null,null,null,null,null,"sebastien.dubois@aerolia.com",null,null,null,null,null,null,null,null,null,null,null,"martial.defossez@wanadoo.fr"]
[null,null,null,null,null,"Tél : 03.22.96.00.51 / 06.17.16.09.47",null,null,null,null,null,null,null,null,null,null,null,"Tél : 03.22.05.83.80 / 06.73.82.67.81",null,null,null,null,null,null,null,null,null,null,null,"Tél : 03.22.76.61.50"]
[]
[]
[]
[null,null,null,null,null,null,null,null,null,"L'actualité du week-end"]
[]
[]
[]
[null,null,null,null,null,null,null,null,null,null,null,null,null,null,null,null,null,"Championnat 1ère division - 11ème journée"]
[null,null,null,null,null,null,null,null,null,null,null,null,null,null,null,null,null,"Dimanche 15 janvier - 15h"]
[]
[null,null,null,null,null,null,null,null,null,null,null,null,null,null,null,null,null,"As Cerisy - Sailly Saillisel Us"]
[]
[]
[]
[]
[]
[]
[]
[]
[]
[]
[]
[]
[]
[]
[]
[]
[]
[null,null,null,null,null,null,null,null,null,"CLIQUEZ SUR LA CATEGORIE VOULUE"]

{"sheet":"Suivi Stats Accueil (Séniors B)","index":1,"n_rows":38,"n_cols":30,"rows_kept":38,"cut":false,"hidden":false,"merged":[[0,0,0,38],[1,0,1,38],[2,0,2,38],[4,1,4,4],[4,12,4,14],[4,24,4,26],[38,24,38,26],[38,27,38,29],[6,1,6,4],[6,13,6,16],[6,25,6,28],[10,0,10,38],[12,9,13,29],[37,9,37,29],[38,9,38,11],[38,12,38,14],[38,15,38,17],[38,18,38,20],[38,21,38,23]]}
["ASSOCIATION SPORTIVE DE CERISY GAILLY"]
["SAISON SENIORS 2011-2012"]
["SUIVI STATISTIQUE - SENIORS A & B"]
[]
[null,"Championnats :",null,null,null,"1ère division / 3ème division",null,null,null,null,null,null,"Stade : ",null,null,"rue du marais - 80800 Cerisy",null,null,null,null,null,null,null,null,"Site internet : ",null,null,"as-cerisy.footeo.com"]
[]
[null,"Entraîneur :",null,null,null,"DUPUTEL David",null,null,null,null,null,null,null,"Adjoint : ",null,null,null,"DUBOIS Sébastien",null,null,null,null,null,null,null,"Coach B :",null,null,null,"DEFOSSEZ Martial"]
[null,null,null,null,null,"duputel.david@gmail.com",null,null,null,null,null,null,null,null,null,null,null,"sebastien.dubois@aerolia.com",null,null,null,null,null,null,null,null,null,null,null,"martial.defossez@wanadoo.fr"]
[null,null,null,null,null,"Tél : 03.22.96.00.51 / 06.17.16.09.47",null,null,null,null,null,null,null,null,null,null,null,"Tél : 03.22.05.83.80 / 06.73.82.67.81",null,null,null,null,null,null,null,null,null,null,null,"Tél : 03.22.76.61.50"]
[]
[]
[]
[null,null,null,null,null,null,null,null,null,"L'actualité du week-end"]
[]
[]
[]
[null,null,null,null,null,null,null,null,null,null,null,null,null,null,null,null,null,"Championnat - Journée 11"]
[null,null,null,null,null,null,null,null,null,null,null,null,null,null,null,null,null,"Dimanche 15 janvier - 15h"]
[]
[null,null,null,null,null,null,null,null,null,null,null,null,null,null,null,null,null,"Monchy Ol - Cerisy As 2"]
[]
[]
[]
[]
[]
[]
[]
[]
[]
[]
[]
[]
[]
[]
[]
[]
[]
[null,null,null,null,null,null,null,null,null,"CLIQUEZ SUR LA CATEGORIE VOULUE"]

{"sheet":"Suivi Stats Accueil (U18)","index":2,"n_rows":38,"n_cols":30,"rows_kept":38,"cut":false,"hidden":false,"merged":[[0,0,0,38],[1,0,1,38],[2,0,2,38],[4,1,4,4],[4,12,4,14],[4,24,4,26],[38,24,38,26],[38,27,38,29],[6,1,6,4],[6,13,6,16],[6,25,6,28],[10,0,10,38],[12,9,13,29],[37,9,37,29],[38,9,38,11],[38,12,38,14],[38,15,38,17],[38,18,38,20],[38,21,38,23]]}
["ASSOCIATION SPORTIVE DE CERISY GAILLY"]
["SAISON SENIORS 2011-2012"]
["SUIVI STATISTIQUE - SENIORS A & B"]
[]
[null,"Championnats :",null,null,null,"1ère division / 3ème division",null,null,null,null,null,null,"Stade : ",null,null,"rue du marais - 80800 Cerisy",null,null,null,null,null,null,null,null,"Site internet : ",null,null,"as-cerisy.footeo.com"]
[]
[null,"Entraîneur :",null,null,null,"DUPUTEL David",null,null,null,null,null,null,null,"Adjoint : ",null,null,null,"DUBOIS Sébastien",null,null,null,null,null,null,null,"Coach B :",null,null,null,"DEFOSSEZ Martial"]
[null,null,null,null,null,"duputel.david@gmail.com",null,null,null,null,null,null,null,null,null,null,null,"sebastien.dubois@aerolia.com",null,null,null,null,null,null,null,null,null,null,null,"martial.defossez@wanadoo.fr"]
[null,null,null,null,null,"Tél : 03.22.96.00.51 / 06.17.16.09.47",null,null,null,null,null,null,null,null,null,null,null,"Tél : 03.22.05.83.80 / 06.73.82.67.81",null,null,null,null,null,null,null,null,null,null,null,"Tél : 03.22.76.61.50"]
[]
[]
[]
[null,null,null,null,null,null,null,null,null,"L'actualité du week-end"]
[]
[]
[]
[null,null,null,null,null,null,null,null,null,null,null,null,null,null,null,null,null,"Championnat 1ère Division  - Journée 4"]
[]
[null,null,null,null,null,null,null,null,null,null,null,null,null,null,null,null,null,"Marchelepot - As Cerisy"]
[]
[]
[]
[]
[]
[]
[]
[]
[]
[]
[]
[]
[]
[]
[]
[]
[]
[]
[null,null,null,null,null,null,null,null,null,"CLIQUEZ SUR LA CATEGORIE VOULUE"]

{"sheet":"Suivi Stats Accueil (U11-1)","index":3,"n_rows":38,"n_cols":30,"rows_kept":38,"cut":false,"hidden":false,"merged":[[0,0,0,38],[1,0,1,38],[2,0,2,38],[4,1,4,4],[4,12,4,14],[4,24,4,26],[38,24,38,26],[38,27,38,29],[6,1,6,4],[6,13,6,16],[6,25,6,28],[10,0,10,38],[12,9,13,29],[37,9,37,29],[38,9,38,11],[38,12,38,14],[38,15,38,17],[38,18,38,20],[38,21,38,23]]}
["ASSOCIATION SPORTIVE DE CERISY GAILLY"]
["SAISON SENIORS 2011-2012"]
["SUIVI STATISTIQUE - SENIORS A & B"]
[]
[null,"Championnats :",null,null,null,"1ère division / 3ème division",null,null,null,null,null,null,"Stade : ",null,null,"rue du marais - 80800 Cerisy",null,null,null,null,null,null,null,null,"Site internet : ",null,null,"as-cerisy.footeo.com"]
[]
[null,"Entraîneur :",null,null,null,"DUPUTEL David",null,null,null,null,null,null,null,"Adjoint : ",null,null,null,"DUBOIS Sébastien",null,null,null,null,null,null,null,"Coach B :",null,null,null,"DEFOSSEZ Martial"]
[null,null,null,null,null,"duputel.david@gmail.com",null,null,null,null,null,null,null,null,null,null,null,"sebastien.dubois@aerolia.com",null,null,null,null,null,null,null,null,null,null,null,"martial.defossez@wanadoo.fr"]
[null,null,null,null,null,"Tél : 03.22.96.00.51 / 06.17.16.09.47",null,null,null,null,null,null,null,null,null,null,null,"Tél : 03.22.05.83.80 / 06.73.82.67.81",null,null,null,null,null,null,null,null,null,null,null,"Tél : 03.22.76.61.50"]
[]
[]
[]
[null,null,null,null,null,null,null,null,null,"L'actualité du week-end"]
[]
[]
[]
[null,null,null,null,null,null,null,null,null,null,null,null,null,null,null,null,null,"Plateau Péronne - 10h-12h"]
[]
[null,null,null,null,null,null,null,null,null,null,null,null,null,null,null,null,null,"En salle"]
[]
[]
[]
[]
[]
[]
[]
[]
[]
[]
[]
[]
[]
[]
[]
[]
[]
[]
[null,null,null,null,null,null,null,null,null,"CLIQUEZ SUR LA CATEGORIE VOULUE"]

{"sheet":"Suivi Stats Accueil (U11-2)","index":4,"n_rows":38,"n_cols":30,"rows_kept":38,"cut":false,"hidden":false,"merged":[[0,0,0,38],[1,0,1,38],[2,0,2,38],[4,1,4,4],[4,12,4,14],[4,24,4,26],[38,24,38,26],[38,27,38,29],[6,1,6,4],[6,13,6,16],[6,25,6,28],[10,0,10,38],[12,9,13,29],[37,9,37,29],[38,9,38,11],[38,12,38,14],[38,15,38,17],[38,18,38,20],[38,21,38,23]]}
["ASSOCIATION SPORTIVE DE CERISY GAILLY"]
["SAISON SENIORS 2011-2012"]
["SUIVI STATISTIQUE - SENIORS A & B"]
[]
[null,"Championnats :",null,null,null,"1ère division / 3ème division",null,null,null,null,null,null,"Stade : ",null,null,"rue du marais - 80800 Cerisy",null,null,null,null,null,null,null,null,"Site internet : ",null,null,"as-cerisy.footeo.com"]
[]
[null,"Entraîneur :",null,null,null,"DUPUTEL David",null,null,null,null,null,null,null,"Adjoint : ",null,null,null,"DUBOIS Sébastien",null,null,null,null,null,null,null,"Coach B :",null,null,null,"DEFOSSEZ Martial"]
[null,null,null,null,null,"duputel.david@gmail.com",null,null,null,null,null,null,null,null,null,null,null,"sebastien.dubois@aerolia.com",null,null,null,null,null,null,null,null,null,null,null,"martial.defossez@wanadoo.fr"]
[null,null,null,null,null,"Tél : 03.22.96.00.51 / 06.17.16.09.47",null,null,null,null,null,null,null,null,null,null,null,"Tél : 03.22.05.83.80 / 06.73.82.67.81",null,null,null,null,null,null,null,null,null,null,null,"Tél : 03.22.76.61.50"]
[]
[]
[]
[null,null,null,null,null,null,null,null,null,"L'actualité du week-end"]
[]
[]
[]
[null,null,null,null,null,null,null,null,null,null,null,null,null,null,null,null,"REPRISE SAMEDI 4 SEPTEMBRE A 10H AU STADE DE CERISY"]
[]
[]
[]
[]
[]
[]
[]
[]
[]
[]
[]
[]
[]
[]
[]
[]
[]
[]
[]
[]
[null,null,null,null,null,null,null,null,null,"CLIQUEZ SUR LA CATEGORIE VOULUE"]

{"sheet":"Suivi Stats Accueil (U9)","index":5,"n_rows":38,"n_cols":30,"rows_kept":38,"cut":false,"hidden":false,"merged":[[0,0,0,38],[1,0,1,38],[2,0,2,38],[4,1,4,4],[4,12,4,14],[4,24,4,26],[38,24,38,26],[38,27,38,29],[6,1,6,4],[6,13,6,16],[6,25,6,28],[10,0,10,38],[12,9,13,29],[37,9,37,29],[38,9,38,11],[38,12,38,14],[38,15,38,17],[38,18,38,20],[38,21,38,23]]}
["ASSOCIATION SPORTIVE DE CERISY GAILLY"]
["SAISON SENIORS 2011-2012"]
["SUIVI STATISTIQUE - SENIORS A & B"]
[]
[null,"Championnats :",null,null,null,"1ère division / 3ème division",null,null,null,null,null,null,"Stade : ",null,null,"rue du marais - 80800 Cerisy",null,null,null,null,null,null,null,null,"Site internet : ",null,null,"as-cerisy.footeo.com"]
[]
[null,"Entraîneur :",null,null,null,"DUPUTEL David",null,null,null,null,null,null,null,"Adjoint : ",null,null,null,"DUBOIS Sébastien",null,null,null,null,null,null,null,"Coach B :",null,null,null,"DEFOSSEZ Martial"]
[null,null,null,null,null,"duputel.david@gmail.com",null,null,null,null,null,null,null,null,null,null,null,"sebastien.dubois@aerolia.com",null,null,null,null,null,null,null,null,null,null,null,"martial.defossez@wanadoo.fr"]
[null,null,null,null,null,"Tél : 03.22.96.00.51 / 06.17.16.09.47",null,null,null,null,null,null,null,null,null,null,null,"Tél : 03.22.05.83.80 / 06.73.82.67.81",null,null,null,null,null,null,null,null,null,null,null,"Tél : 03.22.76.61.50"]
[]
[]
[]
[null,null,null,null,null,null,null,null,null,"L'actualité du week-end"]
[]
[]
[]
[null,null,null,null,null,null,null,null,null,null,null,null,null,null,null,null,null,"Plateau Péronne"]
[]
[null,null,null,null,null,null,null,null,null,null,null,null,null,null,null,null,null,"En salle - 15h-17h"]
[]
[]
[]
[]
[]
[]
[]
[]
[]
[]
[]
[]
[]
[]
[]
[]
[]
[]
[null,null,null,null,null,null,null,null,null,"CLIQUEZ SUR LA CATEGORIE VOULUE"]

{"sheet":"Suivi Stats Accueil (U7)","index":6,"n_rows":38,"n_cols":30,"rows_kept":38,"cut":false,"hidden":false,"merged":[[0,0,0,38],[1,0,1,38],[2,0,2,38],[4,1,4,4],[4,12,4,14],[4,24,4,26],[38,24,38,26],[38,27,38,29],[6,1,6,4],[6,13,6,16],[6,25,6,28],[10,0,10,38],[12,9,13,29],[37,9,37,29],[38,9,38,11],[38,12,38,14],[38,15,38,17],[38,18,38,20],[38,21,38,23]]}
["ASSOCIATION SPORTIVE DE CERISY GAILLY"]
["SAISON SENIORS 2011-2012"]
["SUIVI STATISTIQUE - SENIORS A & B"]
[]
[null,"Championnats :",null,null,null,"1ère division / 3ème division",null,null,null,null,null,null,"Stade : ",null,null,"rue du marais - 80800 Cerisy",null,null,null,null,null,null,null,null,"Site internet : ",null,null,"as-cerisy.footeo.com"]
[]
[null,"Entraîneur :",null,null,null,"DUPUTEL David",null,null,null,null,null,null,null,"Adjoint : ",null,null,null,"DUBOIS Sébastien",null,null,null,null,null,null,null,"Coach B :",null,null,null,"DEFOSSEZ Martial"]
[null,null,null,null,null,"duputel.david@gmail.com",null,null,null,null,null,null,null,null,null,null,null,"sebastien.dubois@aerolia.com",null,null,null,null,null,null,null,null,null,null,null,"martial.defossez@wanadoo.fr"]
[null,null,null,null,null,"Tél : 03.22.96.00.51 / 06.17.16.09.47",null,null,null,null,null,null,null,null,null,null,null,"Tél : 03.22.05.83.80 / 06.73.82.67.81",null,null,null,null,null,null,null,null,null,null,null,"Tél : 03.22.76.61.50"]
[]
[]
[]
[null,null,null,null,null,null,null,null,null,"L'actualité du week-end"]
[]
[]
[]
[null,null,null,null,null,null,null,null,null,null,null,null,null,null,null,null,null,"Plateau "]
[]
[null,null,null,null,null,null,null,null,null,null,null,null,null,null,null,null,null,"Repos"]
[]
[]
[]
[]
[]
[]
[]
[]
[]
[]
[]
[]
[]
[]
[]
[]
[]
[]
[null,null,null,null,null,null,null,null,null,"CLIQUEZ SUR LA CATEGORIE VOULUE"]

{"sheet":"Résultats A","index":7,"n_rows":33,"n_cols":38,"rows_kept":33,"cut":false,"hidden":false,"merged":[[10,0,10,38],[12,32,20,33],[12,34,20,35],[12,36,20,37],[21,9,21,13],[12,14,20,15],[12,28,20,29],[12,30,20,31],[12,16,20,17],[12,18,20,19],[12,20,20,21],[12,22,20,23],[12,24,20,25],[12,26,20,27],[32,9,32,13],[31,9,31,13],[30,9,30,13],[29,9,29,13],[28,9,28,13],[22,9,22,13],[27,9,27,13],[26,9,26,13],[25,9,25,13],[24,9,24,13],[23,9,23,13],[6,25,6,28],[0,0,0,38],[1,0,1,38],[2,0,2,38],[4,1,4,4],[4,12,4,14],[4,24,4,26],[6,1,6,4],[6,13,6,16]]}
["ASSOCIATION SPORTIVE DE CERISY GAILLY"]
["SAISON SENIORS 2011-2012"]
["SUIVI STATISTIQUE - SENIORS A"]
[]
[null,"Championnats :",null,null,null,"1ère division / 3ème division",null,null,null,null,null,null,"Stade : ",null,null,"rue du marais - 80800 Cerisy",null,null,null,null,null,null,null,null,"Site internet : ",null,null,"as-cerisy.footeo.com"]
[]
[null,"Entraîneur :",null,null,null,"DUPUTEL David",null,null,null,null,null,null,null,"Adjoint : ",null,null,null,"DUBOIS Sébastien",null,null,null,null,null,null,null,"Coach B :",null,null,null,"DEFOSSEZ Martial"]
[null,null,null,null,null,"duputel.david@gmail.com",null,null,null,null,null,null,null,null,null,null,null,"sebastien.dubois@aerolia.com",null,null,null,null,null,null,null,null,null,null,null,"martial.defossez@wanadoo.fr"]
[null,null,null,null,null,"Tél : 03.22.96.00.51 / 06.17.16.09.47",null,null,null,null,null,null,null,null,null,null,null,"Tél : 03.22.05.83.80 / 06.73.82.67.81",null,null,null,null,null,null,null,null,null,null,null,"Tél : 03.22.76.61.50"]
[]
[]
[]
[null,null,null,null,null,null,null,null,null,null,null,null,null,null,{"$f":"J22","v":"Es Pigeonnier Amiens 2"},null,{"$f":"J23","v":"As Cerisy"},null,{"$f":"J24","v":"Us Corbie"},null,{"$f":"J25","v":"Us Daours"},null,{"$f":"J26","v":"Esc Longueau 2"},null,{"$f":"J27","v":"Sc Moreuil "},null,{"$f":"J28","v":"Asp Neslois 2"},null,{"$f":"J29","v":"Js Querrieu"},null,{"$f":"J30","v":"Fr Ribemont"},null,{"$f":"J31","v":"Us Sailly Saillisel"},null,{"$f":"J32","v":"Es Sains StFuscien"},null,{"$f":"J33","v":"Fc Saleux"}]
[]
[]
[]
[null,null,null,null,null,null,null,null,null,""]
[]
[]
[]
[]
[null,null,null,null,null,null,null,null,null,"Es Pigeonnier Amiens 2",null,null,null,null,null,null,null,null,0,4,null,null,0,2,null,null,null,null,null,null,3,7,0,3,null,null,2,2]
[null,null,null,null,null,null,null,null,null,"As Cerisy",null,null,null,null,5,0,null,null,2,0,null,null,null,null,1,1,1,1,null,null,4,1,null,null,null,null,1,4]
[null,null,null,null,null,null,null,null,null,"Us Corbie",null,null,null,null,null,null,null,null,null,null,1,0,3,1,null,null,null,null,2,0,null,null,null,null,0,1,1,2]
[null,null,null,null,null,null,null,null,null,"Us Daours",null,null,null,null,3,1,2,3,null,null,null,null,null,null,1,6,0,1,1,1]
[null,null,null,null,null,null,null,null,null,"Esc Longueau 2",null,null,null,null,null,null,0,0,null,null,null,null,null,null,null,null,0,2,1,2,null,null,null,null,2,0,4,2]
[null,null,null,null,null,null,null,null,null,"Sc Moreuil ",null,null,null,null,null,null,null,null,2,0,null,null,null,null,null,null,null,null,null,null,9,0,1,1,3,3]
[null,null,null,null,null,null,null,null,null,"Asp Neslois 2",null,null,null,null,3,0,null,null,null,null,null,null,null,null,3,0,null,null,3,1,null,null,3,0]
[null,null,null,null,null,null,null,null,null,"Js Querrieu",null,null,null,null,5,0,1,2,null,null,null,null,null,null,0,3,null,null,null,null,null,null,2,1,null,null,3,0]
[null,null,null,null,null,null,null,null,null,"Fr Ribemont",null,null,null,null,null,null,null,null,0,5,1,3,0,1,null,null,1,2,null,null,null,null,null,null,0,2,3,3]
[null,null,null,null,null,null,null,null,null,"Us Sailly Saillisel",null,null,null,null,null,null,null,null,0,0,2,1,2,4,null,null,null,null,null,null,2,2,null,null,0,1]
[null,null,null,null,null,null,null,null,null,"Es Sains StFuscien",null,null,null,null,10,1,0,0,null,null,3,4,null,null,null,null,0,0,1,2]
[null,null,null,null,null,null,null,null,null,"Fc Saleux",null,null,null,null,null,null,null,null,null,null,4,0,null,null,0,4,1,2,null,null,null,null,1,4]

{"sheet":"Clst A","index":8,"n_rows":29,"n_cols":31,"rows_kept":29,"cut":false,"hidden":false,"merged":[[28,17,28,18],[28,30,28,31],[27,30,27,31],[28,28,28,29],[27,28,27,29],[27,17,27,18],[0,0,0,38],[1,0,1,38],[4,1,4,4],[4,12,4,14],[6,1,6,4],[4,24,4,26],[6,13,6,16],[6,25,6,28],[2,0,2,38],[13,28,13,29],[12,10,12,31],[10,0,10,38],[13,30,13,31],[13,11,13,15]]}
["ASSOCIATION SPORTIVE DE CERISY GAILLY"]
["SAISON SENIORS 2011-2012"]
["SUIVI STATISTIQUE - SENIORS A"]
[]
[null,"Championnats :",null,null,null,"1ère division / 3ème division",null,null,null,null,null,null,"Stade : ",null,null,"rue du marais - 80800 Cerisy",null,null,null,null,null,null,null,null,"Site internet : ",null,null,"as-cerisy.footeo.com"]
[]
[null,"Entraîneur :",null,null,null,"DUPUTEL David",null,null,null,null,null,null,null,"Adjoint : ",null,null,null,"DUBOIS Sébastien",null,null,null,null,null,null,null,"Coach B :",null,null,null,"DEFOSSEZ Martial"]
[null,null,null,null,null,"duputel.david@gmail.com",null,null,null,null,null,null,null,null,null,null,null,"sebastien.dubois@aerolia.com",null,null,null,null,null,null,null,null,null,null,null,"martial.defossez@wanadoo.fr"]
[null,null,null,null,null,"Tél : 03.22.96.00.51 / 06.17.16.09.47",null,null,null,null,null,null,null,null,null,null,null,"Tél : 03.22.05.83.80 / 06.73.82.67.81",null,null,null,null,null,null,null,null,null,null,null,"Tél : 03.22.76.61.50"]
[]
[]
[]
[null,null,null,null,null,null,null,null,null,null,"Saison 2011 - 2012 / 1ère division "]
[null,null,null,null,null,null,null,null,null,null,null,"CLUB",null,null,null,null,null,"PTS","J","G","N","P","F","BP","BC","DIF.","CHA","PEN.","Ratio BP",null,"Ratio BC"]
[null,null,null,null,null,null,null,null,null,null,1,"Asp Neslois 2",null,null,null,null,null,{"$f":"((((T15*4)+(U15*2)+(V15*1)))-(AA15+AB15))","v":36},{"$f":"T15+U15+V15+W15","v":10},8,2,0,0,20,4,{"$f":"X15-Y15","v":16},null,null,{"$f":"X15/S15","v":2},null,{"$f":"Y15/S15","v":0.4}]
[null,null,null,null,null,null,null,null,null,null,2,"As Cerisy",null,null,null,null,null,{"$f":"((((T16*4)+(U16*2)+(V16*1)))-(AA16+AB16))","v":28},{"$f":"T16+U16+V16+W16","v":10},5,4,1,0,19,10,{"$f":"X16-Y16","v":9},1,null,{"$f":"X16/S16","v":1.9},null,{"$f":"Y16/S16","v":1}]
[null,null,null,null,null,null,null,null,null,"",3,"Sc Moreuil ",null,null,null,null,null,{"$f":"((((T17*4)+(U17*2)+(V17*1)))-(AA17+AB17))","v":26},{"$f":"T17+U17+V17+W17","v":9},5,3,1,0,29,9,{"$f":"X17-Y17","v":20},1,null,{"$f":"X17/S17","v":3.2222222222222223},null,{"$f":"Y17/S17","v":1}]
[null,null,null,null,null,null,null,null,null,null,4,"Es Sains StFuscien",null,null,null,null,null,{"$f":"((((T18*4)+(U18*2)+(V18*1)))-(AA18+AB18))","v":25},{"$f":"T18+U18+V18+W18","v":10},4,3,3,0,21,12,{"$f":"X18-Y18","v":9},null,null,{"$f":"X18/S18","v":2.1},null,{"$f":"Y18/S18","v":1.2}]
[null,null,null,null,null,null,null,null,null,null,5,"Us Corbie",null,null,null,null,null,{"$f":"((((T19*4)+(U19*2)+(V19*1)))-(AA19+AB19))","v":25},{"$f":"T19+U19+V19+W19","v":10},5,1,4,0,16,8,{"$f":"X19-Y19","v":8},1,null,{"$f":"X19/S19","v":1.6},null,{"$f":"Y19/S19","v":0.8}]
[null,null,null,null,null,null,null,null,null,null,6,"Js Querrieu",null,null,null,null,null,{"$f":"((((T20*4)+(U20*2)+(V20*1)))-(AA20+AB20))","v":25},{"$f":"T20+U20+V20+W20","v":10},5,1,4,0,17,14,{"$f":"X20-Y20","v":3},1,null,{"$f":"X20/S20","v":1.7},null,{"$f":"Y20/S20","v":1.4}]
[null,null,null,null,null,null,null,null,null,null,7,"Esc Longueau 2",null,null,null,null,null,{"$f":"((((T21*4)+(U21*2)+(V21*1)))-(AA21+AB21))","v":23},{"$f":"T21+U21+V21+W21","v":9},5,1,3,0,15,11,{"$f":"X21-Y21","v":4},2,null,{"$f":"X21/S21","v":1.6666666666666667},null,{"$f":"Y21/S21","v":1.2222222222222223}]
[null,null,null,null,null,null,null,null,null,null,8,"Us Sailly Saillisel",null,null,null,null,null,{"$f":"((((T22*4)+(U22*2)+(V22*1)))-(AA22+AB22))","v":22},{"$f":"T22+U22+V22+W22","v":10},3,3,4,0,15,15,{"$f":"X22-Y22","v":0},null,null,{"$f":"X22/S22","v":1.5},null,{"$f":"Y22/S22","v":1.5}]
[null,null,null,null,null,null,null,null,null,null,9,"Us Daours",null,null,null,null,null,{"$f":"((((T23*4)+(U23*2)+(V23*1)))-(AA23+AB23))","v":18},{"$f":"T23+U23+V23+W23","v":10},3,1,6,0,15,23,{"$f":"X23-Y23","v":-8},2,null,{"$f":"X23/S23","v":1.5},null,{"$f":"Y23/S23","v":2.2999999999999998}]
[null,null,null,null,null,null,null,null,null,null,10,"Fc Saleux",null,null,null,null,null,{"$f":"((((T24*4)+(U24*2)+(V24*1)))-(AA24+AB24))","v":13},{"$f":"T24+U24+V24+W24","v":10},3,2,5,0,19,24,{"$f":"X24-Y24","v":-5},8,null,{"$f":"X24/S24","v":1.9},null,{"$f":"Y24/S24","v":2.4}]
[null,null,null,null,null,null,null,null,null,null,11,"Fr Ribemont",null,null,null,null,null,{"$f":"((((T25*4)+(U25*2)+(V25*1)))-(AA25+AB25))","v":13},{"$f":"T25+U25+V25+W25","v":10},1,2,7,0,15,34,{"$f":"X25-Y25","v":-19},2,null,{"$f":"X25/S25","v":1.5},null,{"$f":"Y25/S25","v":3.4}]
[null,null,null,null,null,null,null,null,null,null,12,"Es Pigeonnier Amiens 2",null,null,null,null,null,{"$f":"((((T26*4)+(U26*2)+(V26*1)))-(AA26+AB26))","v":7},{"$f":"T26+U26+V26+W26","v":10},0,1,8,1,7,44,{"$f":"X26-Y26","v":-37},3,null,{"$f":"X26/S26","v":0.7},null,{"$f":"Y26/S26","v":4.4000000000000004}]
[null,null,null,null,null,null,null,null,null,null,null,null,null,null,null,null,null,null,null,null,null,null,null,{"$f":"SUM(X15:X26)","v":208},{"$f":"SUM(Y15:Y26)","v":208},null,{"$f":"SUM(AA15:AA26)","v":21}]
[null,null,null,null,null,null,null,null,null,null,null,null,null,null,null,null,null,"Maxi",null,{"$f":"MAX(T15:T26)","v":8},{"$f":"MAX(U15:U26)","v":4},8,1,29,44,20,8,0,{"$f":"MAX(AC15:AD26)","v":3.2222222222222223},null,{"$f":"MAX(AE15:AF26)","v":4.4000000000000004}]
[null,null,null,null,null,null,null,null,null,null,null,null,null,null,null,null,null,"Mini",null,{"$f":"MIN(T15:T27)","v":0},{"$f":"MIN(U15:U27)","v":1},0,0,7,4,-37,1,0,{"$f":"MIN(AC15:AD26)","v":0.7},null,{"$f":"MIN(AE15:AF26)","v":0.4}]

{"sheet":"Evolution A","index":9,"n_rows":24,"n_cols":34,"rows_kept":24,"cut":false,"hidden":false,"merged":[[19,33,19,34],[20,33,20,34],[21,33,21,34],[23,18,23,20],[23,29,23,31],[13,11,13,32],[12,11,12,32],[18,33,18,34],[10,0,10,38],[14,11,14,21],[14,22,14,32],[13,33,13,34],[16,33,16,34],[17,33,17,34],[14,33,14,34],[6,1,6,4],[6,13,6,16],[6,25,6,28],[0,0,0,38],[1,0,1,38],[2,0,2,38],[4,1,4,4],[4,12,4,14],[4,24,4,26]]}
["ASSOCIATION SPORTIVE DE CERISY GAILLY"]
["SAISON SENIORS 2011-2012"]
["SUIVI STATISTIQUE - SENIORS A"]
[]
[null,"Championnats :",null,null,null,"1ère division / 3ème division",null,null,null,null,null,null,"Stade : ",null,null,"rue du marais - 80800 Cerisy",null,null,null,null,null,null,null,null,"Site internet : ",null,null,"as-cerisy.footeo.com"]
[]
[null,"Entraîneur :",null,null,null,"DUPUTEL David",null,null,null,null,null,null,null,"Adjoint : ",null,null,null,"DUBOIS Sébastien",null,null,null,null,null,null,null,"Coach B :",null,null,null,"DEFOSSEZ Martial"]
[null,null,null,null,null,"duputel.david@gmail.com",null,null,null,null,null,null,null,null,null,null,null,"sebastien.dubois@aerolia.com",null,null,null,null,null,null,null,null,null,null,null,"martial.defossez@wanadoo.fr"]
[null,null,null,null,null,"Tél : 03.22.96.00.51 / 06.17.16.09.47",null,null,null,null,null,null,null,null,null,null,null,"Tél : 03.22.05.83.80 / 06.73.82.67.81",null,null,null,null,null,null,null,null,null,null,null,"Tél : 03.22.76.61.50"]
[]
[]
[]
[null,null,null,null,null,null,null,null,null,null,null,"EVOLUTION CHAMPIONNAT"]
[null,null,null,null,null,null,null,null,null,null,null,"Saison 2010-2011",null,null,null,null,null,null,null,null,null,null,null,null,null,null,null,null,null,null,null,null,null,"Joués"]
[null,null,null,null,null,null,null,null,null,null,null,"Aller",null,null,null,null,null,null,null,null,null,null,"Retour",null,null,null,null,null,null,null,null,null,null,{"$f":"'Clst A'!S16","v":10}]
[null,null,null,null,null,null,null,null,null,null,null,1,2,3,4,5,6,7,8,9,10,11,12,13,14,15,16,17,18,19,20,21,22]
[null,null,null,null,null,null,null,null,"2011 - 2012",null,null,2,2,4,2,1,4,4,4,4,2,null,null,null,null,null,null,null,null,null,null,null,null,{"$f":"SUM(L17:AG17)","v":29}]
[null,null,null,null,null,null,null,null,"2010 - 2011",null,null,2,4,4,2,4,4,1,4,4,1,1,4,1,4,4,4,4,2,4,4,4,4,70]
[null,null,null,null,null,null,null,null,"2009 - 2010",null,null,1,4,4,1,1,1,1,1,4,2,4,4,4,2,4,2,1,4,4,4,1,null,54]
[null,null,null,null,null,null,null,null,"2008 - 2009",null,null,4,4,1,4,4,4,4,1,4,1,4,2,1,4,1,1,4,4,1,4,4,4,65]
[null,null,null,null,null,null,null,null,"2007 - 2008",null,null,2,1,4,4,4,4,1,4,4,2,4,4,2,2,2,1,4,4,4,4,4,4,69]
[null,null,null,null,null,null,null,null,"2006 - 2007",null,null,1,2,4,4,4,1,4,4,4,2,4,4,2,4,2,4,2,2,4,4,4,null,66]
[null,null,null,null,null,null,null,null,null,null,null,{"$f":"SUM(L17:L22)","v":12},17,21,17,18,18,15,18,24,10,17,{"$f":"SUM(W17:W22)","v":18},{"$f":"SUM(X17:X22)","v":10},16,13,12,15,16,17,20,17,12]
[null,null,null,null,null,null,null,null,null,null,null,null,null,null,null,null,null,null,"Bilan aller",null,null,{"$f":"L23+M23+N23+O23+P23+Q23+R23+S23+T23+U23+V23","v":187},null,null,null,null,null,null,null,"Bilan retour",null,null,{"$f":"W23+X23+Y23+Z23+AA23+AB23+AC23+AD23+AE23+AF23+AG23","v":166}]

{"sheet":"Moyenne pts-matches","index":10,"n_rows":26,"n_cols":30,"rows_kept":26,"cut":false,"hidden":false,"merged":[[25,13,25,14],[25,15,25,16],[22,13,22,14],[22,15,22,16],[23,13,23,14],[23,15,23,16],[24,13,24,14],[24,15,24,16],[19,13,19,14],[19,15,19,16],[20,13,20,14],[20,15,20,16],[21,13,21,14],[21,15,21,16],[16,13,16,14],[16,15,16,16],[17,13,17,14],[17,15,17,16],[18,13,18,14],[18,15,18,16],[0,0,0,38],[1,0,1,38],[2,0,2,38],[4,1,4,4],[4,12,4,14],[4,24,4,26],[6,13,6,16],[6,25,6,28],[10,0,10,38],[14,13,14,27],[15,13,15,14],[15,15,15,16],[15,17,15,19],[6,1,6,4]]}
["ASSOCIATION SPORTIVE DE CERISY GAILLY"]
["SAISON SENIORS 2011-2012"]
["SUIVI STATISTIQUE - SENIORS A"]
[]
[null,"Championnats :",null,null,null,"1ère division / 3ème division",null,null,null,null,null,null,"Stade : ",null,null,"rue du marais - 80800 Cerisy",null,null,null,null,null,null,null,null,"Site internet : ",null,null,"as-cerisy.footeo.com"]
[]
[null,"Entraîneur :",null,null,null,"DUPUTEL David",null,null,null,null,null,null,null,"Adjoint : ",null,null,null,"DUBOIS Sébastien",null,null,null,null,null,null,null,"Coach B :",null,null,null,"DEFOSSEZ Martial"]
[null,null,null,null,null,"duputel.david@gmail.com",null,null,null,null,null,null,null,null,null,null,null,"sebastien.dubois@aerolia.com",null,null,null,null,null,null,null,null,null,null,null,"martial.defossez@wanadoo.fr"]
[null,null,null,null,null,"Tél : 03.22.96.00.51 / 06.17.16.09.47",null,null,null,null,null,null,null,null,null,null,null,"Tél : 03.22.05.83.80 / 06.73.82.67.81",null,null,null,null,null,null,null,null,null,null,null,"Tél : 03.22.76.61.50"]
[]
[]
[]
[]
[]
[null,null,null,null,null,null,null,null,null,null,null,null,null,"MOYENNE PTS/MATCHES HORS CHARTE DE L'ETHIQUE"]
[null,null,null,null,null,null,null,null,null,null,null,null,null,"Matches",null,"Points",null,"Années",null,null,null,"Moy",null,"Clst final",null,null,"Division jouée"]
[null,null,null,null,null,null,null,null,null,"",null,null,null,{"$f":"'Clst A'!S16","v":10},null,{"$f":"'Evolution A'!AH17","v":29},null,null,"2011-2012",null,null,{"$f":"P17/N17","v":2.9},null,null,null,null,"1ère Div."]
[null,null,null,null,null,null,null,null,null,null,null,null,null,22,null,70,null,null,"2010-2011",null,null,{"$f":"P18/N18","v":3.1818181818181817},null,"3ème",null,null,"1ère Div."]
[null,null,null,null,null,null,null,null,null,null,null,null,null,18,null,42,null,null,"2009-2010",null,null,{"$f":"P19/N19","v":2.3333333333333335},null,"5ème",null,null,"1ère Div."]
[null,null,null,null,null,null,null,null,null,null,null,null,null,22,null,64,null,null,"2008-2009",null,null,2.9090909090909092,null,"3ème",null,null,"1ère Div."]
[null,null,null,null,null,null,null,null,null,null,null,null,null,22,null,71,null,null,"2007-2008",null,null,3.2272727272727271,null,"3ème",null,null,"1ère Div."]
[null,null,null,null,null,null,null,null,null,null,null,null,null,18,null,57,null,null,"2006-2007",null,null,3.1666666666666665,null,"1er",null,null,"Promo 1ère Div."]
[null,null,null,null,null,null,null,null,null,null,null,null,null,22,null,84,null,null,"2003-2004",null,null,3.8181818181818183,null,"1er",null,null,"3ème Div."]
[null,null,null,null,null,null,null,null,null,null,null,null,null,22,null,55,null,null,"1990-1991",null,null,2.5,null,"2ème",null,null,"2ème Div.",null,"(victoire à 3pts)"]
[null,null,null,null,null,null,null,null,null,null,null,null,null,22,null,59,null,null,"1989-1990",null,null,2.6818181818181817,null,"2ème",null,null,"2ème Div.",null,"(victoire à 3pts)"]
[null,null,null,null,null,null,null,null,null,null,null,null,null,22,null,61,null,null,"1988-1989",null,null,2.7727272727272729,null,"2ème",null,null,"3ème Div.",null,"(victoire à 3pts)"]

{"sheet":"Répartition 11-12","index":11,"n_rows":31,"n_cols":30,"rows_kept":31,"cut":false,"hidden":false,"merged":[[29,12,29,13],[29,15,29,16],[29,21,29,22],[29,24,29,25],[30,10,30,11],[30,12,30,13],[30,15,30,16],[30,21,30,22],[30,24,30,25],[30,19,30,20],[28,12,28,13],[28,15,28,16],[28,21,28,22],[24,21,24,22],[28,24,28,25],[27,12,27,13],[27,15,27,16],[27,21,27,22],[27,24,27,25],[26,19,26,20],[26,24,26,25],[25,10,25,26],[24,19,24,20],[26,10,26,11],[26,12,26,13],[26,15,26,16],[26,21,26,22],[24,10,24,11],[24,12,24,13],[24,15,24,16],[15,12,15,13],[21,12,21,13],[21,15,21,16],[21,21,21,22],[15,15,15,16],[15,21,15,22],[21,24,21,25],[20,19,20,20],[18,24,18,25],[16,21,16,22],[16,24,16,25],[18,21,18,22],[17,21,17,22],[17,24,17,25],[19,10,19,26],[20,10,20,11],[20,12,20,13],[18,19,18,20],[16,12,16,13],[16,15,16,16],[24,24,24,25],[22,12,22,13],[22,15,22,16],[22,21,22,22],[22,24,22,25],[23,12,23,13],[23,15,23,16],[23,21,23,22],[23,24,23,25],[0,0,0,38],[1,0,1,38],[2,0,2,38],[4,1,4,4],[4,12,4,14],[15,24,15,25],[20,15,20,16],[20,21,20,22],[20,24,20,25],[18,10,18,11],[18,12,18,13],[18,15,18,16],[17,12,17,13],[17,15,17,16],[14,24,14,25],[4,24,4,26],[6,1,6,4],[6,13,6,16],[6,25,6,28],[10,0,10,38],[14,19,14,20],[13,10,13,26],[14,10,14,11],[14,12,14,13],[14,21,14,22],[14,15,14,16]]}
["ASSOCIATION SPORTIVE DE CERISY GAILLY"]
["SAISON SENIORS 2011-2012"]
["SUIVI STATISTIQUE - SENIORS A"]
[]
[null,"Championnats :",null,null,null,"1ère division / 3ème division",null,null,null,null,null,null,"Stade : ",null,null,"rue du marais - 80800 Cerisy",null,null,null,null,null,null,null,null,"Site internet : ",null,null,"as-cerisy.footeo.com"]
[]
[null,"Entraîneur :",null,null,null,"DUPUTEL David",null,null,null,null,null,null,null,"Adjoint : ",null,null,null,"DUBOIS Sébastien",null,null,null,null,null,null,null,"Coach B :",null,null,null,"DEFOSSEZ Martial"]
[null,null,null,null,null,"duputel.david@gmail.com",null,null,null,null,null,null,null,null,null,null,null,"sebastien.dubois@aerolia.com",null,null,null,null,null,null,null,null,null,null,null,"martial.defossez@wanadoo.fr"]
[null,null,null,null,null,"Tél : 03.22.96.00.51 / 06.17.16.09.47",null,null,null,null,null,null,null,null,null,null,null,"Tél : 03.22.05.83.80 / 06.73.82.67.81",null,null,null,null,null,null,null,null,null,null,null,"Tél : 03.22.76.61.50"]
[]
[]
[]
[]
[null,null,null,null,null,null,null,null,null,null,"STATISTIQUES GENERALES SAISON 2011-2012",null,null,null,null,null,null,null,null,null,null,null,null,null,null,null,null,null,"Total Matches"]
[null,null,null,null,null,null,null,null,null,null,"Temps",null,"Pour ",null,"%","Contre ",null,"%",null,"Temps",null,"Pour ",null,"%","Contre ",null,"%",null,{"$f":"AC21+AC27","v":16}]
[null,null,null,null,null,null,null,null,null,null,1,15,{"$f":"M22+M28","v":6},null,{"$f":"M16/($M$19+$V$19)","v":0.24},{"$f":"P22+P28","v":4},null,{"$f":"P16/($P$19+$Y$19)","v":0.22222222222222221},null,45,60,{"$f":"V22+V28","v":2},null,{"$f":"V16/($M$19+$V$19)","v":0.08},{"$f":"Y22+Y28","v":3},null,{"$f":"Y16/($P$19+$Y$19)","v":0.16666666666666666}]
[null,null,null,null,null,null,null,null,null,"",16,30,{"$f":"M23+M29","v":5},null,{"$f":"M17/($M$19+$V$19)","v":0.2},{"$f":"P23+P29","v":1},null,{"$f":"P17/($P$19+$Y$19)","v":5.5555555555555552E-2},null,61,75,{"$f":"V23+V29","v":4},null,{"$f":"V17/($M$19+$V$19)","v":0.16},{"$f":"Y23+Y29","v":4},null,{"$f":"Y17/($P$19+$Y$19)","v":0.22222222222222221}]
[null,null,null,null,null,null,null,null,null,null,31,45,{"$f":"M24+M30","v":2},null,{"$f":"M18/($M$19+$V$19)","v":0.08},{"$f":"P24+P30","v":3},null,{"$f":"P18/($P$19+$Y$19)","v":0.16666666666666666},null,76,90,{"$f":"V24+V30","v":6},null,{"$f":"V18/($M$19+$V$19)","v":0.24},{"$f":"Y24+Y30","v":3},null,{"$f":"Y18/($P$19+$Y$19)","v":0.16666666666666666}]
[null,null,null,null,null,null,null,null,null,null,"Total",null,{"$f":"SUM(M16:N18)","v":13},null,null,{"$f":"SUM(P16:Q18)","v":8},null,null,null,"Total",null,{"$f":"SUM(V16:W18)","v":12},null,null,{"$f":"SUM(Y16:Z18)","v":10},null,null,{"$f":"M19+V19","v":25},null,{"$f":"P19+Y19","v":18}]
[null,null,null,null,null,null,null,null,null,null,"STATISTIQUES CHAMPIONNAT",null,null,null,null,null,null,null,null,null,null,null,null,null,null,null,null,null,"Matches"]
[null,null,null,null,null,null,null,null,null,null,"Temps",null,"Pour ",null,"%","Contre ",null,"%",null,"Temps",null,"Pour ",null,"%","Contre ",null,"%",null,{"$f":"'Moyenne pts-matches'!N17","v":10}]
[null,null,null,null,null,null,null,null,null,null,1,15,5,null,{"$f":"M22/($M$25+$V$25)","v":0.26315789473684209},1,null,{"$f":"P22/($P$25+$Y$25)","v":0.1},null,45,60,2,null,{"$f":"V22/($M$25+$V$25)","v":0.10526315789473684},2,null,{"$f":"Y22/($P$25+$Y$25)","v":0.2}]
[null,null,null,null,null,null,null,null,null,null,16,30,3,null,{"$f":"M23/($M$25+$V$25)","v":0.15789473684210525},0,null,{"$f":"P23/($P$25+$Y$25)","v":0},null,61,75,3,null,{"$f":"V23/($M$25+$V$25)","v":0.15789473684210525},1,null,{"$f":"Y23/($P$25+$Y$25)","v":0.1}]
[null,null,null,null,null,null,null,null,null,null,31,45,2,null,{"$f":"M24/($M$25+$V$25)","v":0.10526315789473684},3,null,{"$f":"P24/($P$25+$Y$25)","v":0.3},null,76,90,4,null,{"$f":"V24/($M$25+$V$25)","v":0.21052631578947367},3,null,{"$f":"Y24/($P$25+$Y$25)","v":0.3}]
[null,null,null,null,null,null,null,null,null,null,"Total",null,{"$f":"SUM(M22:N24)","v":10},null,null,{"$f":"SUM(P22:Q24)","v":4},null,null,null,"Total",null,{"$f":"SUM(V22:W24)","v":9},null,null,{"$f":"SUM(Y22:Z24)","v":6},null,null,{"$f":"M25+V25","v":19},null,{"$f":"P25+Y25","v":10}]
[null,null,null,null,null,null,null,null,null,null,"STATISTIQUES COUPE",null,null,null,null,null,null,null,null,null,null,null,null,null,null,null,null,null,"Matches"]
[null,null,null,null,null,null,null,null,null,null,"Temps",null,"Pour ",null,"%","Contre ",null,"%",null,"Temps",null,"Pour ",null,"%","Contre ",null,"%",null,6]
[null,null,null,null,null,null,null,null,null,null,1,15,1,null,{"$f":"M28/($M$31+$V$31)","v":0.16666666666666666},3,null,{"$f":"P28/($P$31+$Y$31)","v":0.375},null,45,60,0,null,{"$f":"V28/($M$31+$V$31)","v":0},1,null,{"$f":"Y28/($P$31+$Y$31)","v":0.125}]
[null,null,null,null,null,null,null,null,null,null,16,30,2,null,{"$f":"M29/($M$31+$V$31)","v":0.33333333333333331},1,null,{"$f":"P29/($P$31+$Y$31)","v":0.125},null,61,75,1,null,{"$f":"V29/($M$31+$V$31)","v":0.16666666666666666},3,null,{"$f":"Y29/($P$31+$Y$31)","v":0.375}]
[null,null,null,null,null,null,null,null,null,null,31,45,0,null,{"$f":"M30/($M$31+$V$31)","v":0},0,null,{"$f":"P30/($P$31+$Y$31)","v":0},null,76,90,2,null,{"$f":"V30/($M$31+$V$31)","v":0.33333333333333331},0,null,{"$f":"Y30/($P$31+$Y$31)","v":0}]
[null,null,null,null,null,null,null,null,null,null,"Total",null,{"$f":"SUM(M28:N30)","v":3},null,null,{"$f":"SUM(P28:Q30)","v":4},null,null,null,"Total",null,{"$f":"SUM(V28:W30)","v":3},null,null,{"$f":"SUM(Y28:Z30)","v":4},null,null,{"$f":"M31+V31","v":6},null,{"$f":"P31+Y31","v":8}]

{"sheet":"Répartition Générale","index":12,"n_rows":43,"n_cols":35,"rows_kept":43,"cut":false,"hidden":false,"merged":[[23,10,23,16],[40,8,40,10],[41,8,41,10],[27,8,27,10],[28,8,28,10],[29,8,29,10],[30,8,30,10],[35,8,35,10],[36,8,36,10],[34,10,34,16],[37,8,37,10],[38,8,38,10],[39,8,39,10],[40,25,40,27],[41,25,41,27],[19,25,19,27],[6,1,6,4],[6,13,6,16],[6,25,6,28],[10,0,10,38],[12,10,12,16],[12,18,12,23],[23,18,23,23],[23,25,23,33],[24,8,24,10],[34,18,34,23],[13,8,13,10],[14,25,14,27],[15,25,15,27],[12,25,12,33],[26,8,26,10],[24,25,24,27],[25,25,25,27],[26,25,26,27],[18,25,18,27],[13,25,13,27],[15,8,15,10],[16,25,16,27],[17,25,17,27],[14,8,14,10],[19,8,19,10],[18,8,18,10],[16,8,16,10],[17,8,17,10],[25,8,25,10],[0,0,0,38],[1,0,1,38],[2,0,2,38],[4,1,4,4],[4,12,4,14],[4,24,4,26],[38,25,38,27],[39,25,39,27],[27,25,27,27],[28,25,28,27],[29,25,29,27],[36,25,36,27],[37,25,37,27],[30,25,30,27],[34,25,34,33],[35,25,35,27]]}
["ASSOCIATION SPORTIVE DE CERISY GAILLY"]
["SAISON SENIORS 2011-2012"]
["SUIVI STATISTIQUE - SENIORS A"]
[]
[null,"Championnats :",null,null,null,"1ère division / 3ème division",null,null,null,null,null,null,"Stade : ",null,null,"rue du marais - 80800 Cerisy",null,null,null,null,null,null,null,null,"Site internet : ",null,null,"as-cerisy.footeo.com"]
[]
[null,"Entraîneur :",null,null,null,"DUPUTEL David",null,null,null,null,null,null,null,"Adjoint : ",null,null,null,"DUBOIS Sébastien",null,null,null,null,null,null,null,"Coach B :",null,null,null,"DEFOSSEZ Martial"]
[null,null,null,null,null,"duputel.david@gmail.com",null,null,null,null,null,null,null,null,null,null,null,"sebastien.dubois@aerolia.com",null,null,null,null,null,null,null,null,null,null,null,"martial.defossez@wanadoo.fr"]
[null,null,null,null,null,"Tél : 03.22.96.00.51 / 06.17.16.09.47",null,null,null,null,null,null,null,null,null,null,null,"Tél : 03.22.05.83.80 / 06.73.82.67.81",null,null,null,null,null,null,null,null,null,null,null,"Tél : 03.22.76.61.50"]
[]
[]
[]
[null,null,null,null,null,null,null,null,null,null,"CHAMPIONNAT / BUTS POUR",null,null,null,null,null,null,null,"ECART",null,null,null,null,null,null,"CHAMPIONNAT / BUTS CONTRE"]
[null,null,null,null,null,null,null,null,"SAISONS",null,null,"1-15","16-30","31-45","46-60","61-75","76-90",null,"1-15","16-30","31-45","46-60","61-75","76-90",null,"SAISONS",null,null,"1-15","16-30","31-45","46-60","61-75","76-90"]
[null,null,null,null,null,null,null,null,"2006-2007",null,null,6,8,7,11,11,6,{"$f":"SUM(L15:Q15)","v":49},{"$f":"L15-AC15","v":5},{"$f":"M15-AD15","v":4},5,8,8,4,{"$f":"SUM(S15:X15)","v":34},"2006-2007",null,null,1,4,2,3,3,2,{"$f":"SUM(AC15:AH15)","v":15}]
[null,null,null,null,null,null,null,null,"2007-2008",null,null,5,8,8,7,5,17,50,3,7,7,3,3,14,37,"2007-2008",null,null,2,1,1,4,2,3,13]
[null,null,null,null,null,null,null,null,"2008-2009",null,null,5,7,6,8,7,9,42,5,0,0,6,3,9,23,"2008-2009",null,null,0,7,6,2,4,0,19]
[null,null,null,null,null,null,null,null,"2009-2010",null,null,3,5,6,6,4,8,32,-1,2,0,4,1,0,6,"2009-2010",null,null,4,3,6,2,3,8,26]
[null,null,null,null,null,null,null,null,"2010-2011",null,null,4,9,4,6,9,12,44,1,4,1,3,9,4,22,"2010-2011",null,null,3,5,3,3,0,8,22]
[null,null,null,null,null,null,null,null,"2011-2012",null,null,{"$f":"'Répartition 11-12'!M22","v":5},{"$f":"'Répartition 11-12'!M23","v":3},{"$f":"'Répartition 11-12'!M24","v":2},{"$f":"'Répartition 11-12'!V22","v":2},{"$f":"'Répartition 11-12'!V23","v":3},{"$f":"'Répartition 11-12'!V24","v":4},19,4,2,-1,0,2,1,8,"2011-2012",null,null,{"$f":"'Répartition 11-12'!P22","v":1},{"$f":"'Répartition 11-12'!P17","v":1},{"$f":"'Répartition 11-12'!P18","v":3},{"$f":"'Répartition 11-12'!Y22","v":2},{"$f":"'Répartition 11-12'!Y23","v":1},{"$f":"'Répartition 11-12'!Y24","v":3},11]
[null,null,null,null,null,null,null,null,null,null,null,{"$f":"SUM(L15:L20)","v":28},40,33,40,39,56,null,null,null,null,null,null,null,null,null,null,null,{"$f":"SUM(AC15:AC20)","v":11},21,21,16,13,24]
[]
[]
[null,null,null,null,null,null,null,null,null,null,"COUPE / BUTS POUR",null,null,null,null,null,null,null,"ECART",null,null,null,null,null,null,"COUPE / BUTS CONTRE"]
[null,null,null,null,null,null,null,null,"SAISONS",null,null,"1-15","16-30","31-45","46-60","61-75","76-90",null,"1-15","16-30","31-45","46-60","61-75","76-90",null,"SAISONS",null,null,"1-15","16-30","31-45","46-60","61-75","76-90"]
[null,null,null,null,null,null,null,null,"2006-2007",null,null,0,6,3,2,5,8,{"$f":"SUM(L26:Q26)","v":24},{"$f":"L26-AC26","v":-1},{"$f":"M26-AD26","v":4},3,-3,4,5,{"$f":"SUM(S26:X26)","v":12},"2006-2007",null,null,1,2,0,5,1,3,{"$f":"SUM(AC26:AH26)","v":12}]
[null,null,null,null,null,null,null,null,"2007-2008",null,null,0,2,2,2,3,5,14,0,2,1,2,3,0,8,"2007-2008",null,null,0,0,1,0,0,5,6]
[null,null,null,null,null,null,null,null,"2008-2009",null,null,7,6,0,3,7,5,28,6,3,-2,-3,6,1,11,"2008-2009",null,null,1,3,2,6,1,4,17]
[null,null,null,null,null,null,null,null,"2009-2010",null,null,2,3,0,3,2,1,11,0,1,-2,0,0,0,-1,"2009-2010",null,null,2,2,2,3,2,1,12]
[null,null,null,null,null,null,null,null,"2010-2011",null,null,3,2,0,3,2,1,11,1,1,-1,0,2,-1,2,"2010-2011",null,null,2,1,1,3,0,2,9]
[null,null,null,null,null,null,null,null,"2011-2012",null,null,{"$f":"'Répartition 11-12'!M28","v":1},{"$f":"'Répartition 11-12'!M29","v":2},{"$f":"'Répartition 11-12'!M30","v":0},{"$f":"'Répartition 11-12'!V28","v":0},{"$f":"'Répartition 11-12'!V29","v":1},{"$f":"'Répartition 11-12'!V30","v":2},6,-2,1,0,-1,-2,2,-2,"2011-2012",null,null,{"$f":"'Répartition 11-12'!P28","v":3},{"$f":"'Répartition 11-12'!P29","v":1},{"$f":"'Répartition 11-12'!P30","v":0},{"$f":"'Répartition 11-12'!Y28","v":1},{"$f":"'Répartition 11-12'!Y29","v":3},{"$f":"'Répartition 11-12'!Y30","v":0},8]
[null,null,null,null,null,null,null,null,null,null,null,{"$f":"SUM(L26:L31)","v":13},21,5,13,20,22,null,null,null,null,null,null,null,null,null,null,null,{"$f":"SUM(AC26:AC31)","v":9},9,6,18,7,15]
[]
[]
[null,null,null,null,null,null,null,null,null,null,"GENERAL / BUTS POUR",null,null,null,null,null,null,null,"ECART",null,null,null,null,null,null,"GENERAL / BUTS CONTRE"]
[null,null,null,null,null,null,null,null,"SAISONS",null,null,"1-15","16-30","31-45","46-60","61-75","76-90",null,"1-15","16-30","31-45","46-60","61-75","76-90",null,"SAISONS",null,null,"1-15","16-30","31-45","46-60","61-75","76-90"]
[null,null,null,null,null,null,null,null,"2006-2007",null,null,{"$f":"L15+L26","v":6},14,10,13,16,14,{"$f":"SUM(L37:Q37)","v":73},{"$f":"L37-AC37","v":4},{"$f":"M37-AD37","v":8},8,5,12,9,{"$f":"SUM(S37:X37)","v":46},"2006-2007",null,null,{"$f":"AC15+AC26","v":2},6,2,8,4,5,{"$f":"SUM(AC37:AH37)","v":27}]
[null,null,null,null,null,null,null,null,"2007-2008",null,null,5,10,10,9,8,22,64,3,9,8,5,6,14,45,"2007-2008",null,null,2,1,2,4,2,8,19]
[null,null,null,null,null,null,null,null,"2008-2009",null,null,12,13,6,11,14,14,70,11,3,-2,3,9,10,34,"2008-2009",null,null,1,10,8,8,5,4,36]
[null,null,null,null,null,null,null,null,"2009-2010",null,null,5,8,6,9,6,9,43,-1,3,-2,4,1,0,5,"2009-2010",null,null,6,5,8,5,5,9,38]
[null,null,null,null,null,null,null,null,"2010-2011",null,null,7,11,4,9,11,13,55,2,5,0,3,11,3,24,"2010-2011",null,null,5,6,4,6,0,10,31]
[null,null,null,null,null,null,null,null,"2011-2012",null,null,6,5,2,2,4,6,25,2,3,-1,-1,0,3,6,"2011-2012",null,null,4,2,3,3,4,3,19]
[null,null,null,null,null,null,null,null,null,null,null,{"$f":"SUM(L37:L42)","v":41},61,38,53,59,78,null,null,null,null,null,null,null,null,null,null,null,{"$f":"SUM(AC37:AC42)","v":20},30,27,34,20,39]

{"sheet":"Moyenne par matche","index":13,"n_rows":23,"n_cols":31,"rows_kept":23,"cut":false,"hidden":false,"merged":[[22,13,22,14],[22,19,22,20],[22,25,22,26],[20,10,20,12],[20,13,20,14],[20,19,20,20],[20,25,20,26],[21,10,21,12],[21,13,21,14],[21,19,21,20],[21,25,21,26],[18,13,18,14],[18,19,18,20],[18,25,18,26],[18,10,18,12],[19,10,19,12],[19,13,19,14],[19,19,19,20],[19,25,19,26],[16,10,16,12],[16,13,16,14],[16,19,16,20],[16,25,16,26],[17,10,17,12],[17,13,17,14],[17,19,17,20],[17,25,17,26],[15,10,15,12],[15,13,15,14],[15,19,15,20],[15,25,15,26],[14,21,14,22],[14,23,14,24],[14,17,14,18],[0,0,0,38],[1,0,1,38],[2,0,2,38],[4,1,4,4],[4,12,4,14],[4,24,4,26],[14,27,14,28],[14,29,14,30],[6,1,6,4],[6,13,6,16],[6,25,6,28],[10,0,10,38],[13,13,13,18],[13,19,13,24],[13,25,13,30],[14,15,14,16]]}
["ASSOCIATION SPORTIVE DE CERISY GAILLY"]
["SAISON SENIORS 2011-2012"]
["SUIVI STATISTIQUE - SENIORS A"]
[]
[null,"Championnats :",null,null,null,"1ère division / 3ème division",null,null,null,null,null,null,"Stade : ",null,null,"rue du marais - 80800 Cerisy",null,null,null,null,null,null,null,null,"Site internet : ",null,null,"as-cerisy.footeo.com"]
[]
[null,"Entraîneur :",null,null,null,"DUPUTEL David",null,null,null,null,null,null,null,"Adjoint : ",null,null,null,"DUBOIS Sébastien",null,null,null,null,null,null,null,"Coach B :",null,null,null,"DEFOSSEZ Martial"]
[null,null,null,null,null,"duputel.david@gmail.com",null,null,null,null,null,null,null,null,null,null,null,"sebastien.dubois@aerolia.com",null,null,null,null,null,null,null,null,null,null,null,"martial.defossez@wanadoo.fr"]
[null,null,null,null,null,"Tél : 03.22.96.00.51 / 06.17.16.09.47",null,null,null,null,null,null,null,null,null,null,null,"Tél : 03.22.05.83.80 / 06.73.82.67.81",null,null,null,null,null,null,null,null,null,null,null,"Tél : 03.22.76.61.50"]
[]
[]
[]
[]
[null,null,null,null,null,null,null,null,null,null,null,null,null,"CHAMPIONNAT",null,null,null,null,null,"COUPES",null,null,null,null,null,"GENERAL"]
[null,null,null,null,null,null,null,null,null,null,null,null,null,null,null,"POUR",null,"CONTRE",null,null,null,"POUR",null,"CONTRE",null,null,null,"POUR",null,"CONTRE"]
[null,null,null,null,null,null,null,null,null,null,"SAISONS",null,null,"MATCHES",null,"BUTS","MOY","BUTS","MOY","MATCHES",null,"BUTS","MOY","BUTS","MOY","MATCHES",null,"BUTS","MOY","BUTS","MOY"]
[null,null,null,null,null,null,null,null,null,"","2006-2007",null,null,21,null,49,{"$f":"P17/N17","v":2.3333333333333335},15,{"$f":"R17/N17","v":0.7142857142857143},10,null,24,{"$f":"V17/T17","v":2.4},12,{"$f":"X17/T17","v":1.2},{"$f":"N17+T17","v":31},null,{"$f":"P17+V17","v":73},{"$f":"AB17/Z17","v":2.3548387096774195},{"$f":"R17+X17","v":27},{"$f":"AD17/Z17","v":0.87096774193548387}]
[null,null,null,null,null,null,null,null,null,null,"2007-2008",null,null,22,null,50,2.2727272727272729,13,0.59090909090909094,5,null,14,2.8,6,1.2,27,null,64,2.3703703703703702,19,0.70370370370370372]
[null,null,null,null,null,null,null,null,null,null,"2008-2009",null,null,22,null,42,1.9090909090909092,19,0.86363636363636365,11,null,28,2.5454545454545454,17,1.5454545454545454,33,null,70,2.1212121212121211,36,1.0909090909090908]
[null,null,null,null,null,null,null,null,null,null,"2009-2010",null,null,20,null,32,1.6,26,1.3,7,null,11,1.5714285714285714,12,1.7142857142857142,27,null,43,1.5925925925925926,38,1.4074074074074074]
[null,null,null,null,null,null,null,null,null,null,"2010-2011",null,null,22,null,44,2,22,1,10,null,23,2.2999999999999998,9,0.9,32,null,67,2.09375,31,0.96875]
[null,null,null,null,null,null,null,null,null,null,"2011-2012",null,null,{"$f":"'Clst A'!S16","v":10},null,{"$f":"'Répartition Générale'!R20","v":19},1.9,{"$f":"'Répartition Générale'!AI20","v":11},1.1000000000000001,{"$f":"'Répartition 11-12'!AC27","v":6},null,{"$f":"'Répartition Générale'!R31","v":6},1,{"$f":"'Répartition Générale'!AI31","v":8},1.3333333333333333,16,null,25,1.5625,19,1.1875]
[null,null,null,null,null,null,null,null,null,null,null,null,null,{"$f":"SUM(N17:O22)","v":117},null,{"$f":"SUM(P17:P22)","v":236},2.017094017094017,{"$f":"SUM(R17:R22)","v":106},0.90598290598290598,{"$f":"SUM(T17:U22)","v":49},null,{"$f":"SUM(V17:V22)","v":106},2.1632653061224492,{"$f":"SUM(X17:X22)","v":64},1.3061224489795917,{"$f":"SUM(Z17:AA22)","v":166},null,{"$f":"SUM(AB17:AB22)","v":342},2.0602409638554215,{"$f":"SUM(AD17:AD22)","v":170},1.0240963855421688]

{"sheet":"Joueurs A","index":14,"n_rows":66,"n_cols":53,"rows_kept":66,"cut":false,"hidden":false,"merged":[[4,1,4,4],[4,12,4,14],[4,24,4,26],[0,0,0,52],[1,0,1,52],[2,0,2,52],[6,1,6,4],[6,13,6,16],[6,25,6,28],[12,12,12,20],[12,22,12,28],[10,0,10,52],[27,8,27,11],[26,8,26,11],[25,8,25,11],[12,46,12,52],[13,8,13,11],[12,30,12,36],[12,38,12,44],[14,8,14,11],[21,8,21,11],[20,8,20,11],[19,8,19,11],[18,8,18,11],[15,8,15,11],[59,8,59,11],[33,8,33,11],[32,8,32,11],[31,8,31,11],[30,8,30,11],[35,8,35,11],[34,8,34,11],[55,8,55,11],[48,8,48,11],[47,8,47,11],[58,8,58,11],[41,8,41,11],[40,8,40,11],[39,8,39,11],[46,8,46,11],[45,8,45,11],[64,8,64,11],[63,8,63,11],[62,8,62,11],[61,8,61,11],[60,8,60,11],[44,8,44,11],[54,8,54,11],[53,8,53,11],[52,8,52,11],[51,8,51,11],[38,8,38,11],[57,8,57,11],[56,8,56,11],[17,8,17,11],[16,8,16,11],[43,8,43,11],[42,8,42,11],[36,8,36,11],[37,8,37,11],[50,8,50,11],[49,8,49,11],[24,8,24,11],[23,8,23,11],[22,8,22,11],[29,8,29,11],[28,8,28,11]]}
["ASSOCIATION SPORTIVE DE CERISY GAILLY"]
["SAISON SENIORS 2011-2012"]
["SUIVI STATISTIQUE - SENIORS A"]
[]
[null,"Championnats :",null,null,null,"1ère division / 3ème division",null,null,null,null,null,null,"Stade : ",null,null,"rue du marais - 80800 Cerisy",null,null,null,null,null,null,null,null,"Site internet : ",null,null,"as-cerisy.footeo.com"]
[]
[null,"Entraîneur :",null,null,null,"DUPUTEL David",null,null,null,null,null,null,null,"Adjoint : ",null,null,null,"DUBOIS Sébastien",null,null,null,null,null,null,null,"Coach B :",null,null,null,"DEFOSSEZ Martial"]
[null,null,null,null,null,"duputel.david@gmail.com",null,null,null,null,null,null,null,null,null,null,null,"sebastien.dubois@aerolia.com",null,null,null,null,null,null,null,null,null,null,null,"martial.defossez@wanadoo.fr"]
[null,null,null,null,null,"Tél : 03.22.96.00.51 / 06.17.16.09.47",null,null,null,null,null,null,null,null,null,null,null,"Tél : 03.22.05.83.80 / 06.73.82.67.81",null,null,null,null,null,null,null,null,null,null,null,"Tél : 03.22.76.61.50"]
[]
[]
[]
[null,null,null,null,null,null,null,null,null,null,null,null,"Général",null,null,null,null,null,null,null,null,null,"Saison 2008-2009",null,null,null,null,null,null,null,"Saison 2009-2010",null,null,null,null,null,null,null,"Saison 2010-2011",null,null,null,null,null,null,null,"Saison 2011-2012"]
[null,null,null,null,null,null,null,null,"Joueurs Utilisés  ",null,null,null,null,"Titulaire","Joués","Titulaire","Remplaçant","Buts","Passes","Jaunes","Rouges",null,"Joués","Titulaire","Remplaçant","Buts","Passes","Jaunes","Rouges",null,"Joués","Titulaire","Remplaçant","Buts","Passes","Jaunes","Rouges",null,"Joués","Titulaire","Remplaçant","Buts","Passes","Jaunes","Rouges",null,"Joués","Titulaire","Remplaçant","Buts","Passes","Jaunes","Rouges"]
[null,null,null,null,null,null,null,null,"de Bruyne Thierry",null,null,null,1,{"$f":"P15/O15","v":0.9662921348314607},{"$f":"W15+AE15+AM15+AU15","v":89},{"$f":"X15+AF15+AN15+AV15","v":86},{"$f":"Y15+AG15+AO15+AW15","v":3},2,2,{"$f":"AB15+AJ15+AR15+AZ15","v":6},{"$f":"AC15+AK15+AS15+BA15","v":0},null,30,30,{"$f":"W15-X15","v":0},null,1,2,null,null,20,20,{"$f":"AE15-AF15","v":0},1,null,2,null,null,29,27,{"$f":"AM15-AN15","v":2},1,1,2,null,1,10,9,{"$f":"AU15-AV15","v":1}]
[null,null,null,null,null,null,null,null,"Josse Grégory",null,null,null,1,{"$f":"P16/O16","v":0.7567567567567568},{"$f":"W16+AE16+AM16+AU16","v":37},28,9,4,4,2,0,null,12,11,{"$f":"W16-X16","v":1},1,null,null,null,null,21,16,{"$f":"AE16-AF16","v":5},3,2,2,null,null,4,1,3,null,2,null,null,null,null,null,0]
[null,null,null,null,null,null,null,null,"Lucquet Eric",null,null,null,1,{"$f":"P17/O17","v":0.89655172413793105},87,78,9,5,3,4,0,null,29,27,{"$f":"W17-X17","v":2},1,1,1,null,null,24,22,{"$f":"AE17-AF17","v":2},1,null,2,null,null,22,17,5,2,2,null,null,null,12,12,0,1,null,1]
[null,null,null,null,null,null,null,null,"Terrier Florent",null,null,null,1,0.9452054794520548,73,69,4,6,6,4,0,null,9,9,0,1,1,2,null,null,22,22,0,1,1,null,null,null,26,22,4,4,2,null,null,1,16,16,0,null,2,2]
[null,null,null,null,null,null,null,null,"Hénocque Ludovic",null,null,null,1,1,101,101,0,6,9,5,0,null,32,32,0,2,5,2,null,null,22,22,0,1,2,null,null,null,31,31,0,3,1,2,null,1,16,16,0,null,1,1]
[null,null,null,null,null,null,null,null,"Dubois Sébastien",null,null,null,1,0.9452054794520548,73,69,4,8,9,1,0,null,8,7,1,null,null,1,null,null,18,15,3,2,3,null,null,null,31,31,0,4,4,null,null,1,16,16,0,2,2]
[null,null,null,null,null,null,null,null,"Blir David",null,null,null,1,1,4,4,0,0,0,1,1,null,4,4,0,null,null,1,1,null,0,0,0]
[null,null,null,null,null,null,null,null,"Macarel Maurice",null,null,null,1,0.85185185185185186,27,23,4,8,13,3,0,null,27,23,4,8,13,3,null,null,0,0,0]
[null,null,null,null,null,null,null,null,"Demailly Pascal",null,null,null,1,0.73076923076923073,26,19,7,1,9,2,0,null,26,19,7,1,9,2,null,null,0,0,0]
[null,null,null,null,null,null,null,null,"Albert Christophe",null,null,null,1,0.68292682926829273,41,28,13,11,2,1,0,null,27,19,8,6,2,null,null,null,14,9,5,5,null,1]
[null,null,null,null,null,null,null,null,"Leduc Thomas",null,null,null,1,0.45945945945945948,37,17,20,14,3,1,0,null,29,14,15,12,3,1,null,null,8,3,5,2]
[null,null,null,null,null,null,null,null,"Ranvin Lori",null,null,null,1,0.77049180327868849,61,47,14,34,9,6,1,null,24,16,8,15,null,3,1,null,15,14,1,10,6,null,null,null,21,17,{"$f":"AM26-AN26","v":4},9,3,3,null,1,1,0,{"$f":"AU26-AV26","v":1}]
[null,null,null,null,null,null,null,null,"Munoz Sébastien",null,null,null,1,0.81481481481481477,54,44,10,19,18,1,0,null,22,16,6,9,7,null,null,null,4,4,0,null,3,null,null,null,28,24,{"$f":"AM27-AN27","v":4},10,8,1,null,null,null,null,{"$f":"AU27-AV27","v":0}]
[null,null,null,null,null,null,null,null,"Berton Thibault",null,null,null,1,0.44444444444444442,18,8,10,0,1,0,0,null,3,0,3,null,null,null,null,null,9,5,4,null,1,null,null,null,6,3,{"$f":"AM28-AN28","v":3},null,null,null,null,null,null,null,{"$f":"AU28-AV28","v":0}]
[null,null,null,null,null,null,null,null,"Darquet Sylvain",null,null,null,1,0.96666666666666667,90,87,3,0,4,4,0,null,29,27,2,null,null,1,null,null,26,26,0,null,1,null,null,null,21,20,{"$f":"AM29-AN29","v":1},null,3,3,null,1,14,14,{"$f":"AU29-AV29","v":0}]
[null,null,null,null,null,null,null,null,"Défossez Rémi",null,null,null,1,0.72727272727272729,66,48,18,2,11,5,0,null,8,4,4,1,3,null,null,null,20,13,7,null,4,1,null,null,25,21,{"$f":"AM30-AN30","v":4},1,3,4,null,1,13,10,{"$f":"AU30-AV30","v":3},null,1]
[null,null,null,null,null,null,null,null,"Baron Stéphane",null,null,null,1,0.83333333333333337,12,10,2,1,0,1,0,null,12,10,2,1,null,1,null,null,0,0,0]
[null,null,null,null,null,null,null,null,"Colcy Ludovic",null,null,null,1,0.8571428571428571,14,12,2,0,1,3,0,null,14,12,2,null,1,3,null,null,0,0,0]
[null,null,null,null,null,null,null,null,"Macarel Julien",null,null,null,1,0.5,6,3,3,1,1,2,0,null,6,3,3,1,1,2,null,null,0,0,0]
[null,null,null,null,null,null,null,null,"Marcheux Jérémy",null,null,null,1,1,1,1,0,0,0,0,0,null,1,1,0,null,null,null,null,null,0,0,0]
[null,null,null,null,null,null,null,null,"Beyaert Antoine",null,null,null,1,0.90909090909090906,66,60,6,2,3,5,0,null,25,24,1,2,1,null,null,null,26,26,0,null,1,3,null,null,15,10,{"$f":"AM35-AN35","v":5},null,1,2,null,null,null,null,{"$f":"AU35-AV35","v":0}]
[null,null,null,null,null,null,null,null,"Ledoux Alexis",null,null,null,1,0.90476190476190477,84,76,8,28,18,8,0,null,18,16,2,5,4,null,null,null,27,27,0,13,5,2,null,null,23,20,{"$f":"AM36-AN36","v":3},3,6,3,null,1,16,13,{"$f":"AU36-AV36","v":3},7,3,3]
[null,null,null,null,null,null,null,null,"Ranvin Rémi",null,null,null,1,0.76923076923076927,26,20,6,1,1,1,0,null,14,13,1,null,1,1,null,null,9,7,2,1,null,null,null,null,3,0,{"$f":"AM37-AN37","v":3},null,null,null,null,null,null,null,{"$f":"AU37-AV37","v":0}]
[null,null,null,null,null,null,null,null,"Dieval Samuel",null,null,null,1,0.6,5,3,2,2,0,0,0,null,5,3,2,2,null,null,null,null,0,0,0]
[null,null,null,null,null,null,null,null,"Duflot Alexandre",null,null,null,1,0.85,20,17,3,1,3,3,1,null,14,12,{"$f":"W39-X39","v":2},1,3,2,1,null,0,0,{"$f":"AE39-AF39","v":0},null,null,null,null,null,null,null,null,null,null,null,null,1,6,5,{"$f":"AU39-AV39","v":1},null,null,1]
[null,null,null,null,null,null,null,null,"Larouette Yann",null,null,null,1,0.85964912280701755,57,49,8,1,4,1,0,null,null,null,null,null,null,null,null,null,25,17,{"$f":"AE40-AF40","v":8},null,1,null,null,null,30,30,{"$f":"AM40-AN40","v":0},1,3,1,null,null,2,2,{"$f":"AU40-AV40","v":0}]
[null,null,null,null,null,null,null,null,"Bosco Alexis",null,null,null,1,0.5,6,3,3,1,1,0,0,null,null,null,null,null,null,null,null,null,6,3,3,1,1]
[null,null,null,null,null,null,null,null,"Lanterne Erwan",null,null,null,1,0.89473684210526316,38,34,3,2,4,7,0,null,null,null,null,null,null,null,null,null,26,23,3,1,3,3,null,null,null,null,null,null,null,null,null,1,12,11,null,1,1,4]
[null,null,null,null,null,null,null,null,"Aince Philippe",null,null,null,1,0,3,0,3,0,0,0,0,null,null,null,null,null,null,null,null,null,3,0,3]
[null,null,null,null,null,null,null,null,"Mascré Ghislain",null,null,null,1,0.33333333333333331,3,1,2,0,1,0,0,null,null,null,null,null,null,null,null,null,2,1,1,null,1,null,null,null,1,0,{"$f":"AM44-AN44","v":1},null,null,null,null,null,null,null,{"$f":"AU44-AV44","v":0}]
[null,null,null,null,null,null,null,null,"Dupont Kévin",null,null,null,1,0.54166666666666663,24,13,11,7,5,1,0,null,null,null,null,null,null,null,null,null,3,1,2,null,null,null,null,null,10,7,{"$f":"AM45-AN45","v":3},4,5,null,null,1,11,5,{"$f":"AU45-AV45","v":6},3,null,1]
[null,null,null,null,null,null,null,null,"Carette Cédric",null,null,null,1,0.66666666666666663,3,2,1,0,0,0,0,null,null,null,null,null,null,null,null,null,2,2,0,null,null,null,null,null,1,0,{"$f":"AM46-AN46","v":1},null,null,null,null,null,null,null,{"$f":"AU46-AV46","v":0}]
[null,null,null,null,null,null,null,null,"Revaux Sylvain",null,null,null,1,1,1,1,0,0,0,0,0,null,null,null,null,null,null,null,null,null,1,1,0]
[null,null,null,null,null,null,null,null,"Amarias Yannick",null,null,null,1,0,1,0,2,0,0,0,0,null,null,null,null,null,null,null,null,null,1,0,1,null,null,null,null,null,0,0,{"$f":"(AM48-AN48)+1","v":1},null,null,null,null,null,null,null,{"$f":"(AU48-AV48)","v":0}]
[null,null,null,null,null,null,null,null,"Courtois Kévin",null,null,null,1,0.7142857142857143,7,5,2,0,0,1,0,null,null,null,null,null,null,null,null,null,1,0,1,null,null,null,null,null,6,5,{"$f":"AM49-AN49","v":1},null,null,1,null,null,null,null,{"$f":"AU49-AV49","v":0}]
[null,null,null,null,null,null,null,null,"Waquet Ludovic",null,null,null,1,0.84210526315789469,19,16,3,12,4,0,1,null,null,null,null,null,null,null,null,null,null,null,null,null,null,null,null,null,19,16,3,12,4,null,1,null,null,null,0]
[null,null,null,null,null,null,null,null,"Hot Guillaume",null,null,null,1,0.8,20,16,4,8,2,5,0,null,null,null,null,null,null,null,null,null,null,null,null,null,null,null,null,null,20,16,4,8,2,5,null,null,null,null,0]
[null,null,null,null,null,null,null,null,"Vincent Jérôme",null,null,null,1,0.41176470588235292,17,7,10,2,2,0,0,null,null,null,null,null,null,null,null,null,null,null,null,null,null,null,null,null,9,2,7,1,1,null,null,null,8,5,3,1,1]
[null,null,null,null,null,null,null,null,"Roussel Dimitri",null,null,null,1,0.75,4,3,1,0,0,0,0,null,null,null,null,null,null,null,null,null,null,null,null,null,null,null,null,null,4,3,1,null,null,null,null,null,null,null,0]
[null,null,null,null,null,null,null,null,"Dieval Maxime",null,null,null,1,0,1,0,1,0,0,0,0,null,null,null,null,null,null,null,null,null,null,null,null,null,null,null,null,null,1,0,1,null,null,null,null,null,null,null,0]
[null,null,null,null,null,null,null,null,"Dècle Jérôme",null,null,null,1,0.90625,32,29,3,5,5,6,0,null,null,null,null,null,null,null,null,null,0,0,0,null,null,null,null,null,18,17,1,3,3,2,null,1,14,12,2,2,2,4]
[null,null,null,null,null,null,null,null,"Borck Stéphane",null,null,null,null,0.6,10,6,4,1,0,0,0,null,null,null,null,null,null,null,null,null,null,null,null,null,null,null,null,null,null,null,null,null,null,null,null,1,10,6,4,1]
[null,null,null,null,null,null,null,null,"Capelle Stéphane",null,null,null,null,0.375,8,3,5,1,2,2,0,null,null,null,null,null,null,null,null,null,null,null,null,null,null,null,null,null,null,null,null,null,null,null,null,1,8,3,5,1,2,2]
[null,null,null,null,null,null,null,null,"Gottis Thomas",null,null,null,null,0.5,10,5,5,4,1,1,0,null,null,null,null,null,null,null,null,null,null,null,null,null,null,null,null,null,null,null,null,null,null,null,null,null,10,5,5,4,1,1]
[null,null,null,null,null,null,null,null,"Delplanque Maxime",null,null,null,null,0.33333333333333331,3,1,2,0,1,0,0,null,null,null,null,null,null,null,null,null,null,null,null,null,null,null,null,null,null,null,null,null,null,null,null,null,3,1,2,null,1]
[null,null,null,null,null,null,null,null,"Levi Cédric",null,null,null,null,0.81818181818181823,11,9,2,2,5,2,0,null,null,null,null,null,null,null,null,null,null,null,null,null,null,null,null,null,null,null,null,null,null,null,null,null,11,9,2,2,5,2]
[null,null,null,null,null,null,null,null,"Defossez Aurélien",null,null,null,null,1,3,3,0,0,0,0,0,null,null,null,null,null,null,null,null,null,null,null,null,null,null,null,null,null,null,null,null,null,null,null,null,null,3,3,0]
[null,null,null,null,null,null,null,null,"Pitarch Boris",null,null,null,null,0.6,5,3,2,0,0,1,0,null,null,null,null,null,null,null,null,null,null,null,null,null,null,null,null,null,null,null,null,null,null,null,null,null,5,3,2,null,null,1]
[null,null,null,null,null,null,null,null,null,null,null,null,null,{"$error":"#DIV/0!"},0,{"$f":"X63+AF63+AN63+AV63","v":0},0,0,0,0,0,null,null,null,null,null,null,null,null,null,null,null,null,null,null,null,null,null,null,null,null,null,null,null,null,null,null,null,0]
[null,null,null,null,null,null,null,null,null,null,null,null,null,{"$error":"#DIV/0!"},{"$f":"W64+AE64+AM64+AU64","v":0},0,0,0,0,0,0,null,null,null,null,null,null,null,null,null,null,null,null,null,null,null,null,null,null,null,null,null,null,null,null,null,null,null,0]
[null,null,null,null,null,null,null,null,null,null,null,null,null,{"$error":"#DIV/0!"},{"$f":"W65+AE65+AM65+AU65","v":0},0,0,0,0,0,0,null,null,null,null,null,null,null,null,null,0,0,{"$f":"AE65-AF65","v":0}]
[null,null,null,null,null,null,null,null,null,null,null,null,{"$f":"SUM(M15:M65)","v":41},null,{"$f":"SUM(O15:O65)","v":1404},1167,237,202,167,96,4,null,{"$f":"SUM(W15:W65)","v":428},352,76,69,56,28,3,null,{"$f":"SUM(AE15:AE65)","v":355},299,56,42,35,16,0,null,{"$f":"SUM(AM15:AM65)","v":404},340,65,66,54,29,1,{"$f":"SUM(AT15:AT65)","v":14},{"$f":"SUM(AU15:AU65)","v":217},176,40,25,22,23,0]

{"sheet":"Forme Buteurs A","index":15,"n_rows":41,"n_cols":44,"rows_kept":41,"cut":false,"hidden":false,"merged":[[0,0,0,38],[1,0,1,38],[2,0,2,38],[4,1,4,4],[4,12,4,14],[4,24,4,26],[13,7,13,10],[6,1,6,4],[6,13,6,16],[6,25,6,28],[10,0,10,38],[12,11,12,25],[12,26,12,43]]}
["ASSOCIATION SPORTIVE DE CERISY GAILLY"]
["SAISON SENIORS 2011-2012"]
["SUIVI STATISTIQUE - SENIORS A"]
[]
[null,"Championnats :",null,null,null,"1ère division / 3ème division",null,null,null,null,null,null,"Stade : ",null,null,"rue du marais - 80800 Cerisy",null,null,null,null,null,null,null,null,"Site internet : ",null,null,"as-cerisy.footeo.com"]
[]
[null,"Entraîneur :",null,null,null,"DUPUTEL David",null,null,null,null,null,null,null,"Adjoint : ",null,null,null,"DUBOIS Sébastien",null,null,null,null,null,null,null,"Coach B :",null,null,null,"DEFOSSEZ Martial"]
[null,null,null,null,null,"duputel.david@gmail.com",null,null,null,null,null,null,null,null,null,null,null,"sebastien.dubois@aerolia.com",null,null,null,null,null,null,null,null,null,null,null,"martial.defossez@wanadoo.fr"]
[null,null,null,null,null,"Tél : 03.22.96.00.51 / 06.17.16.09.47",null,null,null,null,null,null,null,null,null,null,null,"Tél : 03.22.05.83.80 / 06.73.82.67.81",null,null,null,null,null,null,null,null,null,null,null,"Tél : 03.22.76.61.50"]
[]
[]
[]
[null,null,null,null,null,null,null,null,null,null,null,2011,null,null,null,null,null,null,null,null,null,null,null,null,null,null,2012]
[null,null,null,null,null,null,null,"NOMS / PRENOMS",null,null,null,"2011-08-28","2011-09-04","2011-09-11","2011-09-18","2011-09-25","2011-10-02","2011-10-09","2011-10-16","2011-10-23","2011-10-30","2011-11-01","2011-11-06","2011-11-13","2011-11-26","2011-12-04","2012-01-08"]
[null,null,null,null,null,null,null,"Ledoux Alexis",null,null,{"$f":"SUM(L15:AR15)","v":7},null,null,null,null,2,1,null,null,null,null,null,null,null,2,1,1]
[null,null,null,null,null,null,null,"Gottis Thomas",null,null,4,1,1,null,1,null,null,null,null,null,null,null,null,null,1]
[null,null,null,null,null,null,null,"Dupont Kévin",null,null,3,1,null,null,null,1,null,null,null,1]
[null,null,null,null,null,null,null,"Dècle Jérôme",null,null,2,null,null,null,null,1,null,null,null,null,1]
[null,null,null,null,null,null,null,"Dubois Sébastien",null,null,2,null,null,null,null,null,null,null,null,null,null,null,2]
[null,null,null,null,null,null,null,"Levi Cédric",null,null,2,null,null,null,null,1,null,null,null,null,null,null,null,1]
[null,null,null,null,null,null,null,"Jérôme Vincent",null,null,1,null,null,null,null,null,null,null,1]
[null,null,null,null,null,null,null,"Lucquet Eric",null,null,1,null,null,null,null,null,null,null,null,null,1]
[null,null,null,null,null,null,null,"Capelle Stéphane",null,null,1,null,null,null,null,null,null,null,null,null,1]
[null,null,null,null,null,null,null,"Lanterne Erwan",null,null,1,null,null,null,null,null,null,null,null,null,null,null,null,1]
[null,null,null,null,null,null,null,"Borck Stéphane",null,null,1,null,null,null,null,null,null,null,null,null,null,null,null,null,1]
[null,null,null,null,null,null,null,null,null,null,0]
[null,null,null,null,null,null,null,null,null,null,0]
[null,null,null,null,null,null,null,null,null,null,0]
[null,null,null,null,null,null,null,null,null,null,0]
[null,null,null,null,null,null,null,null,null,null,0]
[null,null,null,null,null,null,null,null,null,null,0]
[null,null,null,null,null,null,null,null,null,null,0]
[null,null,null,null,null,null,null,null,null,null,0]
[null,null,null,null,null,null,null,null,null,null,0]
[null,null,null,null,null,null,null,null,null,null,0]
[null,null,null,null,null,null,null,null,null,null,0]
[null,null,null,null,null,null,null,null,null,null,0]
[null,null,null,null,null,null,null,null,null,null,0]
[null,null,null,null,null,null,null,null,null,null,0]
[]
[null,null,null,null,null,null,null,null,null,null,{"$f":"SUM(K15:K40)","v":25},{"$f":"SUM(L15:L40)","v":2},{"$f":"SUM(M15:M40)","v":1},0,1,5,1,0,1,1,3,0,2,2,4,1,1,0,0,0,0,0,0,0,0,0,0,0,0,0,0,0,0,0]

{"sheet":"Forme Passeurs A","index":16,"n_rows":41,"n_cols":44,"rows_kept":41,"cut":false,"hidden":false,"merged":[[0,0,0,38],[1,0,1,38],[2,0,2,38],[4,1,4,4],[4,12,4,14],[4,24,4,26],[13,7,13,10],[6,1,6,4],[6,13,6,16],[6,25,6,28],[10,0,10,38],[12,11,12,25],[12,26,12,43]]}
["ASSOCIATION SPORTIVE DE CERISY GAILLY"]
["SAISON SENIORS 2011-2012"]
["SUIVI STATISTIQUE - SENIORS A"]
[]
[null,"Championnats :",null,null,null,"1ère division / 3ème division",null,null,null,null,null,null,"Stade : ",null,null,"rue du marais - 80800 Cerisy",null,null,null,null,null,null,null,null,"Site internet : ",null,null,"as-cerisy.footeo.com"]
[]
[null,"Entraîneur :",null,null,null,"DUPUTEL David",null,null,null,null,null,null,null,"Adjoint : ",null,null,null,"DUBOIS Sébastien",null,null,null,null,null,null,null,"Coach B :",null,null,null,"DEFOSSEZ Martial"]
[null,null,null,null,null,"duputel.david@gmail.com",null,null,null,null,null,null,null,null,null,null,null,"sebastien.dubois@aerolia.com",null,null,null,null,null,null,null,null,null,null,null,"martial.defossez@wanadoo.fr"]
[null,null,null,null,null,"Tél : 03.22.96.00.51 / 06.17.16.09.47",null,null,null,null,null,null,null,null,null,null,null,"Tél : 03.22.05.83.80 / 06.73.82.67.81",null,null,null,null,null,null,null,null,null,null,null,"Tél : 03.22.76.61.50"]
[]
[]
[]
[null,null,null,null,null,null,null,null,null,null,null,2011,null,null,null,null,null,null,null,null,null,null,null,null,null,null,2012]
[null,null,null,null,null,null,null,"NOMS / PRENOMS",null,null,null,"2011-08-28","2011-09-04","2011-09-11","2011-09-18","2011-09-25","2011-10-02","2011-10-09","2011-10-16","2011-10-23","2011-10-30","2011-11-01","2011-11-06","2011-11-13","2011-11-26","2011-12-04","2012-01-08"]
[null,null,null,null,null,null,null,"Lévi Cédric",null,null,{"$f":"SUM(L15:AR15)","v":5},null,1,null,null,1,1,null,1,null,null,null,null,null,null,1]
[null,null,null,null,null,null,null,"Ledoux Alexis",null,null,{"$f":"SUM(L16:AR16)","v":3},null,null,null,1,null,null,null,null,null,null,null,1,1]
[null,null,null,null,null,null,null,"Dubois Sébastien",null,null,{"$f":"SUM(L17:AR17)","v":2},1,null,null,null,1]
[null,null,null,null,null,null,null,"Delplanque Maxime",null,null,{"$f":"SUM(L18:AR18)","v":2},null,null,null,null,1,null,null,null,1]
[null,null,null,null,null,null,null,"Terrier Florent",null,null,{"$f":"SUM(L19:AR19)","v":2},null,null,null,null,null,null,null,null,null,1,null,1]
[null,null,null,null,null,null,null,"Capelle Stéphane",null,null,{"$f":"SUM(L20:AR20)","v":2},null,null,null,null,null,null,null,null,null,null,null,null,1,null,null,1]
[null,null,null,null,null,null,null,"Hénocque Ludovic",null,null,{"$f":"SUM(L21:AR21)","v":1},1]
[null,null,null,null,null,null,null,"Defossez Rémi",null,null,{"$f":"SUM(L22:AR22)","v":1},null,null,null,null,1]
[null,null,null,null,null,null,null,"Dècle Jérôme",null,null,{"$f":"SUM(L23:AR23)","v":1},null,null,null,null,null,null,null,null,null,1]
[null,null,null,null,null,null,null,"Lanterne Erwan",null,null,{"$f":"SUM(L24:AR24)","v":1},null,null,null,null,null,null,null,null,null,null,null,null,null,1]
[null,null,null,null,null,null,null,"Gottis Thomas",null,null,{"$f":"SUM(L25:AR25)","v":1},null,null,null,null,null,null,null,null,null,null,null,null,null,1]
[null,null,null,null,null,null,null,"Jérôme Vincent",null,null,{"$f":"SUM(L26:AR26)","v":1},null,null,null,null,null,null,null,null,null,null,null,null,null,1]
[null,null,null,null,null,null,null,null,null,null,{"$f":"SUM(L27:AR27)","v":0}]
[null,null,null,null,null,null,null,null,null,null,0]
[null,null,null,null,null,null,null,null,null,null,0]
[null,null,null,null,null,null,null,null,null,null,0]
[null,null,null,null,null,null,null,null,null,null,0]
[null,null,null,null,null,null,null,null,null,null,0]
[null,null,null,null,null,null,null,null,null,null,0]
[null,null,null,null,null,null,null,null,null,null,0]
[null,null,null,null,null,null,null,null,null,null,0]
[null,null,null,null,null,null,null,null,null,null,0]
[null,null,null,null,null,null,null,null,null,null,0]
[null,null,null,null,null,null,null,null,null,null,0]
[null,null,null,null,null,null,null,null,null,null,0]
[]
[null,null,null,null,null,null,null,null,null,null,{"$f":"SUM(K15:K40)","v":22},{"$f":"SUM(L15:L40)","v":2},{"$f":"SUM(M15:M40)","v":1},0,1,4,1,0,1,1,2,0,2,2,3,1,1,0,0,0,0,0,0,0,0,0,0,0,0,0,0,0,0,0]

{"sheet":"Résultats 2006-2011 - A","index":17,"n_rows":193,"n_cols":14,"rows_kept":193,"cut":false,"hidden":false,"merged":[[9,10,9,11],[0,0,0,8],[0,10,1,13],[3,10,3,11],[5,10,5,11],[7,10,7,11],[30,10,30,13],[11,10,11,11],[12,10,12,11],[13,10,13,11],[19,10,19,11],[16,10,16,11],[14,10,14,11],[15,10,15,11],[17,10,17,11],[18,10,18,11],[20,10,20,11],[22,10,22,13],[26,10,26,13],[24,10,24,13],[27,10,27,13],[25,10,25,13],[46,10,46,13],[54,10,54,13],[31,10,31,13],[39,10,39,13],[40,10,40,13],[41,10,41,13],[42,10,42,13],[44,10,44,13],[45,10,45,13],[32,10,32,13],[34,10,34,13],[35,10,35,13],[36,10,36,13],[37,10,37,13],[29,10,29,13],[56,10,56,13],[57,10,57,13],[47,10,47,13],[49,10,49,13],[50,10,50,13],[51,10,51,13],[52,10,52,13],[55,10,55,13],[67,10,67,13],[59,10,59,13],[60,10,60,13],[62,10,62,13],[64,10,64,13],[65,10,65,13],[66,10,66,13],[61,10,61,13]]}
["Résultats 2006 - 2001 Equipe A",null,null,null,null,null,null,null,null,null,"DEPUIS LA SAISON 2006-2007"]
["Jour","Mois","Années","Equipe Domicile","Equipe Extérieur","Score","Score","Compétitions","Résultats"]
[10,9,1989,"Cerisy A","Flesselles",3,1,"Championnnat 2ème division","Victoire",1]
[17,9,1989,"Querrieu","Cerisy A",2,3,"Championnnat 2ème division","Victoire",1,"Victoires ",null,{"$f":"N4/N10","v":0.6},99]
[24,9,1989,"Cerisy A","Estrées Mons",2,0,"Coupe de la Somme","Victoire",1]
[1,10,1989,"Cerisy A","Bray sur Somme",5,0,"Championnnat 2ème division","Victoire",1,"Nuls",null,{"$f":"N6/N10","v":0.15151515151515152},25]
[8,10,1989,"Ribemont ","Cerisy A",3,2,"Championnnat 2ème division","Défaite",1]
[15,10,1989,"Cerisy A","Etinehem",2,0,"Coupe de Picardie","Victoire",1,"Défaites",null,{"$f":"N8/N10","v":0.24848484848484848},41]
[22,10,1989,"Cerisy A","Amiens St Maurice",5,0,"Championnnat 2ème division","Victoire",1]
[29,10,1989,"Sailly Saillisel","Cerisy A",2,0,"Coupe de la Somme","Défaite",1,"Nbre de Matches",null,{"$f":"M4+M6+M8","v":1},{"$f":"N4+N6+N8","v":165}]
[5,11,1989,"Corbie","Cerisy A",0,3,"Championnnat 2ème division","Victoire",1]
[19,11,1989,"Cerisy A","Picquigny",1,1,"Championnnat 2ème division","Nul",1,"Championnats",null,{"$f":"SUM(M13:M16)","v":116},{"$f":"M12/N10","v":0.70303030303030301}]
[3,12,1989,"Péronne 2","Cerisy A",1,3,"Championnnat 2ème division","Victoire",1,"1ère Division",null,95]
[10,12,1989,"Cerisy A","Doullens 2",2,1,"Championnnat 2ème division","Victoire",1,"Promo 1ère Division",null,21]
[7,1,1990,"Portugais Albert","Cerisy A",6,3,"Championnnat 2ème division","Défaite",1,"2ème Division"]
[21,1,1990,"Cerisy A","Naours",1,1,"Championnnat 2ème division","Nul",1,"3ème Division"]
[4,2,1990,"Flesselles","Cerisy A",1,6,"Championnnat 2ème division","Victoire",1,"Coupe de France",null,16,{"$f":"M17/N10","v":9.696969696969697E-2}]
[11,2,1990,"Cerisy A","Querrieu",2,2,"Championnnat 2ème division","Nul",1,"Coupe de Picardie",null,2,{"$f":"M18/N10","v":1.2121212121212121E-2}]
[18,2,1990,"Bray sur Somme","Cerisy A",2,6,"Championnnat 2ème division","Victoire",1,"Coupe de la Somme",null,14,{"$f":"M19/N10","v":8.4848484848484854E-2}]
[25,2,1990,"Cerisy A","Ribemont",2,0,"Championnnat 2ème division","Victoire",1,"Challenge Galland",null,6,{"$f":"M20/N10","v":3.6363636363636362E-2}]
[18,3,1990,"Amiens St Maurice","Cerisy A",0,2,"Championnnat 2ème division","Victoire",1,"Challenge du District",null,11,{"$f":"M21/N10","v":6.6666666666666666E-2}]
[25,3,1990,"Cerisy A","Corbie",10,1,"Championnnat 2ème division","Victoire",1,null,null,{"$f":"M12+M17+M18+M19+M20+M21","v":165}]
[8,4,1990,"Picquigny","Cerisy A",0,2,"Championnnat 2ème division","Victoire",1,"Séries"]
[22,4,1990,"Cerisy A","Péronne 2",6,1,"Championnnat 2ème division","Victoire",1]
[29,4,1990,"Doullens 2","Cerisy A",1,1,"Championnnat 2ème division","Nul",1,"Victoires Consécutives"]
[13,5,1990,"Cerisy A","Portugais Albert",3,1,"Championnnat 2ème division","Victoire",1,11]
[20,5,1990,"Naours","Cerisy A",1,2,"Championnnat 2ème division","Victoire",1,"Période"]
[27,8,2006,"Hombleux","Cerisy A",1,6,"Coupe de France","Victoire",1,"13/04/2008 au 21/09/2008"]
[3,9,2006,"Cerisy A","Amiens St Maurice",3,4,"Championnat Promotion 1ère","Défaite",1]
[10,9,2006,"Allonvilles","Cerisy A",0,0,"Championnat Promotion 1ère","Nul",1,"Nuls Consécutifs"]
[17,9,2006,"Cerisy A","Holnon",2,0,"Coupe de France","Victoire",1,3]
[24,9,2006,"Cerisy A","Amiens RC 2",2,1,"Championnat Promotion 1ère","Victoire",1,"Période"]
[1,10,2006,"Cerisy A","Corbie",3,1,"Championnat Promotion 1ère","Victoire",1,"04/09/2011 au 18/09/2011"]
[8,10,2006,"Cerisy A","Ercheu Nesle",1,3,"Coupe de France","Défaite",1]
[15,10,2006,"USO Albert","Cerisy A",0,5,"Championnat Promotion 1ère","Victoire",1,"Défaites Consécutives"]
[22,10,2006,"Cerisy A","Sailly Saillisel",0,4,"Coupe de la Somme","Défaite",1,6]
[29,10,2006,"Cerisy A","Chaulnes",0,1,"Championnat Promotion 1ère","Défaite",1,"Période"]
[5,11,2006,"Albert Sport 2","Cerisy A",2,3,"Championnat Promotion 1ère","Victoire",1,"20/10/2009 au 21/02/2010"]
[12,11,2006,"Amiens FC 2","Cerisy A",1,4,"Championnat Promotion 1ère","Victoire",1]
[19,11,2006,"Cerisy A","Blangy Tronville",4,0,"Championnat Promotion 1ère","Victoire",1,"Matches Consécutifs sans Défaite"]
[26,11,2006,"Cerisy A","USO Albert",3,0,"Challenge du District","Victoire",1,21]
[3,12,2006,"Plessiers","Cerisy A",1,1,"Championnat Promotion 1ère","Nul",1,"Période"]
[17,12,2006,"Amiens St Maurice","Cerisy A",0,3,"Championnat Promotion 1ère","Victoire",1,"05/11/2006 au 20/05/2007"]
[14,1,2007,"Saint Ouen OL","Cerisy A",0,1,"Challenge du District","Victoire",1]
[4,2,2007,"Cerisy A","Blangy Tronville",4,0,"Challenge du District","Victoire",1,"Matches Consécutifs sans Victoire"]
[18,2,2007,"Cerisy A","Allonvilles",1,0,"Championnat Promotion 1ère","Victoire",1,6]
[25,2,2007,"Cerisy A","La Montoye FC",1,1,"Championnat Promotion 1ère","Nul",1,"Période"]
[11,3,2007,"Corbie","Cerisy A",0,3,"Championnat Promotion 1ère","Victoire",1,"20/10/2009 au 21/02/2010"]
[18,3,2007,"Amiens RC 2","Cerisy A",0,0,"Championnat Promotion 1ère","Nul",1]
[25,3,2007,"Cerisy A","USO Albert",5,0,"Championnat Promotion 1ère","Victoire",1,"Matches Consécutifs sans Nul"]
[1,4,2007,"Chaulnes","Cerisy A",2,2,"Championnat Promotion 1ère","Nul",1,29]
[8,4,2007,"Daours","Cerisy A",0,3,"Challenge du District","Victoire",1,"Période"]
[22,4,2007,"Blangy Tronville","Cerisy A",0,0,"Championnat Promotion 1ère","Nul",1,"08/03/2009 au 07/03/2010"]
[29,4,2007,"Sainte Emilie","Cerisy A",1,2,"Challenge du District","Victoire",1]
[6,5,2007,"Cerisy A","Plessiers",4,0,"Championnat Promotion 1ère","Victoire",1,"Matches Consécutifs sans Victoire en Champ."]
[13,5,2007,"La Montoye","Cerisy A",0,3,"Championnat Promotion 1ère","Victoire",1,5]
[17,5,2007,"Fresseneville","Cerisy A",1,4,"Challenge du District","Victoire",1,"Période"]
[20,5,2007,"Cerisy A","Albert Sport 2",2,1,"Championnat Promotion 1ère","Victoire",1,"11/10/2009 au 21/02/2010"]
[16,6,2007,"Hombleux","Cerisy A",2,1,"Coupe de France","Défaite",1]
[2,9,2007,"Cerisy A","La Montoye FC",2,2,"Championnat 1ère Division","Nul",1,"Matches Consécutifs sans Nul en Champ."]
[9,9,2007,"Querrieu","Cerisy A",2,1,"Coupe de la Somme","Défaite",1,20]
[16,9,2007,"Englebelmer","Cerisy A",1,0,"Championnat 1ère Division","Défaite",1,"Période"]
[30,9,2007,"Cerisy A","Amiens Portugais",4,0,"Championnat 1ère Division","Victoire",1,"06/04/2008 au 07/03/2010"]
[21,10,2007,"Albert Sport 2","Cerisy A",0,2,"Challenge du District","Victoire",1]
[28,10,2007,"Cerisy A","Moreuil",2,0,"Championnat 1ère Division","Victoire",1,"Matches Consécutifs sans Défaite en Champ."]
[4,11,2007,"Villiers Bretonneux","Cerisy A",1,0,"Championnat 1ère Division","Défaite",1,16]
[10,11,2007,"Péronne 2","Cerisy A",1,2,"Championnat 1ère Division","Victoire",1,"Période"]
[18,11,2007,"Cerisy A","Montdidier USC 2",3,1,"Championnat 1ère Division","Victoire",1,"05/11/2006 au 02/09/2007"]
[25,11,2007,"Villers Bocage","Cerisy A",0,3,"Challenge du District","Victoire",1]
[6,1,2008,"Sainte Emilie","Cerisy A",1,1,"Championnat 1ère Division","Nul",1]
[13,1,2008,"Roye 3","Cerisy A",2,1,"Challenge du District","Défaite",1]
[10,2,2008,"La Montoye","Cerisy A",0,1,"Championnat 1ère Division","Victoire",1]
[17,2,2008,"Cerisy A","Englebelmer",6,1,"Championnat 1ère Division","Victoire",1]
[24,2,2008,"Amiens Portugais","Cerisy A",1,1,"Championnat 1ère Division","Nul",1]
[2,3,2008,"Cerisy A","Rosières",3,0,"Championnat 1ère Division","Victoire",1]
[30,3,2008,"Moreuil","Cerisy A",1,1,"Championnat 1ère Division","Nul",1]
[6,4,2008,"Cerisy A","Péronne 2",1,2,"Championnat 1ère Division","Défaite",1]
[13,4,2008,"Cerisy A","Saleux",5,0,"Championnat 1ère Division","Victoire",1]
[20,4,2008,"Montdidier USC 2","Cerisy A",0,1,"Championnat 1ère Division","Victoire",1]
[27,4,2008,"Cerisy A","Sainte Emilie",8,0,"Championnat 1ère Division","Victoire",1]
[4,5,2008,"Rosières","Cerisy A",0,3,"Championnat 1ère Division","Victoire",1]
[18,5,2008,"Vers sur Selle","Cerisy A",0,3,"Championnat 1ère Division","Victoire",1]
[25,5,2008,"Cerisy A","Villers Bretonneux",2,0,"Championnat 1ère Division","Victoire",1]
[31,5,2008,"Cerisy A","Coucy le Château",7,2,"Coupe de France","Victoire",1]
[31,8,2008,"Méaulte","Cerisy A",1,3,"Coupe de France","Victoire",1]
[7,9,2008,"Vers sur Selle","Cerisy A",1,5,"Championnat 1ère Division","Victoire",1]
[14,9,2008,"Cerisy A","Albert Sport 2",3,0,"Championnat 1ère Division","Victoire",1]
[21,9,2008,"Cerisy A","Buire Hirson",1,1,"Coupe de France","Victoire",1]
[28,9,2008,"Moreuil","Cerisy A",2,0,"Championnat 1ère Division","Défaite",1]
[5,10,2008,"Cerisy A","Ribécourt",2,3,"Coupe de France","Défaite",1]
[12,10,2008,"Cerisy A","Saleux",2,0,"Championnat 1ère Division","Victoire",1]
[19,10,2008,"Amiens RIF 2","Cerisy A",1,1,"Coupe de la Somme","Victoire",1]
[26,10,2008,"Amiens Portugais","Cerisy A",0,1,"Championnat 1ère Division","Victoire",1]
[2,11,2008,"Cerisy A","Péronne 2",1,0,"Championnat 1ère Division","Victoire",1]
[9,11,2008,"Cerisy A","Ham",4,0,"Championnat 1ère Division","Victoire",1]
[11,11,2008,"Cerisy A","Villers Bretonneux",3,2,"Coupe de la Somme","Victoire",1]
[16,11,2008,"Sailly Saillisel","Cerisy A",3,0,"Championnat 1ère Division","Défaite",1]
[30,11,2008,"Cerisy A","Flesselles",6,3,"Championnat 1ère Division","Victoire",1]
[21,12,2008,"Poulainville","Cerisy A",0,4,"Coupe de la Somme","Victoire",1]
[1,2,2009,"Templier Oisemont","Cerisy A",0,3,"Challenge Galland","Victoire",1]
[15,2,2009,"Sainte Emilie","Cerisy A",2,1,"Championnat 1ère Division","Défaite",1]
[22,2,2009,"Cerisy A","Vers sur Selle",3,0,"Championnat 1ère Division","Victoire",1]
[1,3,2009,"Englebelmer","Cerisy A",0,0,"Championnat 1ère Division","Nul",1]
[8,3,2009,"Albert Sport 2","Cerisy A",1,0,"Championnat 1ère Division","Défaite",1]
[15,3,2009,"Cerisy A","Moreuil",3,1,"Championnat 1ère Division","Victoire",1]
[22,3,2009,"Saleux","Cerisy A",2,1,"Championnat 1ère Division","Défaite",1]
[29,3,2009,"Cerisy A","Avenir Croisien",5,2,"Challenge Galland","Victoire",1]
[5,4,2009,"Cerisy A","Amiens Portugais",1,2,"Championnat 1ère Division","Défaite",1]
[13,4,2009,"Cerisy A","Amiens AC",0,4,"Coupe de la Somme","Défaite",1]
[19,4,2009,"Ham","Cerisy A",0,1,"Championnat 1ère Division","Victoire",1]
[26,4,2009,"Cerisy A","Sailly Saillisel",4,1,"Championnat 1ère Division","Victoire",1]
[3,5,2009,"Flesselles","Cerisy A",1,0,"Championnat 1ère Division","Défaite",1]
[8,5,2009,"Miannay","Cerisy A",2,1,"Challenge Galland","Défaite",1]
[10,5,2009,"Cerisy A","Sainte Emilie",1,0,"Championnat 1ère Division","Victoire",1]
[17,5,2009,"Péronne 2","Cerisy A",2,3,"Championnat 1ère Division","Victoire",1]
[24,5,2009,"Cerisy A","Englebelmer",2,1,"Championnat 1ère Division","Victoire",1]
[14,6,2009,"Moislains","Cerisy A",1,5,"Coupe de France","Victoire",1]
[30,8,2009,"Cerisy A","Amiens FC ",0,2,"Coupe de France","Défaite",1]
[6,9,2009,"Ribemont","Cerisy A",2,1,"Championnat 1ère Division","Défaite",1]
[13,9,2009,"Cerisy A","Poulainville",4,1,"Championnat 1ère Division","Victoire",1]
[20,9,2009,"Cerisy A","Allonvilles",4,0,"Coupe de la Somme","Victoire",1]
[27,9,2009,"Amiens AC 3","Cerisy A",0,3,"Championnat 1ère Division","Victoire",1]
[4,10,2009,"Amiens Condorcet","Cerisy A",2,0,"Coupe de la Somme","Défaite",1]
[11,10,2009,"Cerisy A","Amiens RC 2",0,3,"Championnat 1ère Division","Défaite",1]
[18,10,2009,"Cerisy A","Longueau ",1,1,"Coupe de Picardie","Victoire",1]
[25,10,2009,"Sailly Saillisel","Cerisy A",1,0,"Championnat 1ère Division","Défaite",1]
[1,11,2009,"Cerisy A","Guise",3,4,"Coupe de Picardie","Défaite",1]
[11,11,2009,"Englebelmer","Cerisy A",4,2,"Championnat 1ère Division","Défaite",1]
[15,11,2009,"Querrieu","Cerisy A",2,0,"Championnat 1ère Division","Défaite",1]
[22,11,2009,"Saint St Fuscien","Cerisy A",2,1,"Challenge du District","Défaite",1]
[21,2,2010,"Cerisy A","Corbie",3,5,"Championnat 1ère Division","Défaite",1]
[7,3,2010,"Cerisy A","Moreuil",1,0,"Championnat 1ère Division","Victoire",1]
[14,3,2010,"Flesselles","Cerisy A",0,0,"Championnat 1ère Division","Nul",1]
[21,3,2010,"Cerisy A","Ribemont",4,1,"Championnat 1ère Division","Victoire",1]
[4,4,2010,"Cerisy A","Sainte Emilie",1,0,"Championnat 1ère Division","Victoire",1]
[11,4,2010,"Cerisy A","Amiens AC 3",3,0,"Championnat 1ère Division","Victoire",1,"Forfait Amiens"]
[18,4,2010,"Amiens RC 2","Cerisy A",0,0,"Championnat 1ère Division","Nul",1]
[25,4,2010,"Cerisy A","Sailly Saillisel",2,1,"Championnat 1ère Division","Victoire",1]
[2,5,2010,"Sainte Emilie","Cerisy A",1,1,"Championnat 1ère Division","Nul",1]
[9,5,2010,"Cerisy A","Querrieu",0,1,"Championnat 1ère Division","Défaite",1]
[13,5,2010,"Cerisy A","Flesselles",3,0,"Championnat 1ère Division","Victoire",1]
[16,5,2010,"Corbie","Cerisy A",0,4,"Championnat 1ère Division","Victoire",1]
[30,5,2010,"Marchelepot","Cerisy A",1,2,"Coupe de France","Victoire",1]
[6,6,2010,"Cerisy A","Englebelmer",3,0,"Championnat 1ère Division","Victoire",1]
[13,6,2010,"Moreuil","Cerisy A",4,1,"Championnat 1ère Division","Défaite",1]
[28,8,2010,"Le Hamel","Cerisy A",1,2,"Coupe de France","Victoire",1]
[5,9,2010,"Sailly Saillisel","Cerisy A",0,0,"Championnat 1ère Division","Nul",1]
[12,9,2010,"Cerisy A","Longueau 2",1,0,"Championnat 1ère Division","Victoire",1]
[19,9,2010,"Ailly sur Noye","Cerisy A",1,4,"Coupe de la Somme","Victoire",1]
[27,9,2010,"Moreuil","Cerisy A",0,2,"Championnat 1ère Division","Victoire",1]
[3,10,2010,"Marcelcave","Cerisy A",1,5,"Coupe de la Somme","Victoire",1]
[10,10,2010,"Cerisy A","Daours",3,3,"Championnat 1ère Division","Nul",1]
[17,10,2010,"Cerisy A","Blangy Tronville",2,0,"Coupe de la Somme","Victoire",1]
[31,10,2010,"Cerisy A","Amiens Portugais",2,3,"Championnat 1ère Division","Défaite",1]
[7,11,2010,"Cerisy A","Chaulnes",2,1,"Championnat 1ère Division","Victoire",1]
[11,11,2010,"Amiens RC 2","Cerisy A",1,4,"Championnat 1ère Division","Victoire",1]
[28,11,2010,"Cerisy A","Sainte Emilie",4,0,"Championnat 1ère Division","Victoire",1]
[17,1,2011,"US Abbeville","Cerisy A",2,4,"Coupe de la Somme","Victoire",1]
[23,1,2011,"Méaulte","Cerisy A",2,2,"Challenge Galland","Nul",1,"Victoire 7 tàb à 6"]
[30,1,2011,"Amiens Pigeonnier 2","Cerisy A",2,1,"Championnat 1ère Division","Défaite",1]
[6,2,2011,"Englebelmer","Cerisy A",0,2,"Championnat 1ère Division","Victoire",1]
[13,2,2011,"Cerisy A","Sailly Saillisel",2,0,"Championnat 1ère Division","Victoire",1]
[20,2,2011,"Ribemont","Cerisy A",2,0,"Championnat 1ère Division","Défaite",1]
[27,2,2011,"Longueau 2","Cerisy A",4,2,"Championnat 1ère Division","Défaite",1]
[2,3,2011,"Harondel","Cerisy A",2,1,"Coupe de la Somme","Défaite",1]
[6,3,2011,"Cerisy A","Moreuil",2,1,"Championnat 1ère Division","Victoire",1]
[20,3,2011,"Daours","Cerisy A",0,1,"Championnat 1ère Division","Victoire",1]
[27,3,2011,"Cerisy A","Amiens RC 2",2,1,"Championnat 1ère Division","Victoire",1]
[3,4,2011,"Cerisy A","US Abbeville",2,0,"Challenge Galland","Victoire",1]
[10,4,2011,"Chaulnes","Cerisy A",0,1,"Championnat 1ère Division","Victoire",1]
[17,4,2011,"Cerisy A","Amiens Pigeonnier 2",0,0,"Championnat 1ère Division","Nul",1]
[27,4,2011,"Cerisy A","Amiens RC 1",0,0,"Challenge Galland","Nul",1,"Défaite TAB 4 - 3 (1/2  finale)"]
[1,5,2011,"Sainte Emilie","Cerisy A",0,1,"Championnat 1ère Division","Victoire",1]
[8,5,2011,"Cerisy A","Englebelmer",8,1,"Championnat 1ère Division","Victoire",1]
[15,5,2011,"Cerisy A","Ribemont",3,2,"Championnat 1ère Division","Victoire",1]
[28,5,2011,"Amiens Portugais","Cerisy A",1,1,"Championnat 1ère Division","Nul",1]
[11,6,2011,"Cerisy A","Villers Bretonneux",1,0,"Coupe de France","Victoire",1]
[28,8,2011,"Cerisy A","Montdidier Ac",2,1,"Coupe de France","Victoire",1]
[4,9,2011,"Cerisy A","Moreuil",1,1,"Championnat 1ère Division","Nul",1]
[11,9,2011,"Sains St Fuscien","Cerisy A",0,0,"Championnat 1ère Division","Nul",1]
[18,9,2011,"Angy Fc (oise)","Cerisy A",1,1,"Coupe de France","Nul",1,"Victoire 6 tàb à 5"]
[25,9,2011,"Cerisy A","Amiens Pigeonnier 2",5,0,"Championnat 1ère Division","Victoire",1,"match arrêté 35' (joueurs sortis)"]
[2,10,2011,"Cerisy A","Péronne 1",1,0,"Coupe de France","Victoire",1]
[9,10,2011,"Longueau 2","Cerisy A",0,0,"Championnat 1ère Division","Nul",1]
[16,10,2011,"Cerisy A","Ol Saint-Quentin",1,3,"Coupe de France","Défaite",1]
[23,10,2011,"Cerisy A","Saleux",1,4,"Championnat 1ère Division","Défaite",1]
[30,10,2011,"Daours","Cerisy A",2,3,"Championnat 1ère Division","Victoire",1,null,null,{"$f":"SUM(J3:J249)","v":191}]
[1,11,2011,"Montdidier Ac","Cerisy A",1,0,"Coupe de la Somme","Défaite",1]
[6,11,2011,"Cerisy A","Corbie",2,0,"Championnat 1ère Division","Victoire",1]
[13,11,2011,"Querrieu","Cerisy A",1,2,"Championnat 1ère Division","Victoire",1]
[26,11,2011,"Cerisy A","Ribemont",4,1,"Championnat 1ère Division","Victoire",1]
[4,12,2011,"Asp Neslois","Cerisy A",1,1,"Championnat 1ère Division","Nul",1]
[8,1,2012,"Cerisy A","Ailly sur Somme 2",1,2,"Challenge du District","Défaite",1]

{"sheet":"Buteurs Club","index":18,"n_rows":92,"n_cols":36,"rows_kept":92,"cut":false,"hidden":false,"merged":[[10,0,10,38],[12,8,12,12],[0,0,0,38],[1,0,1,38],[2,0,2,38],[4,1,4,4],[4,12,4,14],[4,24,4,26],[6,1,6,4],[6,13,6,16],[6,25,6,28]]}
["ASSOCIATION SPORTIVE DE CERISY GAILLY"]
["SAISON SENIORS 2011-2012"]
["SUIVI STATISTIQUE - SENIORS A & B"]
[]
[null,"Championnats :",null,null,null,"1ère division / 3ème division",null,null,null,null,null,null,"Stade : ",null,null,"rue du marais - 80800 Cerisy",null,null,null,null,null,null,null,null,"Site internet : ",null,null,"as-cerisy.footeo.com"]
[]
[null,"Entraîneur :",null,null,null,"DUPUTEL David",null,null,null,null,null,null,null,"Adjoint : ",null,null,null,"DUBOIS Sébastien",null,null,null,null,null,null,null,"Coach B :",null,null,null,"DEFOSSEZ Martial"]
[null,null,null,null,null,"duputel.david@gmail.com",null,null,null,null,null,null,null,null,null,null,null,"sebastien.dubois@aerolia.com",null,null,null,null,null,null,null,null,null,null,null,"martial.defossez@wanadoo.fr"]
[null,null,null,null,null,"Tél : 03.22.96.00.51 / 06.17.16.09.47",null,null,null,null,null,null,null,null,null,null,null,"Tél : 03.22.05.83.80 / 06.73.82.67.81",null,null,null,null,null,null,null,null,null,null,null,"Tél : 03.22.76.61.50"]
[]
[]
[]
[null,null,null,null,null,null,null,null,"NOMS / PRENOMS",null,null,null,null,null,"1989-1990",null,null,"2006-2007",null,null,"2007-2008",null,null,"2008-2009",null,null,"2009-2010",null,null,"2010-2011",null,null,"2011-2012",null,null,"TOTAUX"]
[null,null,null,null,null,null,null,null,"RANVIN Lori",null,null,null,null,null,null,null,null,8,null,null,20,null,null,15,null,null,11,null,null,9,null,null,7,null,null,{"$f":"SUM(N14:AG14)","v":70}]
[null,null,null,null,null,null,null,null,"MASCRE Ghislain",null,null,null,null,null,2,null,null,null,null,null,8,null,null,12,null,null,20,null,null,14,null,null,null,null,null,56]
[null,null,null,null,null,null,null,null,"LEDOUX Alexis",null,null,null,null,null,null,null,null,21,null,null,null,null,null,9,null,null,13,null,null,3,null,null,7,null,null,53]
[null,null,null,null,null,null,null,null,"ALBERT Christophe",null,null,null,null,null,null,null,null,12,null,null,15,null,null,7,null,null,5,null,null,null,null,null,null,null,null,39]
[null,null,null,null,null,null,null,null,"JOSSE Grégory",null,null,null,null,null,null,null,null,3,null,null,4,null,null,16,null,null,5,null,null,1,null,null,7,null,null,36]
[null,null,null,null,null,null,null,null,"DUPONT Kévin",null,null,null,null,null,null,null,null,null,null,null,5,null,null,6,null,null,5,null,null,11,null,null,8,null,null,35]
[null,null,null,null,null,null,null,null,"LEDUC Thomas",null,null,null,null,null,null,null,null,5,null,null,null,null,null,13,null,null,9,null,null,null,null,null,null,null,null,27]
[null,null,null,null,null,null,null,null,"MOURIER Frédéric",null,null,null,null,null,25,null,null,null,null,null,null,null,null,null,null,null,null,null,null,null,null,null,null,null,null,25]
[null,null,null,null,null,null,null,null,"CARETTE Cédric",null,null,null,null,null,null,null,null,null,null,null,null,null,null,10,null,null,9,null,null,3,null,null,3,null,null,25]
[null,null,null,null,null,null,null,null,"JUREK Raynald",null,null,null,null,null,24,null,null,null,null,null,null,null,null,null,null,null,null,null,null,null,null,null,null,null,null,24]
[null,null,null,null,null,null,null,null,"MUNOZ Sébastien",null,null,null,null,null,null,null,null,null,null,null,null,null,null,12,null,null,2,null,null,9,null,null,null,null,null,23]
[null,null,null,null,null,null,null,null,"HENOCQUE Ludovic",null,null,null,null,null,null,null,null,1,null,null,8,null,null,2,null,null,1,null,null,3,null,null,null,null,null,15]
[null,null,null,null,null,null,null,null,"BERTON Thibault",null,null,null,null,null,null,null,null,null,null,null,null,null,null,4,null,null,1,null,null,5,null,null,5,null,null,15]
[null,null,null,null,null,null,null,null,"BEYAERT François",null,null,null,null,null,null,null,null,null,null,null,null,null,null,11,null,null,2,null,null,null,null,null,null,null,null,13]
[null,null,null,null,null,null,null,null,"BEYAERT Antoine",null,null,null,null,null,null,null,null,3,null,null,3,null,null,5,null,null,null,null,null,1,null,null,null,null,null,12]
[null,null,null,null,null,null,null,null,"LEWILLON Franck",null,null,null,null,null,12,null,null,null,null,null,null,null,null,null,null,null,null,null,null,null,null,null,null,null,null,12]
[null,null,null,null,null,null,null,null,"DUBOIS Sébastien",null,null,null,null,null,null,null,null,2,null,null,2,null,null,null,null,null,2,null,null,4,null,null,2,null,null,12]
[null,null,null,null,null,null,null,null,"DIEVAL Samuel",null,null,null,null,null,null,null,null,2,null,null,7,null,null,2,null,null,null,null,null,null,null,null,null,null,null,11]
[null,null,null,null,null,null,null,null,"DEFOSSEZ Martial",null,null,null,null,null,11,null,null,null,null,null,null,null,null,null,null,null,null,null,null,null,null,null,null,null,null,11]
[null,null,null,null,null,null,null,null,"WAQUET Ludovic",null,null,null,null,null,null,null,null,null,null,null,null,null,null,null,null,null,null,null,null,10,null,null,null,null,null,10]
[null,null,null,null,null,null,null,null,"COURTOIS Kévin",null,null,null,null,null,null,null,null,null,null,null,null,null,null,3,null,null,1,null,null,6,null,null,null,null,null,10]
[null,null,null,null,null,null,null,null,"LUCQUET Eric",null,null,null,null,null,null,null,null,5,null,null,1,null,null,1,null,null,1,null,null,1,null,null,1,null,null,10]
[null,null,null,null,null,null,null,null,"DEFOSSEZ Rémi",null,null,null,null,null,null,null,null,null,null,null,2,null,null,5,null,null,1,null,null,1,null,null,null,null,null,9]
[null,null,null,null,null,null,null,null,"MACAREL Maurice",null,null,null,null,null,null,null,null,null,null,null,null,null,null,8,null,null,null,null,null,null,null,null,null,null,null,8]
[null,null,null,null,null,null,null,null,"DUBOIS Aurélien",null,null,null,null,null,null,null,null,null,null,null,8,null,null,null,null,null,null,null,null,null,null,null,null,null,null,8]
[null,null,null,null,null,null,null,null,"DEMAILLY Pascal",null,null,null,null,null,null,null,null,null,null,null,6,null,null,1,null,null,null,null,null,null,null,null,null,null,null,7]
[null,null,null,null,null,null,null,null,"RANVIN Rémi",null,null,null,null,null,null,null,null,null,null,null,null,null,null,1,null,null,2,null,null,4,null,null,null,null,null,7]
[null,null,null,null,null,null,null,null,"JEROME Vincent",null,null,null,null,null,null,null,null,null,null,null,null,null,null,null,null,null,null,null,null,5,null,null,2,null,null,7]
[null,null,null,null,null,null,null,null,"LAROUETTE Yann",null,null,null,null,null,null,null,null,null,null,null,null,null,null,null,null,null,null,null,null,1,null,null,6,null,null,7]
[null,null,null,null,null,null,null,null,"TERRIER Florent",null,null,null,null,null,null,null,null,1,null,null,null,null,null,1,null,null,1,null,null,3,null,null,null,null,null,6]
[null,null,null,null,null,null,null,null,"DENGREVILLE Bruno",null,null,null,null,null,6,null,null,null,null,null,null,null,null,null,null,null,null,null,null,null,null,null,null,null,null,6]
[null,null,null,null,null,null,null,null,"LELOIR Laurent",null,null,null,null,null,6,null,null,null,null,null,null,null,null,null,null,null,null,null,null,null,null,null,null,null,null,6]
[null,null,null,null,null,null,null,null,"HOT Guillaume",null,null,null,null,null,null,null,null,null,null,null,null,null,null,null,null,null,null,null,null,6,null,null,null,null,null,{"$f":"SUM(N46:AG46)","v":6}]
[null,null,null,null,null,null,null,null,"MACAREL Julien",null,null,null,null,null,null,null,null,null,null,null,null,null,null,5,null,null,null,null,null,null,null,null,null,null,null,5]
[null,null,null,null,null,null,null,null,"PLESNAGE Jérôme",null,null,null,null,null,null,null,null,null,null,null,null,null,null,null,null,null,4,null,null,null,null,null,1,null,null,5]
[null,null,null,null,null,null,null,null,"MAURICE Fabian",null,null,null,null,null,null,null,null,null,null,null,null,null,null,null,null,null,null,null,null,2,null,null,3,null,null,5]
[null,null,null,null,null,null,null,null,"HINAUT Frédéric",null,null,null,null,null,null,null,null,4,null,null,null,null,null,null,null,null,null,null,null,null,null,null,null,null,null,4]
[null,null,null,null,null,null,null,null,"COLCY Ludovic",null,null,null,null,null,null,null,null,null,null,null,4,null,null,null,null,null,null,null,null,null,null,null,null,null,null,4]
[null,null,null,null,null,null,null,null,"CARON Thomas",null,null,null,null,null,null,null,null,null,null,null,null,null,null,1,null,null,3,null,null,null,null,null,null,null,null,4]
[null,null,null,null,null,null,null,null,"LANTERNE Erwan",null,null,null,null,null,null,null,null,null,null,null,null,null,null,null,null,null,3,null,null,null,null,null,1,null,null,4]
[null,null,null,null,null,null,null,null,"GOTTIS Thomas",null,null,null,null,null,null,null,null,null,null,null,null,null,null,null,null,null,null,null,null,null,null,null,4,null,null,4]
[null,null,null,null,null,null,null,null,"THIBAULT Jonathan",null,null,null,null,null,null,null,null,null,null,null,null,null,null,null,null,null,null,null,null,3,null,null,null,null,null,3]
[null,null,null,null,null,null,null,null,"DUFLOT Alexandre",null,null,null,null,null,null,null,null,1,null,null,1,null,null,1,null,null,null,null,null,null,null,null,null,null,null,3]
[null,null,null,null,null,null,null,null,"DEHAIE Arnaud",null,null,null,null,null,null,null,null,null,null,null,3,null,null,null,null,null,null,null,null,null,null,null,null,null,null,3]
[null,null,null,null,null,null,null,null,"BLIR David",null,null,null,null,null,null,null,null,3,null,null,null,null,null,null,null,null,null,null,null,null,null,null,null,null,null,3]
[null,null,null,null,null,null,null,null,"de BRUYNE Thierry",null,null,null,null,null,null,null,null,1,null,null,null,null,null,null,null,null,1,null,null,1,null,null,null,null,null,3]
[null,null,null,null,null,null,null,null,"LARGILLIERE Franck",null,null,null,null,null,null,null,null,null,null,null,2,null,null,null,null,null,null,null,null,1,null,null,null,null,null,3]
[null,null,null,null,null,null,null,null,"DECLE Jérôme",null,null,null,null,null,null,null,null,null,null,null,null,null,null,null,null,null,null,null,null,1,null,null,2,null,null,3]
[null,null,null,null,null,null,null,null,"DUQUENOY Loïc",null,null,null,null,null,null,null,null,null,null,null,1,null,null,1,null,null,null,null,null,null,null,null,null,null,null,2]
[null,null,null,null,null,null,null,null,"DEMAISON Clément",null,null,null,null,null,null,null,null,null,null,null,1,null,null,1,null,null,null,null,null,null,null,null,null,null,null,2]
[null,null,null,null,null,null,null,null,"COFFINIER Mickaël",null,null,null,null,null,null,null,null,null,null,null,null,null,null,null,null,null,2,null,null,null,null,null,null,null,null,2]
[null,null,null,null,null,null,null,null,"JUREK Franck",null,null,null,null,null,2,null,null,null,null,null,null,null,null,null,null,null,null,null,null,null,null,null,null,null,null,2]
[null,null,null,null,null,null,null,null,"CAPELLE Stéphane",null,null,null,null,null,null,null,null,null,null,null,null,null,null,null,null,null,null,null,null,null,null,null,2,null,null,2]
[null,null,null,null,null,null,null,null,"LEVI Cédric",null,null,null,null,null,null,null,null,null,null,null,null,null,null,null,null,null,null,null,null,null,null,null,2,null,null,2]
[null,null,null,null,null,null,null,null,"TINENCOURT Jérôme",null,null,null,null,null,null,null,null,null,null,null,1,null,null,null,null,null,null,null,null,null,null,null,null,null,null,1]
[null,null,null,null,null,null,null,null,"LEDOUX Grégory",null,null,null,null,null,null,null,null,null,null,null,1,null,null,null,null,null,null,null,null,null,null,null,null,null,null,1]
[null,null,null,null,null,null,null,null,"FOLOLO Eric",null,null,null,null,null,null,null,null,1,null,null,null,null,null,null,null,null,null,null,null,null,null,null,null,null,null,1]
[null,null,null,null,null,null,null,null,"DHIU Alexandre",null,null,null,null,null,null,null,null,null,null,null,null,null,null,1,null,null,null,null,null,null,null,null,null,null,null,1]
[null,null,null,null,null,null,null,null,"DENEEF Aurélien",null,null,null,null,null,null,null,null,null,null,null,1,null,null,null,null,null,null,null,null,null,null,null,null,null,null,1]
[null,null,null,null,null,null,null,null,"DELETREZ Fabien",null,null,null,null,null,null,null,null,null,null,null,1,null,null,null,null,null,null,null,null,null,null,null,null,null,null,1]
[null,null,null,null,null,null,null,null,"CHARTON Gaëtan",null,null,null,null,null,null,null,null,null,null,null,null,null,null,1,null,null,null,null,null,null,null,null,null,null,null,1]
[null,null,null,null,null,null,null,null,"BRICOUT Alexandre",null,null,null,null,null,null,null,null,null,null,null,1,null,null,null,null,null,null,null,null,null,null,null,null,null,null,1]
[null,null,null,null,null,null,null,null,"BOSCO Alexis",null,null,null,null,null,null,null,null,null,null,null,null,null,null,null,null,null,1,null,null,null,null,null,null,null,null,1]
[null,null,null,null,null,null,null,null,"BARON Stéphane",null,null,null,null,null,null,null,null,null,null,null,null,null,null,1,null,null,null,null,null,null,null,null,null,null,null,1]
[null,null,null,null,null,null,null,null,"AMARIAS Yannick",null,null,null,null,null,null,null,null,null,null,null,null,null,null,null,null,null,1,null,null,null,null,null,null,null,null,{"$f":"SUM(N78:AG78)","v":1}]
[null,null,null,null,null,null,null,null,"AINCE Philippe",null,null,null,null,null,null,null,null,null,null,null,null,null,null,null,null,null,1,null,null,null,null,null,null,null,null,1]
[null,null,null,null,null,null,null,null,"COQUET Cyril",null,null,null,null,null,null,null,null,null,null,null,null,null,null,null,null,null,1,null,null,null,null,null,null,null,null,1]
[null,null,null,null,null,null,null,null,"GRENIER Jacques",null,null,null,null,null,1,null,null,null,null,null,null,null,null,null,null,null,null,null,null,null,null,null,null,null,null,1]
[null,null,null,null,null,null,null,null,"OBATTON Laurent",null,null,null,null,null,1,null,null,null,null,null,null,null,null,null,null,null,null,null,null,null,null,null,null,null,null,1]
[null,null,null,null,null,null,null,null,"BAUDHUIN Jean-François",null,null,null,null,null,1,null,null,null,null,null,null,null,null,null,null,null,null,null,null,null,null,null,null,null,null,1]
[null,null,null,null,null,null,null,null,"DELPORTE Bernard",null,null,null,null,null,1,null,null,null,null,null,null,null,null,null,null,null,null,null,null,null,null,null,null,null,null,1]
[null,null,null,null,null,null,null,null,"MARESCAUX Frédéric",null,null,null,null,null,1,null,null,null,null,null,null,null,null,null,null,null,null,null,null,null,null,null,null,null,null,1]
[null,null,null,null,null,null,null,null,"MARTINS Rudy",null,null,null,null,null,null,null,null,null,null,null,null,null,null,null,null,null,null,null,null,null,null,null,1,null,null,1]
[null,null,null,null,null,null,null,null,"CHABA Cory",null,null,null,null,null,null,null,null,null,null,null,null,null,null,null,null,null,null,null,null,null,null,null,1,null,null,1]
[null,null,null,null,null,null,null,null,"BORCK Stéphane",null,null,null,null,null,null,null,null,null,null,null,null,null,null,null,null,null,null,null,null,null,null,null,1,null,null,1]
[null,null,null,null,null,null,null,null,"PITARCH Boris",null,null,null,null,null,null,null,null,null,null,null,null,null,null,null,null,null,null,null,null,null,null,null,1,null,null,1]
[null,null,null,null,null,null,null,null,null,null,null,null,null,null,null,null,null,null,null,null,null,null,null,null,null,null,null,null,null,null,null,null,null,null,null,0]
[]
[null,null,null,null,null,null,null,null,{"$f":"SUM(O92:AG92)","v":711},null,null,null,null,null,{"$f":"SUM(O14:O91)","v":93},null,null,{"$f":"SUM(R14:R91)","v":73},null,null,{"$f":"SUM(U14:U91)","v":106},null,null,{"$f":"SUM(X14:X91)","v":156},null,null,{"$f":"SUM(AA14:AA91)","v":108},null,null,{"$f":"SUM(AD14:AD91)","v":108},null,null,{"$f":"SUM(AG14:AG91)","v":67},null,null,{"$f":"SUM(AJ14:AJ91)","v":711}]

{"sheet":"Passeurs Club","index":19,"n_rows":91,"n_cols":33,"rows_kept":91,"cut":false,"hidden":false,"merged":[[6,1,6,4],[6,13,6,16],[6,25,6,28],[10,0,10,38],[0,0,0,38],[1,0,1,38],[2,0,2,38],[4,1,4,4],[4,12,4,14],[4,24,4,26]]}
["ASSOCIATION SPORTIVE DE CERISY GAILLY"]
["SAISON SENIORS 2011-2012"]
["SUIVI STATISTIQUE - SENIORS A & B"]
[]
[null,"Championnats :",null,null,null,"1ère division / 3ème division",null,null,null,null,null,null,"Stade : ",null,null,"rue du marais - 80800 Cerisy",null,null,null,null,null,null,null,null,"Site internet : ",null,null,"as-cerisy.footeo.com"]
[]
[null,"Entraîneur :",null,null,null,"DUPUTEL David",null,null,null,null,null,null,null,"Adjoint : ",null,null,null,"DUBOIS Sébastien",null,null,null,null,null,null,null,"Coach B :",null,null,null,"DEFOSSEZ Martial"]
[null,null,null,null,null,"duputel.david@gmail.com",null,null,null,null,null,null,null,null,null,null,null,"sebastien.dubois@aerolia.com",null,null,null,null,null,null,null,null,null,null,null,"martial.defossez@wanadoo.fr"]
[null,null,null,null,null,"Tél : 03.22.96.00.51 / 06.17.16.09.47",null,null,null,null,null,null,null,null,null,null,null,"Tél : 03.22.05.83.80 / 06.73.82.67.81",null,null,null,null,null,null,null,null,null,null,null,"Tél : 03.22.76.61.50"]
[]
[]
[]
[null,null,null,null,null,null,null,null,null,"NOMS / PRENOMS",null,null,null,null,"2006-2007",null,null,"2007-2008",null,null,"2008-2009",null,null,"2009-2010",null,null,"2010-2011",null,null,"2011-2012",null,null,"TOTAUX"]
[null,null,null,null,null,null,null,null,null,"LEDOUX Alexis",null,null,null,null,13,null,null,null,null,null,6,null,null,7,null,null,4,null,null,4,null,null,{"$f":"SUM(N14:AD14)","v":34}]
[null,null,null,null,null,null,null,null,null,"DEFOSSEZ Rémi",null,null,null,null,null,null,null,3,null,null,10,null,null,9,null,null,3,null,null,1,null,null,{"$f":"SUM(N15:AD15)","v":26}]
[null,null,null,null,null,null,null,null,null,"JOSSE Grégory",null,null,null,null,null,null,null,null,null,null,10,null,null,4,null,null,5,null,null,7,null,null,{"$f":"SUM(N16:AD16)","v":26}]
[null,null,null,null,null,null,null,null,null,"MUNOZ Sébastien",null,null,null,null,null,null,null,null,null,null,9,null,null,8,null,null,8,null,null,null,null,null,{"$f":"SUM(N17:AD17)","v":25}]
[null,null,null,null,null,null,null,null,null,"MASCRE Ghislain",null,null,null,null,null,null,null,2,null,null,12,null,null,7,null,null,4,null,null,null,null,null,{"$f":"SUM(N18:AD18)","v":25}]
[null,null,null,null,null,null,null,null,null,"DUPONT Kévin",null,null,null,null,null,null,null,null,null,null,4,null,null,4,null,null,14,null,null,3,null,null,{"$f":"SUM(N19:AD19)","v":25}]
[null,null,null,null,null,null,null,null,null,"DEMAILLY Pascal",null,null,null,null,null,null,null,11,null,null,9,null,null,null,null,null,null,null,null,null,null,null,{"$f":"SUM(N20:AD20)","v":20}]
[null,null,null,null,null,null,null,null,null,"DUBOIS Sébastien",null,null,null,null,3,null,null,7,null,null,null,null,null,4,null,null,4,null,null,2,null,null,{"$f":"SUM(N21:AD21)","v":20}]
[null,null,null,null,null,null,null,null,null,"RANVIN Lori",null,null,null,null,2,null,null,2,null,null,null,null,null,6,null,null,2,null,null,8,null,null,{"$f":"SUM(N22:AD22)","v":20}]
[null,null,null,null,null,null,null,null,null,"BLIR David",null,null,null,null,16,null,null,null,null,null,null,null,null,null,null,null,null,null,null,null,null,null,{"$f":"SUM(N23:AD23)","v":16}]
[null,null,null,null,null,null,null,null,null,"ALBERT Christophe",null,null,null,null,4,null,null,8,null,null,3,null,null,null,null,null,null,null,null,null,null,null,{"$f":"SUM(N24:AD24)","v":15}]
[null,null,null,null,null,null,null,null,null,"RANVIN Rémi",null,null,null,null,null,null,null,2,null,null,2,null,null,3,null,null,7,null,null,null,null,null,{"$f":"SUM(N25:AD25)","v":14}]
[null,null,null,null,null,null,null,null,null,"MACAREL Maurice",null,null,null,null,null,null,null,null,null,null,13,null,null,null,null,null,null,null,null,null,null,null,{"$f":"SUM(N26:AD26)","v":13}]
[null,null,null,null,null,null,null,null,null,"BEYAERT Antoine",null,null,null,null,2,null,null,1,null,null,5,null,null,1,null,null,4,null,null,null,null,null,{"$f":"SUM(N27:AD27)","v":13}]
[null,null,null,null,null,null,null,null,null,"HENOCQUE Ludovic",null,null,null,null,3,null,null,1,null,null,5,null,null,2,null,null,1,null,null,1,null,null,{"$f":"SUM(N28:AD28)","v":13}]
[null,null,null,null,null,null,null,null,null,"COURTOIS Kévin",null,null,null,null,null,null,null,null,null,null,5,null,null,2,null,null,5,null,null,null,null,null,{"$f":"SUM(N29:AD29)","v":12}]
[null,null,null,null,null,null,null,null,null,"LUCQUET Eric",null,null,null,null,2,null,null,4,null,null,1,null,null,null,null,null,2,null,null,null,null,null,{"$f":"SUM(N30:AD30)","v":9}]
[null,null,null,null,null,null,null,null,null,"BERTON Thibault",null,null,null,null,null,null,null,1,null,null,4,null,null,3,null,null,null,null,null,1,null,null,{"$f":"SUM(N31:AD31)","v":9}]
[null,null,null,null,null,null,null,null,null,"CARETTE Cédric",null,null,null,null,null,null,null,2,null,null,3,null,null,1,null,null,1,null,null,2,null,null,{"$f":"SUM(N32:AD32)","v":9}]
[null,null,null,null,null,null,null,null,null,"DEHAIE Arnaud",null,null,null,null,null,null,null,8,null,null,null,null,null,null,null,null,null,null,null,null,null,null,{"$f":"SUM(N33:AD33)","v":8}]
[null,null,null,null,null,null,null,null,null,"TERRIER Florent",null,null,null,null,null,null,null,3,null,null,1,null,null,1,null,null,1,null,null,2,null,null,{"$f":"SUM(N34:AD34)","v":8}]
[null,null,null,null,null,null,null,null,null,"BEYAERT François",null,null,null,null,null,null,null,null,null,null,4,null,null,2,null,null,null,null,null,null,null,null,{"$f":"SUM(N35:AD35)","v":6}]
[null,null,null,null,null,null,null,null,null,"DUFLOT Alexandre",null,null,null,null,null,null,null,2,null,null,4,null,null,null,null,null,null,null,null,null,null,null,{"$f":"SUM(N36:AD36)","v":6}]
[null,null,null,null,null,null,null,null,null,"LEDUC Thomas",null,null,null,null,null,null,null,null,null,null,3,null,null,3,null,null,null,null,null,null,null,null,{"$f":"SUM(N37:AD37)","v":6}]
[null,null,null,null,null,null,null,null,null,"WAQUET Ludovic",null,null,null,null,null,null,null,null,null,null,null,null,null,null,null,null,5,null,null,null,null,null,{"$f":"SUM(N38:AD38)","v":5}]
[null,null,null,null,null,null,null,null,null,"LAROUETTE Yann",null,null,null,null,null,null,null,null,null,null,null,null,null,1,null,null,3,null,null,1,null,null,{"$f":"SUM(N39:AD39)","v":5}]
[null,null,null,null,null,null,null,null,null,"JEROME Vincent",null,null,null,null,null,null,null,null,null,null,null,null,null,null,null,null,4,null,null,1,null,null,{"$f":"SUM(N40:AD40)","v":5}]
[null,null,null,null,null,null,null,null,null,"LEVI Cédric",null,null,null,null,null,null,null,null,null,null,null,null,null,null,null,null,null,null,null,5,null,null,{"$f":"SUM(N41:AD41)","v":5}]
[null,null,null,null,null,null,null,null,null,"DEFOSSEZ Aurélien",null,null,null,null,null,null,null,4,null,null,null,null,null,null,null,null,null,null,null,null,null,null,{"$f":"SUM(N42:AD42)","v":4}]
[null,null,null,null,null,null,null,null,null,"DENEEF Aurélien",null,null,null,null,null,null,null,4,null,null,null,null,null,null,null,null,null,null,null,null,null,null,{"$f":"SUM(N43:AD43)","v":4}]
[null,null,null,null,null,null,null,null,null,"DIEVAL Samuel",null,null,null,null,null,null,null,4,null,null,null,null,null,null,null,null,null,null,null,null,null,null,{"$f":"SUM(N44:AD44)","v":4}]
[null,null,null,null,null,null,null,null,null,"FOLOLO Eric",null,null,null,null,4,null,null,null,null,null,null,null,null,null,null,null,null,null,null,null,null,null,{"$f":"SUM(N45:AD45)","v":4}]
[null,null,null,null,null,null,null,null,null,"LEDOUX Grégory",null,null,null,null,1,null,null,3,null,null,null,null,null,null,null,null,null,null,null,null,null,null,{"$f":"SUM(N46:AD46)","v":4}]
[null,null,null,null,null,null,null,null,null,"PLESNAGE Jérôme",null,null,null,null,null,null,null,null,null,null,null,null,null,4,null,null,null,null,null,null,null,null,{"$f":"SUM(N47:AD47)","v":4}]
[null,null,null,null,null,null,null,null,null,"AMARIAS Yannick",null,null,null,null,null,null,null,null,null,null,null,null,null,1,null,null,3,null,null,null,null,null,{"$f":"SUM(N48:AD48)","v":4}]
[null,null,null,null,null,null,null,null,null,"DECLE Jérôme",null,null,null,null,null,null,null,null,null,null,null,null,null,null,null,null,2,null,null,2,null,null,{"$f":"SUM(N49:AD49)","v":4}]
[null,null,null,null,null,null,null,null,null,"BOSCO Alexis",null,null,null,null,null,null,null,null,null,null,null,null,null,3,null,null,null,null,null,null,null,null,{"$f":"SUM(N50:AD50)","v":3}]
[null,null,null,null,null,null,null,null,null,"HINAUT Frédéric",null,null,null,null,3,null,null,null,null,null,null,null,null,null,null,null,null,null,null,null,null,null,{"$f":"SUM(N51:AD51)","v":3}]
[null,null,null,null,null,null,null,null,null,"MACAREL Julien",null,null,null,null,null,null,null,null,null,null,3,null,null,null,null,null,null,null,null,null,null,null,{"$f":"SUM(N52:AD52)","v":3}]
[null,null,null,null,null,null,null,null,null,"LANTERNE Erwan",null,null,null,null,null,null,null,null,null,null,null,null,null,3,null,null,null,null,null,null,null,null,{"$f":"SUM(N53:AD53)","v":3}]
[null,null,null,null,null,null,null,null,null,"de BRUYNE Thierry",null,null,null,null,1,null,null,null,null,null,1,null,null,null,null,null,1,null,null,null,null,null,{"$f":"SUM(N54:AD54)","v":3}]
[null,null,null,null,null,null,null,null,null,"DARQUET Sylvain",null,null,null,null,null,null,null,null,null,null,1,null,null,1,null,null,1,null,null,null,null,null,{"$f":"SUM(N55:AD55)","v":3}]
[null,null,null,null,null,null,null,null,null,"DUQUENOY Loïc",null,null,null,null,null,null,null,null,null,null,2,null,null,null,null,null,null,null,null,1,null,null,{"$f":"SUM(N56:AD56)","v":3}]
[null,null,null,null,null,null,null,null,null,"COLCY Ludovic",null,null,null,null,null,null,null,1,null,null,1,null,null,null,null,null,null,null,null,null,null,null,{"$f":"SUM(N57:AD57)","v":2}]
[null,null,null,null,null,null,null,null,null,"DHIU Alexandre",null,null,null,null,null,null,null,1,null,null,1,null,null,null,null,null,null,null,null,null,null,null,{"$f":"SUM(N58:AD58)","v":2}]
[null,null,null,null,null,null,null,null,null,"DUBOIS Aurélien",null,null,null,null,null,null,null,2,null,null,null,null,null,null,null,null,null,null,null,null,null,null,{"$f":"SUM(N59:AD59)","v":2}]
[null,null,null,null,null,null,null,null,null,"REVAUX Sylvain",null,null,null,null,null,null,null,1,null,null,null,null,null,1,null,null,null,null,null,null,null,null,{"$f":"SUM(N60:AD60)","v":2}]
[null,null,null,null,null,null,null,null,null,"THIBAULT Jonathan",null,null,null,null,null,null,null,null,null,null,null,null,null,null,null,null,2,null,null,null,null,null,{"$f":"SUM(N61:AD61)","v":2}]
[null,null,null,null,null,null,null,null,null,"PITARCH Boris",null,null,null,null,null,null,null,null,null,null,null,null,null,null,null,null,null,null,null,2,null,null,{"$f":"SUM(N62:AD62)","v":2}]
[null,null,null,null,null,null,null,null,null,"CAPELLE Stéphane",null,null,null,null,null,null,null,null,null,null,null,null,null,null,null,null,null,null,null,2,null,null,{"$f":"SUM(N63:AE63)","v":2}]
[null,null,null,null,null,null,null,null,null,"AINCE Philippe",null,null,null,null,null,null,null,null,null,null,null,null,null,1,null,null,null,null,null,null,null,null,{"$f":"SUM(N64:AD64)","v":1}]
[null,null,null,null,null,null,null,null,null,"DEMAISON Clément",null,null,null,null,null,null,null,1,null,null,null,null,null,null,null,null,null,null,null,null,null,null,{"$f":"SUM(N65:AD65)","v":1}]
[null,null,null,null,null,null,null,null,null,"LARGILLIERE Franck",null,null,null,null,null,null,null,1,null,null,null,null,null,null,null,null,null,null,null,null,null,null,{"$f":"SUM(N66:AD66)","v":1}]
[null,null,null,null,null,null,null,null,null,"TINENCOURT Jérôme",null,null,null,null,null,null,null,1,null,null,null,null,null,null,null,null,null,null,null,null,null,null,{"$f":"SUM(N67:AD67)","v":1}]
[null,null,null,null,null,null,null,null,null,"HOT Guillaume",null,null,null,null,null,null,null,null,null,null,null,null,null,null,null,null,1,null,null,null,null,null,{"$f":"SUM(N68:AD68)","v":1}]
[null,null,null,null,null,null,null,null,null,"de BRUYNE Rudy",null,null,null,null,null,null,null,null,null,null,null,null,null,null,null,null,1,null,null,null,null,null,{"$f":"SUM(N69:AD69)","v":1}]
[null,null,null,null,null,null,null,null,null,"DELPLANQUE Maxime",null,null,null,null,null,null,null,null,null,null,null,null,null,null,null,null,null,null,null,1,null,null,{"$f":"SUM(N70:AD70)","v":1}]
[null,null,null,null,null,null,null,null,null,"FAQUI Alexandre",null,null,null,null,null,null,null,null,null,null,null,null,null,null,null,null,null,null,null,1,null,null,{"$f":"SUM(N71:AD71)","v":1}]
[null,null,null,null,null,null,null,null,null,"GOTTIS Thomas",null,null,null,null,null,null,null,null,null,null,null,null,null,null,null,null,null,null,null,1,null,null,{"$f":"SUM(N72:AD72)","v":1}]
[null,null,null,null,null,null,null,null,null,null,null,null,null,null,null,null,null,null,null,null,null,null,null,null,null,null,null,null,null,null,null,null,{"$f":"SUM(N73:AD73)","v":0}]
[null,null,null,null,null,null,null,null,null,null,null,null,null,null,null,null,null,null,null,null,null,null,null,null,null,null,null,null,null,null,null,null,{"$f":"SUM(N74:AD74)","v":0}]
[null,null,null,null,null,null,null,null,null,null,null,null,null,null,null,null,null,null,null,null,null,null,null,null,null,null,null,null,null,null,null,null,{"$f":"SUM(N75:AD75)","v":0}]
[null,null,null,null,null,null,null,null,null,null,null,null,null,null,null,null,null,null,null,null,null,null,null,null,null,null,null,null,null,null,null,null,{"$f":"SUM(N76:AD76)","v":0}]
[null,null,null,null,null,null,null,null,null,null,null,null,null,null,null,null,null,null,null,null,null,null,null,null,null,null,null,null,null,null,null,null,{"$f":"SUM(N77:AD77)","v":0}]
[null,null,null,null,null,null,null,null,null,null,null,null,null,null,null,null,null,null,null,null,null,null,null,null,null,null,null,null,null,null,null,null,{"$f":"SUM(N78:AD78)","v":0}]
[null,null,null,null,null,null,null,null,null,null,null,null,null,null,null,null,null,null,null,null,null,null,null,null,null,null,null,null,null,null,null,null,{"$f":"SUM(N79:AD79)","v":0}]
[null,null,null,null,null,null,null,null,null,null,null,null,null,null,null,null,null,null,null,null,null,null,null,null,null,null,null,null,null,null,null,null,{"$f":"SUM(N80:AD80)","v":0}]
[null,null,null,null,null,null,null,null,null,null,null,null,null,null,null,null,null,null,null,null,null,null,null,null,null,null,null,null,null,null,null,null,{"$f":"SUM(N81:AD81)","v":0}]
[null,null,null,null,null,null,null,null,null,null,null,null,null,null,null,null,null,null,null,null,null,null,null,null,null,null,null,null,null,null,null,null,{"$f":"SUM(N82:AD82)","v":0}]
[null,null,null,null,null,null,null,null,null,null,null,null,null,null,null,null,null,null,null,null,null,null,null,null,null,null,null,null,null,null,null,null,{"$f":"SUM(N83:AD83)","v":0}]
[null,null,null,null,null,null,null,null,null,null,null,null,null,null,null,null,null,null,null,null,null,null,null,null,null,null,null,null,null,null,null,null,{"$f":"SUM(N84:AD84)","v":0}]
[null,null,null,null,null,null,null,null,null,null,null,null,null,null,null,null,null,null,null,null,null,null,null,null,null,null,null,null,null,null,null,null,{"$f":"SUM(N85:AD85)","v":0}]
[null,null,null,null,null,null,null,null,null,null,null,null,null,null,null,null,null,null,null,null,null,null,null,null,null,null,null,null,null,null,null,null,{"$f":"SUM(N86:AD86)","v":0}]
[null,null,null,null,null,null,null,null,null,null,null,null,null,null,null,null,null,null,null,null,null,null,null,null,null,null,null,null,null,null,null,null,{"$f":"SUM(N87:AD87)","v":0}]
[null,null,null,null,null,null,null,null,null,null,null,null,null,null,null,null,null,null,null,null,null,null,null,null,null,null,null,null,null,null,null,null,{"$f":"SUM(N88:AD88)","v":0}]
[null,null,null,null,null,null,null,null,null,null,null,null,null,null,null,null,null,null,null,null,null,null,null,null,null,null,null,null,null,null,null,null,{"$f":"SUM(N89:AD89)","v":0}]
[]
[null,null,null,null,null,null,null,null,{"$f":"SUM(O91:AD91)","v":474},null,null,null,null,null,{"$f":"SUM(O13:O90)","v":54},null,null,{"$f":"SUM(R13:R90)","v":80},null,null,{"$f":"SUM(U13:U90)","v":122},null,null,{"$f":"SUM(X13:X90)","v":82},null,null,{"$f":"SUM(AA13:AA90)","v":88},null,null,{"$f":"SUM(AD13:AD90)","v":48},null,null,{"$f":"SUM(AG13:AG90)","v":474}]

{"sheet":"Rapport Buts-Passes","index":20,"n_rows":46,"n_cols":30,"rows_kept":46,"cut":false,"hidden":false,"merged":[[6,1,6,4],[6,13,6,16],[6,25,6,28],[10,0,10,38],[0,0,0,38],[1,0,1,38],[2,0,2,38],[4,1,4,4],[4,12,4,14],[4,24,4,26]]}
["ASSOCIATION SPORTIVE DE CERISY GAILLY"]
["SAISON SENIORS 2011-2012"]
["SUIVI STATISTIQUE - SENIORS A & B"]
[]
[null,"Championnats :",null,null,null,"1ère division / 3ème division",null,null,null,null,null,null,"Stade : ",null,null,"rue du marais - 80800 Cerisy",null,null,null,null,null,null,null,null,"Site internet : ",null,null,"as-cerisy.footeo.com"]
[]
[null,"Entraîneur :",null,null,null,"DUPUTEL David",null,null,null,null,null,null,null,"Adjoint : ",null,null,null,"DUBOIS Sébastien",null,null,null,null,null,null,null,"Coach B :",null,null,null,"DEFOSSEZ Martial"]
[null,null,null,null,null,"duputel.david@gmail.com",null,null,null,null,null,null,null,null,null,null,null,"sebastien.dubois@aerolia.com",null,null,null,null,null,null,null,null,null,null,null,"martial.defossez@wanadoo.fr"]
[null,null,null,null,null,"Tél : 03.22.96.00.51 / 06.17.16.09.47",null,null,null,null,null,null,null,null,null,null,null,"Tél : 03.22.05.83.80 / 06.73.82.67.81",null,null,null,null,null,null,null,null,null,null,null,"Tél : 03.22.76.61.50"]
[]
[]
[null,null,null,null,null,null,null,null,null,null,null,null,null,null,null,null,null,"par matche",null,null,null,null,"par matche"]
[null,null,null,null,null,null,null,null,"NOMS / PRENOMS",null,null,null,null,"Matches",null,"Buts",null,"%",null,null,"Passes",null,"%",null,null,"TOTAUX"]
[]
[null,null,null,null,null,null,null,null,"RANVIN Lori",null,null,null,null,{"$f":"('Joueurs A'!AU26)+('Joueurs B'!AU21)","v":8},null,{"$f":"'Joueurs B'!AX21","v":8},null,{"$f":"P15/N15","v":1},null,null,{"$f":"'Joueurs B'!AY21","v":8},null,{"$f":"U15/N15","v":1},null,null,{"$f":"P15+U15","v":16}]
[null,null,null,null,null,null,null,null,"JOSSE Grégory",null,null,null,null,{"$f":"('Joueurs A'!AU16)+('Joueurs B'!AU23)","v":12},null,{"$f":"'Joueurs B'!AX23","v":7},null,{"$f":"P16/N16","v":0.58333333333333337},null,null,{"$f":"'Joueurs B'!AY23","v":7},null,{"$f":"U16/N16","v":0.58333333333333337},null,null,{"$f":"P16+U16","v":14}]
[null,null,null,null,null,null,null,null,"DUPONT Kévin",null,null,null,null,{"$f":"('Joueurs A'!AU45)+('Joueurs B'!AU16)","v":17},null,{"$f":"'Joueurs A'!AX45+'Joueurs B'!AX16","v":8},null,{"$f":"P17/N17","v":0.47058823529411764},null,null,{"$f":"'Joueurs A'!AY45+'Joueurs B'!AY16","v":3},null,{"$f":"U17/N17","v":0.17647058823529413},null,null,{"$f":"P17+U17","v":11}]
[null,null,null,null,null,null,null,null,"LEDOUX Alexis",null,null,null,null,{"$f":"'Joueurs A'!AU36","v":16},null,{"$f":"'Joueurs A'!AX36","v":7},null,{"$f":"P18/N18","v":0.4375},null,null,{"$f":"'Joueurs A'!AY36","v":3},null,{"$f":"U18/N18","v":0.1875},null,null,{"$f":"P18+U18","v":10}]
[null,null,null,null,null,null,null,null,"LAROUETTE Yann",null,null,null,null,{"$f":"('Joueurs A'!AU40)+('Joueurs B'!AU47)","v":13},null,{"$f":"'Joueurs A'!AX40+'Joueurs B'!AX47","v":6},null,{"$f":"P19/N19","v":0.46153846153846156},null,null,{"$f":"'Joueurs A'!AY40+'Joueurs B'!AY47","v":1},null,{"$f":"U19/N19","v":7.6923076923076927E-2},null,null,{"$f":"P19+U19","v":7}]
[null,null,null,null,null,null,null,null,"LEVI Cédric",null,null,null,null,{"$f":"'Joueurs A'!AU60","v":11},null,{"$f":"'Joueurs A'!AX60","v":2},null,{"$f":"P20/N20","v":0.18181818181818182},null,null,{"$f":"'Joueurs A'!AY60","v":5},null,{"$f":"U20/N20","v":0.45454545454545453},null,null,{"$f":"P20+U20","v":7}]
[null,null,null,null,null,null,null,null,"BERTON Thibault",null,null,null,null,{"$f":"('Joueurs A'!AU28)+('Joueurs B'!AU24)","v":8},null,{"$f":"'Joueurs B'!AX24","v":5},null,{"$f":"P21/N21","v":0.625},null,null,{"$f":"'Joueurs B'!AY24","v":1},null,{"$f":"U21/N21","v":0.125},null,null,{"$f":"P21+U21","v":6}]
[null,null,null,null,null,null,null,null,"CARETTE Cédric",null,null,null,null,{"$f":"('Joueurs A'!AU46)+('Joueurs B'!AU18)","v":11},null,{"$f":"'Joueurs B'!AX18","v":3},null,{"$f":"P22/N22","v":0.27272727272727271},null,null,{"$f":"'Joueurs B'!AY18","v":2},null,{"$f":"U22/N22","v":0.18181818181818182},null,null,{"$f":"P22+U22","v":5}]
[null,null,null,null,null,null,null,null,"GOTTIS Thomas",null,null,null,null,{"$f":"'Joueurs A'!AU58","v":10},null,{"$f":"'Joueurs A'!AX58","v":4},null,{"$f":"P23/N23","v":0.4},null,null,{"$f":"'Joueurs A'!AY58","v":1},null,{"$f":"U23/N23","v":0.1},null,null,{"$f":"P23+U23","v":5}]
[null,null,null,null,null,null,null,null,"DECLE Jérôme",null,null,null,null,{"$f":"'Joueurs A'!AU55+'Joueurs B'!AU53","v":15},null,{"$f":"'Joueurs A'!AX55+'Joueurs B'!AX53","v":2},null,{"$f":"P24/N24","v":0.13333333333333333},null,null,{"$f":"'Joueurs A'!AY55+'Joueurs B'!AY53","v":2},null,{"$f":"U24/N24","v":0.13333333333333333},null,null,{"$f":"P24+U24","v":4}]
[null,null,null,null,null,null,null,null,"DUBOIS Sébastien",null,null,null,null,{"$f":"('Joueurs A'!AU20)","v":16},null,{"$f":"'Joueurs A'!AX20","v":2},null,{"$f":"P25/N25","v":0.125},null,null,{"$f":"'Joueurs A'!AY20","v":2},null,{"$f":"U25/N25","v":0.125},null,null,{"$f":"P25+U25","v":4}]
[null,null,null,null,null,null,null,null,"CAPELLE Stéphane",null,null,null,null,{"$f":"'Joueurs A'!AU57+'Joueurs B'!AU50","v":9},null,{"$f":"'Joueurs A'!AX57+'Joueurs B'!AX50","v":2},null,{"$f":"P26/N26","v":0.22222222222222221},null,null,{"$f":"'Joueurs A'!AY57+'Joueurs B'!AY50","v":2},null,{"$f":"U26/N26","v":0.22222222222222221},null,null,{"$f":"P26+U26","v":4}]
[null,null,null,null,null,null,null,null,"JEROME Vincent",null,null,null,null,{"$f":"'Joueurs A'!AU52+'Joueurs B'!AU34","v":9},null,{"$f":"'Joueurs A'!AX52+'Joueurs B'!AX34","v":2},null,{"$f":"P27/N27","v":0.22222222222222221},null,null,{"$f":"'Joueurs A'!AY52+'Joueurs B'!AY34","v":1},null,{"$f":"U27/N27","v":0.1111111111111111},null,null,{"$f":"P27+U27","v":3}]
[null,null,null,null,null,null,null,null,"PITARCH Boris",null,null,null,null,{"$f":"'Joueurs B'!AU51+'Joueurs A'!AU62","v":8},null,{"$f":"'Joueurs B'!AX51+'Joueurs A'!AX62","v":1},null,{"$f":"P28/N28","v":0.125},null,null,{"$f":"'Joueurs B'!AY51+'Joueurs A'!AY62","v":2},null,{"$f":"U28/N28","v":0.25},null,null,{"$f":"P28+U28","v":3}]
[null,null,null,null,null,null,null,null,"MAURICE Fabian",null,null,null,null,{"$f":"'Joueurs B'!AU33","v":7},null,{"$f":"'Joueurs B'!AX33","v":3},null,{"$f":"P29/N29","v":0.42857142857142855},null,null,{"$f":"'Joueurs B'!AY33","v":0},null,{"$f":"U29/N29","v":0},null,null,{"$f":"P29+U29","v":3}]
[null,null,null,null,null,null,null,null,"AMARIAS Yannick",null,null,null,null,{"$f":"'Joueurs B'!AU32","v":10},null,{"$f":"'Joueurs B'!AX32","v":0},null,{"$f":"P30/N30","v":0},null,null,{"$f":"'Joueurs B'!AY32","v":2},null,{"$f":"U30/N30","v":0.2},null,null,{"$f":"P30+U30","v":2}]
[null,null,null,null,null,null,null,null,"TERRIER Florent",null,null,null,null,{"$f":"'Joueurs A'!AU18","v":16},null,{"$f":"'Joueurs A'!AX18","v":0},null,{"$f":"P31/N31","v":0},null,null,{"$f":"'Joueurs A'!AY18","v":2},null,{"$f":"U31/N31","v":0.125},null,null,{"$f":"P31+U31","v":2}]
[null,null,null,null,null,null,null,null,"LANTERNE Erwan",null,null,null,null,{"$f":"'Joueurs A'!AU42","v":12},null,{"$f":"'Joueurs A'!AX42","v":1},null,{"$f":"P32/N32","v":8.3333333333333329E-2},null,null,{"$f":"'Joueurs A'!AY42","v":1},null,{"$f":"U32/N32","v":8.3333333333333329E-2},null,null,{"$f":"P32+U32","v":2}]
[null,null,null,null,null,null,null,null,"HENOCQUE Ludovic",null,null,null,null,{"$f":"'Joueurs A'!AU19","v":16},null,{"$f":"'Joueurs A'!AX19","v":0},null,{"$f":"P33/N33","v":0},null,null,{"$f":"'Joueurs A'!AY19","v":1},null,{"$f":"U33/N33","v":6.25E-2},null,null,{"$f":"P33+U33","v":1}]
[null,null,null,null,null,null,null,null,"MARTINS Rudy",null,null,null,null,{"$f":"'Joueurs B'!AU46","v":2},null,{"$f":"'Joueurs B'!AX46","v":1},null,{"$f":"P34/N34","v":0.5},null,null,{"$f":"'Joueurs B'!AY46","v":0},null,{"$f":"U34/N34","v":0},null,null,{"$f":"P34+U34","v":1}]
[null,null,null,null,null,null,null,null,"CHABA Cory",null,null,null,null,{"$f":"'Joueurs B'!AU39","v":1},null,{"$f":"'Joueurs B'!AX39","v":1},null,{"$f":"P35/N35","v":1},null,null,{"$f":"'Joueurs B'!AY39","v":0},null,{"$f":"U35/N35","v":0},null,null,{"$f":"P35+U35","v":1}]
[null,null,null,null,null,null,null,null,"DEFOSSEZ Rémi",null,null,null,null,{"$f":"'Joueurs A'!AU30+'Joueurs B'!AU40","v":17},null,{"$f":"'Joueurs A'!AX30+'Joueurs B'!AX40","v":0},null,{"$f":"P36/N36","v":0},null,null,{"$f":"'Joueurs A'!AY30+'Joueurs B'!AY40","v":1},null,{"$f":"U36/N36","v":5.8823529411764705E-2},null,null,{"$f":"P36+U36","v":1}]
[null,null,null,null,null,null,null,null,"PLESNAGE Jérôme",null,null,null,null,{"$f":"'Joueurs B'!AU43","v":9},null,{"$f":"'Joueurs B'!AX43","v":1},null,{"$f":"P37/N37","v":0.1111111111111111},null,null,{"$f":"'Joueurs B'!AY43","v":0},null,{"$f":"U37/N37","v":0},null,null,{"$f":"P37+U37","v":1}]
[null,null,null,null,null,null,null,null,"LUCQUET Eric",null,null,null,null,{"$f":"'Joueurs A'!AU17","v":12},null,{"$f":"'Joueurs A'!AX17","v":1},null,{"$f":"P38/N38","v":8.3333333333333329E-2},null,null,{"$f":"'Joueurs A'!AY17","v":0},null,{"$f":"U38/N38","v":0},null,null,{"$f":"P38+U38","v":1}]
[null,null,null,null,null,null,null,null,"FAQUI Alexandre",null,null,null,null,{"$f":"'Joueurs B'!AU35","v":8},null,{"$f":"'Joueurs B'!AX35","v":0},null,{"$f":"P39/N39","v":0},null,null,{"$f":"'Joueurs B'!AY35","v":1},null,{"$f":"U39/N39","v":0.125},null,null,{"$f":"P39+U39","v":1}]
[null,null,null,null,null,null,null,null,"BORCK Stéphane",null,null,null,null,{"$f":"'Joueurs A'!AU56","v":10},null,{"$f":"'Joueurs A'!AX56","v":1},null,{"$f":"P40/N40","v":0.1},null,null,{"$f":"'Joueurs A'!AY56","v":0},null,{"$f":"U40/N40","v":0},null,null,{"$f":"P40+U40","v":1}]
[null,null,null,null,null,null,null,null,"DUQUENOY Loïc",null,null,null,null,{"$f":"'Joueurs B'!AU52","v":3},null,{"$f":"'Joueurs B'!AX52","v":0},null,{"$f":"P41/N41","v":0},null,null,{"$f":"'Joueurs B'!AY52","v":1},null,{"$f":"U41/N41","v":0.33333333333333331},null,null,{"$f":"P41+U41","v":1}]
[]
[]
[]
[]
[null,null,null,null,null,null,null,null,null,null,null,null,null,null,null,{"$f":"SUM(P14:P45)","v":68},null,null,null,null,{"$f":"SUM(U14:U45)","v":49},null,null,null,null,{"$f":"SUM(Z14:Z45)","v":117}]

{"sheet":"Cartons Jaunes","index":21,"n_rows":64,"n_cols":33,"rows_kept":64,"cut":false,"hidden":false,"merged":[[6,1,6,4],[6,13,6,16],[6,25,6,28],[10,0,10,38],[0,0,0,38],[1,0,1,38],[2,0,2,38],[4,1,4,4],[4,12,4,14],[4,24,4,26]]}
["ASSOCIATION SPORTIVE DE CERISY GAILLY"]
["SAISON SENIORS 2011-2012"]
["SUIVI STATISTIQUE - SENIORS A & B"]
[]
[null,"Championnats :",null,null,null,"1ère division / 3ème division",null,null,null,null,null,null,"Stade : ",null,null,"rue du marais - 80800 Cerisy",null,null,null,null,null,null,null,null,"Site internet : ",null,null,"as-cerisy.footeo.com"]
[]
[null,"Entraîneur :",null,null,null,"DUPUTEL David",null,null,null,null,null,null,null,"Adjoint : ",null,null,null,"DUBOIS Sébastien",null,null,null,null,null,null,null,"Coach B :",null,null,null,"DEFOSSEZ Martial"]
[null,null,null,null,null,"duputel.david@gmail.com",null,null,null,null,null,null,null,null,null,null,null,"sebastien.dubois@aerolia.com",null,null,null,null,null,null,null,null,null,null,null,"martial.defossez@wanadoo.fr"]
[null,null,null,null,null,"Tél : 03.22.96.00.51 / 06.17.16.09.47",null,null,null,null,null,null,null,null,null,null,null,"Tél : 03.22.05.83.80 / 06.73.82.67.81",null,null,null,null,null,null,null,null,null,null,null,"Tél : 03.22.76.61.50"]
[]
[]
[]
[null,null,null,null,null,null,null,null,null,"NOMS / PRENOMS",null,null,null,null,"2006-2007",null,null,"2007-2008",null,null,"2008-2009",null,null,"2009-2010",null,null,"2010-2011",null,null,"2011-2012",null,null,"TOTAUX"]
[]
[null,null,null,null,null,null,null,null,null,"RANVIN Lori",null,null,null,null,3,null,null,2,null,null,3,null,null,1,null,null,3,null,null,1,null,null,{"$f":"SUM(L15:AE15)","v":13}]
[null,null,null,null,null,null,null,null,null,"BEYAERT Antoine",null,null,null,null,3,null,null,3,null,null,null,null,null,3,null,null,2,null,null,null,null,null,{"$f":"SUM(L16:AE16)","v":11}]
[null,null,null,null,null,null,null,null,null,"LEDOUX Alexis",null,null,null,null,1,null,null,null,null,null,null,null,null,2,null,null,3,null,null,3,null,null,{"$f":"SUM(L17:AE17)","v":9}]
[null,null,null,null,null,null,null,null,null,"de BRUYNE Thierry",null,null,null,null,1,null,null,1,null,null,2,null,null,2,null,null,1,null,null,null,null,null,{"$f":"SUM(L18:AE18)","v":7}]
[null,null,null,null,null,null,null,null,null,"DUFLOT Alexlandre",null,null,null,null,null,null,null,4,null,null,2,null,null,null,null,null,null,null,null,1,null,null,{"$f":"SUM(L19:AE19)","v":7}]
[null,null,null,null,null,null,null,null,null,"LANTERNE Erwan",null,null,null,null,null,null,null,null,null,null,null,null,null,3,null,null,null,null,null,4,null,null,{"$f":"SUM(L20:AE20)","v":7}]
[null,null,null,null,null,null,null,null,null,"COLCY Ludovic",null,null,null,null,null,null,null,3,null,null,3,null,null,null,null,null,null,null,null,null,null,null,{"$f":"SUM(L21:AE21)","v":6}]
[null,null,null,null,null,null,null,null,null,"DEFOSSEZ Rémi",null,null,null,null,null,null,null,null,null,null,1,null,null,1,null,null,4,null,null,null,null,null,{"$f":"SUM(L22:AE22)","v":6}]
[null,null,null,null,null,null,null,null,null,"LUCQUET Eric",null,null,null,null,1,null,null,1,null,null,1,null,null,2,null,null,null,null,null,1,null,null,{"$f":"SUM(L23:AE23)","v":6}]
[null,null,null,null,null,null,null,null,null,"HENOCQUE Ludovic",null,null,null,null,null,null,null,1,null,null,2,null,null,null,null,null,2,null,null,1,null,null,{"$f":"SUM(L24:AE24)","v":6}]
[null,null,null,null,null,null,null,null,null,"DECLE Jérôme",null,null,null,null,null,null,null,null,null,null,null,null,null,null,null,null,2,null,null,4,null,null,{"$f":"SUM(L25:AE25)","v":6}]
[null,null,null,null,null,null,null,null,null,"HOT Guillaume",null,null,null,null,null,null,null,null,null,null,null,null,null,null,null,null,5,null,null,null,null,null,{"$f":"SUM(L26:AE26)","v":5}]
[null,null,null,null,null,null,null,null,null,"JOSSE Grégory",null,null,null,null,null,null,null,null,null,null,null,null,null,4,null,null,null,null,null,1,null,null,{"$f":"SUM(L27:AE27)","v":5}]
[null,null,null,null,null,null,null,null,null,"BERTON Thibault",null,null,null,null,null,null,null,null,null,null,4,null,null,null,null,null,null,null,null,1,null,null,{"$f":"SUM(L28:AE28)","v":5}]
[null,null,null,null,null,null,null,null,null,"BLIR David",null,null,null,null,3,null,null,null,null,null,1,null,null,null,null,null,null,null,null,null,null,null,{"$f":"SUM(L29:AE29)","v":4}]
[null,null,null,null,null,null,null,null,null,"TERRIER Florent",null,null,null,null,null,null,null,null,null,null,2,null,null,null,null,null,null,null,null,2,null,null,{"$f":"SUM(L30:AE30)","v":4}]
[null,null,null,null,null,null,null,null,null,"BRICOUT Alexandre",null,null,null,null,null,null,null,3,null,null,null,null,null,null,null,null,null,null,null,null,null,null,{"$f":"SUM(L31:AE31)","v":3}]
[null,null,null,null,null,null,null,null,null,"CLAIRE Stéphane",null,null,null,null,null,null,null,3,null,null,null,null,null,null,null,null,null,null,null,null,null,null,{"$f":"SUM(L32:AE32)","v":3}]
[null,null,null,null,null,null,null,null,null,"DEMAILLY Pascal",null,null,null,null,null,null,null,1,null,null,2,null,null,null,null,null,null,null,null,null,null,null,{"$f":"SUM(L33:AE33)","v":3}]
[null,null,null,null,null,null,null,null,null,"DHIU Alexandre",null,null,null,null,null,null,null,1,null,null,1,null,null,1,null,null,null,null,null,null,null,null,{"$f":"SUM(L34:AE34)","v":3}]
[null,null,null,null,null,null,null,null,null,"DIEVAL Samuel",null,null,null,null,1,null,null,2,null,null,null,null,null,null,null,null,null,null,null,null,null,null,{"$f":"SUM(L35:AE35)","v":3}]
[null,null,null,null,null,null,null,null,null,"MACAREL Julien",null,null,null,null,null,null,null,null,null,null,3,null,null,null,null,null,null,null,null,null,null,null,{"$f":"SUM(L36:AE36)","v":3}]
[null,null,null,null,null,null,null,null,null,"MACAREL Maurice",null,null,null,null,null,null,null,null,null,null,3,null,null,null,null,null,null,null,null,null,null,null,{"$f":"SUM(L37:AE37)","v":3}]
[null,null,null,null,null,null,null,null,null,"CARETTE Cédric",null,null,null,null,null,null,null,1,null,null,1,null,null,1,null,null,null,null,null,null,null,null,{"$f":"SUM(L38:AE38)","v":3}]
[null,null,null,null,null,null,null,null,null,"DARQUET Sylvain",null,null,null,null,null,null,null,null,null,null,1,null,null,null,null,null,2,null,null,null,null,null,{"$f":"SUM(L39:AE39)","v":3}]
[null,null,null,null,null,null,null,null,null,"DUPONT Kévin",null,null,null,null,null,null,null,null,null,null,null,null,null,1,null,null,null,null,null,2,null,null,{"$f":"SUM(L40:AE40)","v":3}]
[null,null,null,null,null,null,null,null,null,"DUBOIS Sébastien",null,null,null,null,null,null,null,1,null,null,1,null,null,null,null,null,null,null,null,null,null,null,{"$f":"SUM(L41:AE41)","v":2}]
[null,null,null,null,null,null,null,null,null,"LEDOUX Grégory",null,null,null,null,1,null,null,1,null,null,null,null,null,null,null,null,null,null,null,null,null,null,{"$f":"SUM(L42:AE42)","v":2}]
[null,null,null,null,null,null,null,null,null,"ALBERT Christophe",null,null,null,null,null,null,null,1,null,null,null,null,null,1,null,null,null,null,null,null,null,null,{"$f":"SUM(L43:AE43)","v":2}]
[null,null,null,null,null,null,null,null,null,"AMARIAS Yannick",null,null,null,null,null,null,null,null,null,null,null,null,null,1,null,null,1,null,null,null,null,null,{"$f":"SUM(L44:AE44)","v":2}]
[null,null,null,null,null,null,null,null,null,"COURTOIS Kévin",null,null,null,null,null,null,null,null,null,null,null,null,null,null,null,null,2,null,null,null,null,null,{"$f":"SUM(L45:AE45)","v":2}]
[null,null,null,null,null,null,null,null,null,"DUMONT Eric",null,null,null,null,null,null,null,null,null,null,null,null,null,1,null,null,null,null,null,1,null,null,{"$f":"SUM(L46:AE46)","v":2}]
[null,null,null,null,null,null,null,null,null,"LEVY Cédric",null,null,null,null,null,null,null,null,null,null,null,null,null,null,null,null,null,null,null,2,null,null,{"$f":"SUM(L47:AE47)","v":2}]
[null,null,null,null,null,null,null,null,null,"CAPELLE Stéphane",null,null,null,null,null,null,null,null,null,null,null,null,null,null,null,null,null,null,null,2,null,null,{"$f":"SUM(L48:AE48)","v":2}]
[null,null,null,null,null,null,null,null,null,"ELOY Jean-François",null,null,null,null,null,null,null,1,null,null,null,null,null,null,null,null,null,null,null,null,null,null,{"$f":"SUM(L49:AE49)","v":1}]
[null,null,null,null,null,null,null,null,null,"BARON Stéphane",null,null,null,null,null,null,null,null,null,null,1,null,null,null,null,null,null,null,null,null,null,null,{"$f":"SUM(L50:AE50)","v":1}]
[null,null,null,null,null,null,null,null,null,"SUBITTE Alexis",null,null,null,null,null,null,null,null,null,null,null,null,null,null,null,null,null,null,null,1,null,null,{"$f":"SUM(L51:AE51)","v":1}]
[null,null,null,null,null,null,null,null,null,"PITARCH Boris",null,null,null,null,null,null,null,null,null,null,null,null,null,null,null,null,null,null,null,1,null,null,{"$f":"SUM(L52:AE52)","v":1}]
[null,null,null,null,null,null,null,null,null,"DEFOSSEZ Aurélien",null,null,null,null,null,null,null,1,null,null,null,null,null,null,null,null,null,null,null,null,null,null,{"$f":"SUM(L53:AE53)","v":1}]
[null,null,null,null,null,null,null,null,null,"DEMAISON Clément",null,null,null,null,null,null,null,null,null,null,1,null,null,null,null,null,null,null,null,null,null,null,{"$f":"SUM(L54:AE54)","v":1}]
[null,null,null,null,null,null,null,null,null,"LEDUC Thomas",null,null,null,null,null,null,null,null,null,null,1,null,null,null,null,null,null,null,null,null,null,null,{"$f":"SUM(L55:AE55)","v":1}]
[null,null,null,null,null,null,null,null,null,"MASCRE Ghislain",null,null,null,null,null,null,null,1,null,null,null,null,null,null,null,null,null,null,null,null,null,null,{"$f":"SUM(L56:AE56)","v":1}]
[null,null,null,null,null,null,null,null,null,"MARCHEUX Jérémy",null,null,null,null,null,null,null,null,null,null,1,null,null,null,null,null,null,null,null,null,null,null,{"$f":"SUM(L57:AE57)","v":1}]
[null,null,null,null,null,null,null,null,null,"RANVIN Rémi",null,null,null,null,null,null,null,null,null,null,1,null,null,null,null,null,null,null,null,null,null,null,{"$f":"SUM(L58:AE58)","v":1}]
[null,null,null,null,null,null,null,null,null,"REVAUX Sylvain",null,null,null,null,null,null,null,1,null,null,null,null,null,null,null,null,null,null,null,null,null,null,{"$f":"SUM(L59:AE59)","v":1}]
[null,null,null,null,null,null,null,null,null,"MUNOZ Sébastien",null,null,null,null,null,null,null,null,null,null,null,null,null,null,null,null,1,null,null,null,null,null,{"$f":"SUM(L60:AE60)","v":1}]
[null,null,null,null,null,null,null,null,null,"LAROUETTE Yann",null,null,null,null,null,null,null,null,null,null,null,null,null,null,null,null,1,null,null,null,null,null,{"$f":"SUM(L61:AE61)","v":1}]
[null,null,null,null,null,null,null,null,null,"de BRUYNE Rudy",null,null,null,null,null,null,null,null,null,null,null,null,null,null,null,null,1,null,null,null,null,null,{"$f":"SUM(L62:AE62)","v":1}]
[null,null,null,null,null,null,null,null,null,"GOTTIS Thomas",null,null,null,null,null,null,null,null,null,null,null,null,null,null,null,null,null,null,null,1,null,null,{"$f":"SUM(L63:AE63)","v":1}]
[null,null,null,null,null,null,null,null,null,null,null,null,null,null,{"$f":"SUM(O15:O59)","v":14},null,null,{"$f":"SUM(R15:R59)","v":33},null,null,{"$f":"SUM(U15:U59)","v":38},null,null,{"$f":"SUM(X15:X59)","v":24},null,null,{"$f":"SUM(AA15:AA63)","v":30},null,null,{"$f":"SUM(AD15:AD63)","v":29},null,null,{"$f":"SUM(AG16:AG63)","v":155}]

{"sheet":"Cartons Rouges","index":22,"n_rows":26,"n_cols":33,"rows_kept":26,"cut":false,"hidden":false,"merged":[[6,1,6,4],[6,13,6,16],[6,25,6,28],[10,0,10,38],[0,0,0,38],[1,0,1,38],[2,0,2,38],[4,1,4,4],[4,12,4,14],[4,24,4,26]]}
["ASSOCIATION SPORTIVE DE CERISY GAILLY"]
["SAISON SENIORS 2011-2012"]
["SUIVI STATISTIQUE - SENIORS A & B"]
[]
[null,"Championnats :",null,null,null,"1ère division / 3ème division",null,null,null,null,null,null,"Stade : ",null,null,"rue du marais - 80800 Cerisy",null,null,null,null,null,null,null,null,"Site internet : ",null,null,"as-cerisy.footeo.com"]
[]
[null,"Entraîneur :",null,null,null,"DUPUTEL David",null,null,null,null,null,null,null,"Adjoint : ",null,null,null,"DUBOIS Sébastien",null,null,null,null,null,null,null,"Coach B :",null,null,null,"DEFOSSEZ Martial"]
[null,null,null,null,null,"duputel.david@gmail.com",null,null,null,null,null,null,null,null,null,null,null,"sebastien.dubois@aerolia.com",null,null,null,null,null,null,null,null,null,null,null,"martial.defossez@wanadoo.fr"]
[null,null,null,null,null,"Tél : 03.22.96.00.51 / 06.17.16.09.47",null,null,null,null,null,null,null,null,null,null,null,"Tél : 03.22.05.83.80 / 06.73.82.67.81",null,null,null,null,null,null,null,null,null,null,null,"Tél : 03.22.76.61.50"]
[]
[]
[]
[null,null,null,null,null,null,null,null,null,"NOMS / PRENOMS",null,null,null,null,"2006-2007",null,null,"2007-2008",null,null,"2008-2009",null,null,"2009-2010",null,null,"2010-2011",null,null,"2011-2012",null,null,"TOTAUX"]
[]
[null,null,null,null,null,null,null,null,null,"RANVIN Lori",null,null,null,null,2,null,null,null,null,null,1,null,null,null,null,null,null,null,null,null,null,null,{"$f":"SUM(L15:AE15)","v":3}]
[null,null,null,null,null,null,null,null,null,"ALBERT Christophe",null,null,null,null,1,null,null,null,null,null,null,null,null,null,null,null,null,null,null,null,null,null,1]
[null,null,null,null,null,null,null,null,null,"BRICOUT Alexandre",null,null,null,null,null,null,null,1,null,null,null,null,null,null,null,null,null,null,null,null,null,null,1]
[null,null,null,null,null,null,null,null,null,"BERTON Thibault",null,null,null,null,null,null,null,1,null,null,null,null,null,null,null,null,null,null,null,null,null,null,1]
[null,null,null,null,null,null,null,null,null,"BEYAERT Antoine",null,null,null,null,1,null,null,null,null,null,null,null,null,null,null,null,null,null,null,null,null,null,1]
[null,null,null,null,null,null,null,null,null,"BLIR David",null,null,null,null,null,null,null,null,null,null,1,null,null,null,null,null,null,null,null,null,null,null,1]
[null,null,null,null,null,null,null,null,null,"DUFLOT Alexandre",null,null,null,null,null,null,null,null,null,null,1,null,null,null,null,null,null,null,null,null,null,null,1]
[null,null,null,null,null,null,null,null,null,"HENOCQUE Ludovic",null,null,null,null,null,null,null,1,null,null,null,null,null,null,null,null,null,null,null,null,null,null,1]
[null,null,null,null,null,null,null,null,null,"LEDOUX Grégory",null,null,null,null,1,null,null,null,null,null,null,null,null,null,null,null,null,null,null,null,null,null,1]
[null,null,null,null,null,null,null,null,null,"WAQUET Ludovic",null,null,null,null,null,null,null,null,null,null,null,null,null,null,null,null,1,null,null,null,null,null,1]
[]
[null,null,null,null,null,null,null,null,null,null,null,null,null,null,{"$f":"SUM(O15:O24)","v":5},null,null,{"$f":"SUM(R15:R24)","v":3},null,null,{"$f":"SUM(U15:U24)","v":3},null,null,0,null,null,{"$f":"SUM(AA15:AA24)","v":1},null,null,{"$f":"SUM(AD15:AD24)","v":0},null,null,{"$f":"SUM(AG15:AG24)","v":12}]

{"sheet":"Coût Sanctions","index":23,"n_rows":34,"n_cols":33,"rows_kept":34,"cut":false,"hidden":false,"merged":[[6,1,6,4],[6,13,6,16],[6,25,6,28],[10,0,10,38],[0,0,0,38],[1,0,1,38],[2,0,2,38],[4,1,4,4],[4,12,4,14],[4,24,4,26],[12,10,12,16],[13,8,13,10],[19,8,19,10],[17,8,17,10],[15,8,15,10],[29,30,29,31],[23,8,23,10],[27,8,27,10],[29,8,29,10],[13,30,13,31],[15,30,15,31],[17,30,17,31],[19,30,19,31],[25,8,25,10],[22,10,22,16],[27,30,27,31],[25,30,25,31],[23,30,23,31]]}
["ASSOCIATION SPORTIVE DE CERISY GAILLY"]
["SAISON SENIORS 2011-2012"]
["SUIVI STATISTIQUE - SENIORS A & B"]
[]
[null,"Championnats :",null,null,null,"1ère division / 3ème division",null,null,null,null,null,null,"Stade : ",null,null,"rue du marais - 80800 Cerisy",null,null,null,null,null,null,null,null,"Site internet : ",null,null,"as-cerisy.footeo.com"]
[]
[null,"Entraîneur :",null,null,null,"DUPUTEL David",null,null,null,null,null,null,null,"Adjoint : ",null,null,null,"DUBOIS Sébastien",null,null,null,null,null,null,null,"Coach B :",null,null,null,"DEFOSSEZ Martial"]
[null,null,null,null,null,"duputel.david@gmail.com",null,null,null,null,null,null,null,null,null,null,null,"sebastien.dubois@aerolia.com",null,null,null,null,null,null,null,null,null,null,null,"martial.defossez@wanadoo.fr"]
[null,null,null,null,null,"Tél : 03.22.96.00.51 / 06.17.16.09.47",null,null,null,null,null,null,null,null,null,null,null,"Tél : 03.22.05.83.80 / 06.73.82.67.81",null,null,null,null,null,null,null,null,null,null,null,"Tél : 03.22.76.61.50"]
[]
[]
[]
[null,null,null,null,null,null,null,null,null,null,"Nombre de cartons"]
[null,null,null,null,null,null,null,null,"Evolution",null,null,null,"2006-2007",null,null,"2007-2008",null,null,"2008-2009",null,null,"2009-2010",null,null,"2010-2011",null,null,"2011-2012",null,null,"TOTAUX"]
[]
[null,null,null,null,null,null,null,null,"Cartons jaunes",null,null,null,14,null,null,33,null,null,38,null,null,24,null,null,30,null,null,{"$f":"'Cartons Jaunes'!AD64","v":29},null,null,{"$f":"SUM(M16:AB16)","v":168}]
[]
[null,null,null,null,null,null,null,null,"Cartons rouges",null,null,null,5,null,null,3,null,null,3,null,null,{"$f":"O6","v":0},null,null,1,null,null,{"$f":"'Cartons Rouges'!$AD$26","v":0},null,null,{"$f":"SUM(M18:AB18)","v":12}]
[]
[null,null,null,null,null,null,null,null,"Par saison",null,null,null,{"$f":"M18+M16","v":19},null,null,{"$f":"P18+P16","v":36},null,null,{"$f":"S18+S16","v":41},null,null,{"$f":"V18+V16","v":24},null,null,{"$f":"Y18+Y16","v":31},null,null,{"$f":"AB18+AB16","v":29},null,null,{"$f":"SUM(M20:AB20)","v":180},null,"Cartons"]
[]
[]
[null,null,null,null,null,null,null,null,null,null,"Coûts des cartons"]
[null,null,null,null,null,null,null,null,"Evolution",null,null,null,"2006-2007",null,null,"2007-2008",null,null,"2008-2009",null,null,"2009-2010",null,null,"2010-2011",null,null,"2011-2012",null,null,"TOTAUX"]
[]
[null,null,null,null,null,null,null,null,"Cartons jaunes",null,null,null,210,null,null,495,null,null,570,null,null,360,null,null,450,null,null,{"$f":"(AB16*15)","v":435},null,null,{"$f":"SUM(M26:AD26)","v":2520}]
[]
[null,null,null,null,null,null,null,null,"Cartons rouges",null,null,null,150,null,null,90,null,null,90,null,null,{"$f":"O16","v":0},null,null,30,null,null,{"$f":"(AB18*30)","v":0},null,null,{"$f":"SUM(M28:AB28)","v":360}]
[]
[null,null,null,null,null,null,null,null,"Par saison",null,null,null,{"$f":"M28+M26","v":360},null,null,{"$f":"P28+P26","v":585},null,null,{"$f":"S28+S26","v":660},null,null,{"$f":"V28+V26","v":360},null,null,{"$f":"Y28+Y26","v":480},null,null,{"$f":"AB28+AB26","v":435},null,null,{"$f":"SUM(M30:AB30)","v":2880},null,"€"]
[]
[]
[null,null,null,null,null,null,null,null,null,null,null,null,null,"Carton jaune",null,null,15,"€"]
[null,null,null,null,null,null,null,null,null,null,null,null,null,"Carton rouge",null,null,30,"€"]

{"sheet":"Résultats B","index":24,"n_rows":33,"n_cols":38,"rows_kept":33,"cut":false,"hidden":false,"merged":[[0,0,0,38],[1,0,1,38],[2,0,2,38],[4,1,4,4],[4,12,4,14],[4,24,4,26],[6,1,6,4],[6,13,6,16],[6,25,6,28],[10,0,10,38],[12,14,20,15],[12,16,20,17],[12,22,20,23],[12,24,20,25],[12,32,20,33],[12,18,20,19],[12,20,20,21],[12,34,20,35],[12,36,20,37],[12,26,20,27],[12,28,20,29],[12,30,20,31],[21,9,21,13],[22,9,22,13],[31,9,31,13],[32,9,32,13],[23,9,23,13],[24,9,24,13],[25,9,25,13],[28,9,28,13],[29,9,29,13],[30,9,30,13],[26,9,26,13],[27,9,27,13]]}
["ASSOCIATION SPORTIVE DE CERISY GAILLY"]
["SAISON SENIORS 2011-2012"]
["SUIVI STATISTIQUE - SENIORS B"]
[]
[null,"Championnats :",null,null,null,"1ère division / 3ème division",null,null,null,null,null,null,"Stade : ",null,null,"rue du marais - 80800 Cerisy",null,null,null,null,null,null,null,null,"Site internet : ",null,null,"as-cerisy.footeo.com"]
[]
[null,"Entraîneur :",null,null,null,"DUPUTEL David",null,null,null,null,null,null,null,"Adjoint : ",null,null,null,"DUBOIS Sébastien",null,null,null,null,null,null,null,"Coach B :",null,null,null,"DEFOSSEZ Martial"]
[null,null,null,null,null,"duputel.david@gmail.com",null,null,null,null,null,null,null,null,null,null,null,"sebastien.dubois@aerolia.com",null,null,null,null,null,null,null,null,null,null,null,"martial.defossez@wanadoo.fr"]
[null,null,null,null,null,"Tél : 03.22.96.00.51 / 06.17.16.09.47",null,null,null,null,null,null,null,null,null,null,null,"Tél : 03.22.05.83.80 / 06.73.82.67.81",null,null,null,null,null,null,null,null,null,null,null,"Tél : 03.22.76.61.50"]
[]
[]
[]
[null,null,null,null,null,null,null,null,null,null,null,null,null,null,{"$f":"J22","v":"As Cerisy 2"},null,{"$f":"J23","v":"Aae Chaulnes 2"},null,{"$f":"J24","v":"As Domart sur la Luce"},null,{"$f":"J25","v":"Fr Englebelmer 2"},null,{"$f":"J26","v":"Fc Estrées Mons"},null,{"$f":"J27","v":"Ics Equancourt"},null,{"$f":"J28","v":"Us Hangest en Santerre"},null,{"$f":"J29","v":"Es Licourt"},null,{"$f":"J30","v":"Fc Méaulte 2"},null,{"$f":"J31","v":"O Monchy"},null,{"$f":"J32","v":"Us Roisel 2"},null,{"$f":"J33","v":"Es Sainte Emilie 2"}]
[]
[]
[]
[null,null,null,null,null,null,null,null,null,""]
[]
[]
[]
[]
[null,null,null,null,null,null,null,null,null,"As Cerisy 2",null,null,null,null,null,null,null,null,null,null,8,0,0,3,null,null,1,2,null,null,3,2,null,null,4,1]
[null,null,null,null,null,null,null,null,null,"Aae Chaulnes 2",null,null,null,null,3,3,null,null,null,null,5,0,2,3,null,null,1,1,null,null,null,null,null,null,2,1]
[null,null,null,null,null,null,null,null,null,"As Domart sur la Luce",null,null,null,null,0,2,null,null,null,null,null,null,null,null,1,3,0,2,null,null,4,1]
[null,null,null,null,null,null,null,null,null,"Fr Englebelmer 2",null,null,null,null,null,null,null,null,0,2,null,null,0,5,0,5,null,null,null,null,2,2,null,null,2,2]
[null,null,null,null,null,null,null,null,null,"Fc Estrées Mons",null,null,null,null,null,null,null,null,3,0,null,null,null,null,4,0,null,null,2,1,null,null,3,3,null,null,3,3]
[null,null,null,null,null,null,null,null,null,"Ics Equancourt",null,null,null,null,1,1,0,4,null,null,null,null,null,null,null,null,null,null,1,0,null,null,1,5,null,null,4,6]
[null,null,null,null,null,null,null,null,null,"Us Hangest en Santerre",null,null,null,null,null,null,null,null,null,null,10,0,1,3,4,0,null,null,null,null,5,0,null,null,7,1]
[null,null,null,null,null,null,null,null,null,"Es Licourt",null,null,null,null,0,1,2,1,0,0,5,0,null,null,null,null,null,null,null,null,null,null,1,0]
[null,null,null,null,null,null,null,null,null,"Fc Méaulte 2",null,null,null,null,null,null,1,6,null,null,null,null,null,null,2,1,null,null,1,0,null,null,0,1,null,null,1,1]
[null,null,null,null,null,null,null,null,null,"O Monchy",null,null,null,null,null,null,2,2,1,1,2,0,null,null,null,null,0,0,null,null,null,null,null,null,4,0]
[null,null,null,null,null,null,null,null,null,"Us Roisel 2",null,null,null,null,null,null,null,null,1,0,null,null,0,9,null,null,null,null,2,0,2,2,null,null,null,null,2,0]
[null,null,null,null,null,null,null,null,null,"Es Sainte Emilie 2",null,null,null,null,0,0,1,0,2,1,null,null,null,null,null,null,0,2,0,0,null,null,2,4]

{"sheet":"Clst B","index":25,"n_rows":29,"n_cols":31,"rows_kept":29,"cut":false,"hidden":false,"merged":[[0,0,0,38],[1,0,1,38],[2,0,2,38],[4,1,4,4],[4,12,4,14],[4,24,4,26],[6,1,6,4],[28,17,28,18],[28,28,28,29],[28,30,28,31],[6,13,6,16],[6,25,6,28],[10,0,10,38],[12,10,12,31],[27,17,27,18],[27,28,27,29],[27,30,27,31],[13,11,13,15],[13,28,13,29],[13,30,13,31]]}
["ASSOCIATION SPORTIVE DE CERISY GAILLY"]
["SAISON SENIORS 2011-2012"]
["SUIVI STATISTIQUE - SENIORS B"]
[]
[null,"Championnats :",null,null,null,"1ère division / 3ème division",null,null,null,null,null,null,"Stade : ",null,null,"rue du marais - 80800 Cerisy",null,null,null,null,null,null,null,null,"Site internet : ",null,null,"as-cerisy.footeo.com"]
[]
[null,"Entraîneur :",null,null,null,"DUPUTEL David",null,null,null,null,null,null,null,"Adjoint : ",null,null,null,"DUBOIS Sébastien",null,null,null,null,null,null,null,"Coach B :",null,null,null,"DEFOSSEZ Martial"]
[null,null,null,null,null,"duputel.david@gmail.com",null,null,null,null,null,null,null,null,null,null,null,"sebastien.dubois@aerolia.com",null,null,null,null,null,null,null,null,null,null,null,"martial.defossez@wanadoo.fr"]
[null,null,null,null,null,"Tél : 03.22.96.00.51 / 06.17.16.09.47",null,null,null,null,null,null,null,null,null,null,null,"Tél : 03.22.05.83.80 / 06.73.82.67.81",null,null,null,null,null,null,null,null,null,null,null,"Tél : 03.22.76.61.50"]
[]
[]
[]
[null,null,null,null,null,null,null,null,null,null,"Saison 2011 - 2012 / 3ème division "]
[null,null,null,null,null,null,null,null,null,null,null,"CLUB",null,null,null,null,null,"PTS","J","G","N","P","F","BP","BC","DIF.","CHA","PEN.","Ratio BP",null,"Ratio BC"]
[null,null,null,null,null,null,null,null,null,null,1,"Fc Estrées Mons",null,null,null,null,null,{"$f":"((((T15*4)+(U15*2)+(V15*1)))-(AA15+AB15))","v":34},{"$f":"T15+U15+V15+W15","v":10},8,2,0,0,38,10,{"$f":"X15-Y15","v":28},2,null,{"$f":"X15/S15","v":3.8},null,{"$f":"Y15/S15","v":1}]
[null,null,null,null,null,null,null,null,null,null,2,"Us Hangest en Santerre",null,null,null,null,null,31,10,7,2,1,0,34,6,28,2,null,3.4,null,0.6]
[null,null,null,null,null,null,null,null,null,"",3,"O Monchy",null,null,null,null,null,28,10,5,4,1,0,22,10,12,1,null,2.2000000000000002,null,1]
[null,null,null,null,null,null,null,null,null,null,4,"As Cerisy 2",null,null,null,null,null,28,10,5,3,2,0,23,12,11,null,null,2.2999999999999998,null,1.2]
[null,null,null,null,null,null,null,null,null,null,5,"Aae Chaulnes 2",null,null,null,null,null,25,10,4,3,3,0,26,14,12,null,null,2.6,null,1.4]
[null,null,null,null,null,null,null,null,null,null,6,"Es Sainte Emilie 2",null,null,null,null,null,22,10,3,4,3,0,15,17,-2,1,null,1.5,null,1.7]
[null,null,null,null,null,null,null,null,null,null,7,"Us Roisel 2",null,null,null,null,null,21,10,3,2,5,0,12,30,-18,null,null,1.2,null,3]
[null,null,null,null,null,null,null,null,null,null,8,"Es Licourt",null,null,null,null,null,20,10,3,2,5,0,9,8,1,1,null,0.9,null,0.8]
[null,null,null,null,null,null,null,null,null,null,9,"Ics Equancourt",null,null,null,null,null,20,10,3,1,6,0,16,27,-11,null,null,1.6,null,2.7]
[null,null,null,null,null,null,null,null,null,null,10,"Fc Méaulte 2",null,null,null,null,null,19,10,2,3,5,0,12,25,-13,null,null,1.2,null,2.5]
[null,null,null,null,null,null,null,null,null,null,11,"As Domart sur la Luce",null,null,null,null,null,18,10,2,2,6,0,9,15,-6,null,null,0.9,null,1.5]
[null,null,null,null,null,null,null,null,null,null,12,"Fr Englebelmer 2",null,null,null,null,null,12,10,0,2,8,0,4,46,-42,null,null,0.4,null,4.5999999999999996]
[null,null,null,null,null,null,null,null,null,null,null,null,null,null,null,null,null,null,null,null,null,null,null,{"$f":"SUM(X15:X26)","v":220},{"$f":"SUM(Y15:Y26)","v":220},null,{"$f":"SUM(AA15:AA26)","v":7}]
[null,null,null,null,null,null,null,null,null,null,null,null,null,null,null,null,null,"Maxi",null,{"$f":"MAX(T15:T26)","v":8},{"$f":"MAX(U15:U26)","v":4},8,0,38,46,28,2,0,{"$f":"MAX(AC15:AD26)","v":3.8},null,{"$f":"MAX(AE15:AF26)","v":4.5999999999999996}]
[null,null,null,null,null,null,null,null,null,null,null,null,null,null,null,null,null,"Mini",null,{"$f":"MIN(T15:T27)","v":0},{"$f":"MIN(U15:U27)","v":1},0,0,4,6,-42,1,0,{"$f":"MIN(AC15:AD26)","v":0.4},null,{"$f":"MIN(AE15:AF26)","v":0.6}]

{"sheet":"Evolution B","index":26,"n_rows":24,"n_cols":34,"rows_kept":24,"cut":false,"hidden":false,"merged":[[13,11,13,32],[13,33,13,34],[6,1,6,4],[6,13,6,16],[6,25,6,28],[10,0,10,38],[12,11,12,32],[0,0,0,38],[1,0,1,38],[2,0,2,38],[4,1,4,4],[4,12,4,14],[4,24,4,26],[14,11,14,21],[14,22,14,32],[23,18,23,20],[23,29,23,31],[14,33,14,34],[16,33,16,34],[17,33,17,34],[19,33,19,34],[20,33,20,34],[21,33,21,34],[18,33,18,34]]}
["ASSOCIATION SPORTIVE DE CERISY GAILLY"]
["SAISON SENIORS 2011-2012"]
["SUIVI STATISTIQUE - SENIORS B"]
[]
[null,"Championnats :",null,null,null,"1ère division / 3ème division",null,null,null,null,null,null,"Stade : ",null,null,"rue du marais - 80800 Cerisy",null,null,null,null,null,null,null,null,"Site internet : ",null,null,"as-cerisy.footeo.com"]
[]
[null,"Entraîneur :",null,null,null,"DUPUTEL David",null,null,null,null,null,null,null,"Adjoint : ",null,null,null,"DUBOIS Sébastien",null,null,null,null,null,null,null,"Coach B :",null,null,null,"DEFOSSEZ Martial"]
[null,null,null,null,null,"duputel.david@gmail.com",null,null,null,null,null,null,null,null,null,null,null,"sebastien.dubois@aerolia.com",null,null,null,null,null,null,null,null,null,null,null,"martial.defossez@wanadoo.fr"]
[null,null,null,null,null,"Tél : 03.22.96.00.51 / 06.17.16.09.47",null,null,null,null,null,null,null,null,null,null,null,"Tél : 03.22.05.83.80 / 06.73.82.67.81",null,null,null,null,null,null,null,null,null,null,null,"Tél : 03.22.76.61.50"]
[]
[]
[]
[null,null,null,null,null,null,null,null,null,null,null,"EVOLUTION CHAMPIONNAT"]
[null,null,null,null,null,null,null,null,null,null,null,"Saison 2010-2011",null,null,null,null,null,null,null,null,null,null,null,null,null,null,null,null,null,null,null,null,null,"Joués"]
[null,null,null,null,null,null,null,null,null,null,null,"Aller",null,null,null,null,null,null,null,null,null,null,"Retour",null,null,null,null,null,null,null,null,null,null,{"$f":"'Clst B'!S15","v":10}]
[null,null,null,null,null,null,null,null,null,null,null,1,2,3,4,5,6,7,8,9,10,11,12,13,14,15,16,17,18,19,20,21,22]
[null,null,null,null,null,null,null,null,"2011 - 2012",null,null,4,4,2,1,2,4,4,4,2,1,null,null,null,null,null,null,null,null,null,null,null,null,{"$f":"SUM(L17:AG17)","v":28}]
[null,null,null,null,null,null,null,null,"2010 - 2011",null,null,4,4,4,4,4,4,1,4,4,4,4,4,2,4,4,1,2,2,4,2,4,4,74]
[null,null,null,null,null,null,null,null,"2009 - 2010",null,null,4,1,4,4,1,4,4,1,4,1,4,4,2,1,4,4,2,4,1,1,4,4,63]
[null,null,null,null,null,null,null,null,"2008 - 2009",null,null,4,2,4,1,2,4,4,1,4,1,1,4,4,4,1,4,1,4,4,1,1,"*",56]
[null,null,null,null,null,null,null,null,"2007 - 2008",null,null,4,2,4,2,4,1,2,2,1,1,1,1,4,4,1,1,1,1,2,1,1,2,43]
[null,null,null,null,null,null,null,null,"2006 - 2007",null,null,1,4,4,1,4,1,1,1,1,4,1,1,1,1,2,1,1,1,4,4,1,4,44]
[null,null,null,null,null,null,null,null,null,null,null,{"$f":"SUM(L17:L22)","v":21},17,22,13,17,18,16,13,16,12,11,{"$f":"SUM(W17:W22)","v":14},{"$f":"SUM(X17:X22)","v":13},14,12,11,7,12,15,9,11,14]
[null,null,null,null,null,null,null,null,null,null,null,null,null,null,null,null,null,null,"Bilan aller",null,null,{"$f":"L23+M23+N23+O23+P23+Q23+R23+S23+T23+U23+V23","v":176},null,null,null,null,null,null,null,"Bilan retour",null,null,{"$f":"W23+X23+Y23+Z23+AA23+AB23+AC23+AD23+AE23+AF23+AG23","v":132}]

{"sheet":"Moyenne pts-matches B","index":27,"n_rows":22,"n_cols":30,"rows_kept":22,"cut":false,"hidden":false,"merged":[[19,13,19,14],[19,15,19,16],[20,13,20,14],[20,15,20,16],[21,13,21,14],[21,15,21,16],[16,13,16,14],[16,15,16,16],[17,13,17,14],[17,15,17,16],[18,13,18,14],[18,15,18,16],[0,0,0,38],[1,0,1,38],[2,0,2,38],[4,1,4,4],[4,12,4,14],[4,24,4,26],[6,13,6,16],[6,25,6,28],[10,0,10,38],[14,13,14,27],[15,13,15,14],[15,15,15,16],[15,17,15,19],[6,1,6,4]]}
["ASSOCIATION SPORTIVE DE CERISY GAILLY"]
["SAISON SENIORS 2011-2012"]
["SUIVI STATISTIQUE - SENIORS B"]
[]
[null,"Championnats :",null,null,null,"1ère division / 3ème division",null,null,null,null,null,null,"Stade : ",null,null,"rue du marais - 80800 Cerisy",null,null,null,null,null,null,null,null,"Site internet : ",null,null,"as-cerisy.footeo.com"]
[]
[null,"Entraîneur :",null,null,null,"DUPUTEL David",null,null,null,null,null,null,null,"Adjoint : ",null,null,null,"DUBOIS Sébastien",null,null,null,null,null,null,null,"Coach B :",null,null,null,"DEFOSSEZ Martial"]
[null,null,null,null,null,"duputel.david@gmail.com",null,null,null,null,null,null,null,null,null,null,null,"sebastien.dubois@aerolia.com",null,null,null,null,null,null,null,null,null,null,null,"martial.defossez@wanadoo.fr"]
[null,null,null,null,null,"Tél : 03.22.96.00.51 / 06.17.16.09.47",null,null,null,null,null,null,null,null,null,null,null,"Tél : 03.22.05.83.80 / 06.73.82.67.81",null,null,null,null,null,null,null,null,null,null,null,"Tél : 03.22.76.61.50"]
[]
[]
[]
[]
[]
[null,null,null,null,null,null,null,null,null,null,null,null,null,"MOYENNE PTS/MATCHES HORS CHARTE DE L'ETHIQUE"]
[null,null,null,null,null,null,null,null,null,null,null,null,null,"Matches",null,"Points",null,"Années",null,null,null,"Moy",null,"Clst final",null,null,"Division jouée"]
[null,null,null,null,null,null,null,null,null,"",null,null,null,{"$f":"'Clst B'!S15","v":10},null,{"$f":"'Evolution B'!AH17","v":28},null,null,"2011-2012",null,null,{"$f":"P17/N17","v":2.8},null,null,null,null,"3ème Div."]
[null,null,null,null,null,null,null,null,null,null,null,null,null,22,null,70,null,null,"2010-2011",null,null,3.1818181818181817,null,"1er",null,null,"4ème Div."]
[null,null,null,null,null,null,null,null,null,null,null,null,null,22,null,63,null,null,"2009-2010",null,null,2.8636363636363638,null,"4ème",null,null,"4ème Div."]
[null,null,null,null,null,null,null,null,null,null,null,null,null,20,null,51,null,null,"2008-2009",null,null,2.5499999999999998,null,"4ème",null,null,"4ème Div."]
[null,null,null,null,null,null,null,null,null,null,null,null,null,20,null,35,null,null,"2007-2008",null,null,1.75,null,"11ème",null,null,"3ème Div."]
[null,null,null,null,null,null,null,null,null,null,null,null,null,22,null,44,null,null,"2006-2007",null,null,2,null,"9ème",null,null,"3ème Div."]

{"sheet":"Répartition 11-12 B","index":28,"n_rows":31,"n_cols":30,"rows_kept":31,"cut":false,"hidden":false,"merged":[[29,12,29,13],[29,15,29,16],[29,21,29,22],[29,24,29,25],[30,10,30,11],[30,12,30,13],[30,15,30,16],[30,19,30,20],[30,21,30,22],[30,24,30,25],[27,12,27,13],[27,15,27,16],[27,21,27,22],[27,24,27,25],[28,12,28,13],[28,15,28,16],[28,21,28,22],[28,24,28,25],[25,10,25,26],[26,10,26,11],[26,12,26,13],[26,15,26,16],[26,19,26,20],[26,21,26,22],[26,24,26,25],[23,12,23,13],[23,15,23,16],[23,21,23,22],[23,24,23,25],[24,10,24,11],[24,12,24,13],[24,15,24,16],[24,19,24,20],[24,21,24,22],[24,24,24,25],[21,12,21,13],[21,15,21,16],[21,21,21,22],[21,24,21,25],[22,12,22,13],[22,15,22,16],[22,21,22,22],[22,24,22,25],[17,21,17,22],[20,10,20,11],[20,12,20,13],[20,15,20,16],[20,19,20,20],[20,24,20,25],[18,10,18,11],[18,12,18,13],[18,15,18,16],[18,19,18,20],[18,21,18,22],[20,21,20,22],[19,10,19,26],[18,24,18,25],[6,25,6,28],[17,24,17,25],[10,0,10,38],[13,10,13,26],[15,15,15,16],[15,21,15,22],[15,24,15,25],[14,24,14,25],[15,12,15,13],[14,10,14,11],[16,12,16,13],[16,15,16,16],[16,21,16,22],[16,24,16,25],[17,12,17,13],[17,15,17,16],[14,12,14,13],[14,15,14,16],[14,19,14,20],[14,21,14,22],[6,1,6,4],[6,13,6,16],[0,0,0,38],[1,0,1,38],[2,0,2,38],[4,1,4,4],[4,12,4,14],[4,24,4,26]]}
["ASSOCIATION SPORTIVE DE CERISY GAILLY"]
["SAISON SENIORS 2011-2012"]
["SUIVI STATISTIQUE - SENIORS B"]
[]
[null,"Championnats :",null,null,null,"1ère division / 3ème division",null,null,null,null,null,null,"Stade : ",null,null,"rue du marais - 80800 Cerisy",null,null,null,null,null,null,null,null,"Site internet : ",null,null,"as-cerisy.footeo.com"]
[]
[null,"Entraîneur :",null,null,null,"DUPUTEL David",null,null,null,null,null,null,null,"Adjoint : ",null,null,null,"DUBOIS Sébastien",null,null,null,null,null,null,null,"Coach B :",null,null,null,"DEFOSSEZ Martial"]
[null,null,null,null,null,"duputel.david@gmail.com",null,null,null,null,null,null,null,null,null,null,null,"sebastien.dubois@aerolia.com",null,null,null,null,null,null,null,null,null,null,null,"martial.defossez@wanadoo.fr"]
[null,null,null,null,null,"Tél : 03.22.96.00.51 / 06.17.16.09.47",null,null,null,null,null,null,null,null,null,null,null,"Tél : 03.22.05.83.80 / 06.73.82.67.81",null,null,null,null,null,null,null,null,null,null,null,"Tél : 03.22.76.61.50"]
[]
[]
[]
[]
[null,null,null,null,null,null,null,null,null,null,"STATISTIQUES GENERALES SAISON 2011-2012",null,null,null,null,null,null,null,null,null,null,null,null,null,null,null,null,null,"Total Matches"]
[null,null,null,null,null,null,null,null,null,null,"Temps",null,"Pour ",null,"%","Contre ",null,"%",null,"Temps",null,"Pour ",null,"%","Contre ",null,"%",null,{"$f":"AC21+AC27","v":12}]
[null,null,null,null,null,null,null,null,null,null,1,15,{"$f":"M22+M28","v":6},null,{"$f":"M16/($M$19+$V$19)","v":0.13953488372093023},{"$f":"P22+P28","v":0},null,{"$f":"P16/($P$19+$Y$19)","v":0},null,45,60,{"$f":"V22+V28","v":7},null,{"$f":"V16/($M$19+$V$19)","v":0.16279069767441862},{"$f":"Y22+Y28","v":7},null,{"$f":"Y16/($P$19+$Y$19)","v":0.53846153846153844}]
[null,null,null,null,null,null,null,null,null,"",16,30,{"$f":"M23+M29","v":8},null,{"$f":"M17/($M$19+$V$19)","v":0.18604651162790697},{"$f":"P22+P28","v":0},null,{"$f":"P17/($P$19+$Y$19)","v":0},null,61,75,{"$f":"V23+V29","v":5},null,{"$f":"V17/($M$19+$V$19)","v":0.11627906976744186},{"$f":"Y23+Y29","v":4},null,{"$f":"Y17/($P$19+$Y$19)","v":0.30769230769230771}]
[null,null,null,null,null,null,null,null,null,null,31,45,{"$f":"M24+M30","v":5},null,{"$f":"M18/($M$19+$V$19)","v":0.11627906976744186},{"$f":"P24+P30","v":1},null,{"$f":"P18/($P$19+$Y$19)","v":7.6923076923076927E-2},null,76,90,{"$f":"V24+V30","v":12},null,{"$f":"V18/($M$19+$V$19)","v":0.27906976744186046},{"$f":"Y24+Y30","v":1},null,{"$f":"Y18/($P$19+$Y$19)","v":7.6923076923076927E-2}]
[null,null,null,null,null,null,null,null,null,null,"Total",null,{"$f":"SUM(M16:N18)","v":19},null,null,{"$f":"SUM(P16:Q18)","v":1},null,null,null,"Total",null,{"$f":"SUM(V16:W18)","v":24},null,null,{"$f":"SUM(Y16:Z18)","v":12}]
[null,null,null,null,null,null,null,null,null,null,"STATISTIQUES CHAMPIONNAT",null,null,null,null,null,null,null,null,null,null,null,null,null,null,null,null,null,"Matches"]
[null,null,null,null,null,null,null,null,null,null,"Temps",null,"Pour ",null,"%","Contre ",null,"%",null,"Temps",null,"Pour ",null,"%","Contre ",null,"%",null,{"$f":"'Moyenne pts-matches B'!N17","v":10}]
[null,null,null,null,null,null,null,null,null,null,1,15,2,null,{"$f":"M22/($M$25+$V$25)","v":8.6956521739130432E-2},0,null,{"$f":"P22/($P$25+$Y$25)","v":0},null,45,60,3,null,{"$f":"V22/($M$25+$V$25)","v":0.13043478260869565},6,null,{"$f":"Y22/($P$25+$Y$25)","v":0.5}]
[null,null,null,null,null,null,null,null,null,null,16,30,5,null,{"$f":"M23/($M$25+$V$25)","v":0.21739130434782608},0,null,{"$f":"P23/($P$25+$Y$25)","v":0},null,61,75,2,null,{"$f":"V23/($M$25+$V$25)","v":8.6956521739130432E-2},4,null,{"$f":"Y23/($P$25+$Y$25)","v":0.33333333333333331}]
[null,null,null,null,null,null,null,null,null,null,31,45,2,null,{"$f":"M24/($M$25+$V$25)","v":8.6956521739130432E-2},1,null,{"$f":"P24/($P$25+$Y$25)","v":8.3333333333333329E-2},null,76,90,9,null,{"$f":"V24/($M$25+$V$25)","v":0.39130434782608697},1,null,{"$f":"Y24/($P$25+$Y$25)","v":8.3333333333333329E-2}]
[null,null,null,null,null,null,null,null,null,null,"Total",null,{"$f":"SUM(M22:N24)","v":9},null,null,{"$f":"SUM(P22:Q24)","v":1},null,null,null,"Total",null,{"$f":"SUM(V22:W24)","v":14},null,null,{"$f":"SUM(Y22:Z24)","v":11}]
[null,null,null,null,null,null,null,null,null,null,"STATISTIQUES COUPE",null,null,null,null,null,null,null,null,null,null,null,null,null,null,null,null,null,"Matches"]
[null,null,null,null,null,null,null,null,null,null,"Temps",null,"Pour ",null,"%","Contre ",null,"%",null,"Temps",null,"Pour ",null,"%","Contre ",null,"%",null,2]
[null,null,null,null,null,null,null,null,null,null,1,15,4,null,{"$f":"M28/($M$31+$V$31)","v":0.2},0,null,{"$f":"P28/($P$31+$Y$31)","v":0},null,45,60,4,null,{"$f":"V28/($M$31+$V$31)","v":0.2},1,null,{"$f":"Y28/($P$31+$Y$31)","v":0.5}]
[null,null,null,null,null,null,null,null,null,null,16,30,3,null,{"$f":"M29/($M$31+$V$31)","v":0.15},1,null,{"$f":"P29/($P$31+$Y$31)","v":0.5},null,61,75,3,null,{"$f":"V29/($M$31+$V$31)","v":0.15},0,null,{"$f":"Y29/($P$31+$Y$31)","v":0}]
[null,null,null,null,null,null,null,null,null,null,31,45,3,null,{"$f":"M30/($M$31+$V$31)","v":0.15},0,null,{"$f":"P30/($P$31+$Y$31)","v":0},null,76,90,3,null,{"$f":"V30/($M$31+$V$31)","v":0.15},0,null,{"$f":"Y30/($P$31+$Y$31)","v":0}]
[null,null,null,null,null,null,null,null,null,null,"Total",null,{"$f":"SUM(M28:N30)","v":10},null,null,{"$f":"SUM(P28:Q30)","v":1},null,null,null,"Total",null,{"$f":"SUM(V28:W30)","v":10},null,null,{"$f":"SUM(Y28:Z30)","v":1}]

{"sheet":"Répartition Générale B","index":29,"n_rows":43,"n_cols":35,"rows_kept":43,"cut":false,"hidden":false,"merged":[[40,8,40,10],[40,25,40,27],[41,8,41,10],[41,25,41,27],[37,8,37,10],[37,25,37,27],[38,8,38,10],[38,25,38,27],[39,8,39,10],[39,25,39,27],[36,8,36,10],[36,25,36,27],[28,8,28,10],[28,25,28,27],[29,8,29,10],[29,25,29,27],[30,8,30,10],[30,25,30,27],[34,10,34,16],[34,18,34,23],[19,8,19,10],[19,25,19,27],[34,25,34,33],[35,8,35,10],[35,25,35,27],[26,8,26,10],[26,25,26,27],[24,8,24,10],[24,25,24,27],[27,8,27,10],[27,25,27,27],[23,10,23,16],[23,18,23,23],[23,25,23,33],[25,8,25,10],[25,25,25,27],[13,8,13,10],[13,25,13,27],[14,8,14,10],[14,25,14,27],[15,8,15,10],[15,25,15,27],[16,8,16,10],[16,25,16,27],[17,8,17,10],[17,25,17,27],[18,8,18,10],[18,25,18,27],[6,1,6,4],[6,13,6,16],[6,25,6,28],[10,0,10,38],[12,10,12,16],[12,18,12,23],[12,25,12,33],[0,0,0,38],[1,0,1,38],[2,0,2,38],[4,1,4,4],[4,12,4,14],[4,24,4,26]]}
["ASSOCIATION SPORTIVE DE CERISY GAILLY"]
["SAISON SENIORS 2011-2012"]
["SUIVI STATISTIQUE - SENIORS B"]
[]
[null,"Championnats :",null,null,null,"1ère division / 3ème division",null,null,null,null,null,null,"Stade : ",null,null,"rue du marais - 80800 Cerisy",null,null,null,null,null,null,null,null,"Site internet : ",null,null,"as-cerisy.footeo.com"]
[]
[null,"Entraîneur :",null,null,null,"DUPUTEL David",null,null,null,null,null,null,null,"Adjoint : ",null,null,null,"DUBOIS Sébastien",null,null,null,null,null,null,null,"Coach B :",null,null,null,"DEFOSSEZ Martial"]
[null,null,null,null,null,"duputel.david@gmail.com",null,null,null,null,null,null,null,null,null,null,null,"sebastien.dubois@aerolia.com",null,null,null,null,null,null,null,null,null,null,null,"martial.defossez@wanadoo.fr"]
[null,null,null,null,null,"Tél : 03.22.96.00.51 / 06.17.16.09.47",null,null,null,null,null,null,null,null,null,null,null,"Tél : 03.22.05.83.80 / 06.73.82.67.81",null,null,null,null,null,null,null,null,null,null,null,"Tél : 03.22.76.61.50"]
[]
[]
[]
[null,null,null,null,null,null,null,null,null,null,"CHAMPIONNAT / BUTS POUR",null,null,null,null,null,null,null,"ECART",null,null,null,null,null,null,"CHAMPIONNAT / BUTS CONTRE"]
[null,null,null,null,null,null,null,null,"SAISONS",null,null,"1-15","16-30","31-45","46-60","61-75","76-90",null,"1-15","16-30","31-45","46-60","61-75","76-90",null,"SAISONS",null,null,"1-15","16-30","31-45","46-60","61-75","76-90"]
[null,null,null,null,null,null,null,null,"2006-2007",null,null,0,0,0,0,0,0,{"$f":"SUM(L15:Q15)","v":0},{"$f":"L15-AC15","v":0},{"$f":"M15-AD15","v":0},0,0,0,0,{"$f":"SUM(S15:X15)","v":0},"2006-2007",null,null,0,0,0,0,0,0,{"$f":"SUM(AC15:AH15)","v":0}]
[null,null,null,null,null,null,null,null,"2007-2008",null,null,4,3,6,6,3,11,33,-1,-7,-5,-4,-10,0,-27,"2007-2008",null,null,5,10,11,10,13,11,60]
[null,null,null,null,null,null,null,null,"2008-2009",null,null,4,10,10,10,14,7,55,-1,6,9,7,9,-3,27,"2008-2009",null,null,5,4,1,3,5,10,28]
[null,null,null,null,null,null,null,null,"2009-2010",null,null,8,5,9,12,12,15,61,6,0,4,4,4,10,28,"2009-2010",null,null,2,5,5,8,8,5,33]
[null,null,null,null,null,null,null,null,"2010-2011",null,null,9,13,9,14,10,10,65,8,9,6,12,8,3,46,"2010-2011",null,null,1,4,3,2,2,7,19]
[null,null,null,null,null,null,null,null,"2011-2012",null,null,{"$f":"'Répartition 11-12 B'!M22","v":2},{"$f":"'Répartition 11-12 B'!M23","v":5},{"$f":"'Répartition 11-12 B'!M24","v":2},{"$f":"'Répartition 11-12 B'!V22","v":3},{"$f":"'Répartition 11-12 B'!V23","v":2},{"$f":"'Répartition 11-12 B'!V24","v":9},23,2,5,1,-3,-2,8,11,"2011-2012",null,null,{"$f":"'Répartition 11-12 B'!P22","v":0},{"$f":"'Répartition 11-12 B'!P23","v":0},{"$f":"'Répartition 11-12 B'!P24","v":1},{"$f":"'Répartition 11-12 B'!Y22","v":6},{"$f":"'Répartition 11-12 B'!Y23","v":4},{"$f":"'Répartition 11-12 B'!Y24","v":1},12]
[null,null,null,null,null,null,null,null,null,null,null,{"$f":"SUM(L15:L20)","v":27},36,36,45,41,52,null,null,null,null,null,null,null,null,null,null,null,{"$f":"SUM(AC15:AC20)","v":13},23,21,29,32,34]
[]
[]
[null,null,null,null,null,null,null,null,null,null,"COUPE / BUTS POUR",null,null,null,null,null,null,null,"ECART",null,null,null,null,null,null,"COUPE / BUTS CONTRE"]
[null,null,null,null,null,null,null,null,"SAISONS",null,null,"1-15","16-30","31-45","46-60","61-75","76-90",null,"1-15","16-30","31-45","46-60","61-75","76-90",null,"SAISONS",null,null,"1-15","16-30","31-45","46-60","61-75","76-90"]
[null,null,null,null,null,null,null,null,"2006-2007",null,null,0,0,0,0,0,0,{"$f":"SUM(L26:Q26)","v":0},{"$f":"L26-AC26","v":0},{"$f":"M26-AD26","v":0},0,0,0,0,{"$f":"SUM(S26:X26)","v":0},"2006-2007",null,null,0,0,0,0,0,0,{"$f":"SUM(AC26:AH26)","v":0}]
[null,null,null,null,null,null,null,null,"2007-2008",null,null,0,2,2,1,5,3,13,-1,2,1,1,5,0,8,"2007-2008",null,null,1,0,1,0,0,3,5]
[null,null,null,null,null,null,null,null,"2008-2009",null,null,5,6,2,3,5,11,32,5,6,2,-1,4,7,23,"2008-2009",null,null,0,0,0,4,1,4,9]
[null,null,null,null,null,null,null,null,"2009-2010",null,null,2,2,1,1,1,2,9,0,1,0,0,-1,1,1,"2009-2010",null,null,2,1,1,1,2,1,8]
[null,null,null,null,null,null,null,null,"2010-2011",null,null,1,0,1,0,0,0,2,1,-1,1,0,-1,0,0,"2010-2011",null,null,0,1,0,0,1,0,2]
[null,null,null,null,null,null,null,null,"2011-2012",null,null,{"$f":"'Répartition 11-12 B'!M28","v":4},{"$f":"'Répartition 11-12 B'!M29","v":3},{"$f":"'Répartition 11-12 B'!M30","v":3},{"$f":"'Répartition 11-12 B'!V28","v":4},{"$f":"'Répartition 11-12 B'!V29","v":3},{"$f":"'Répartition 11-12 B'!V30","v":3},20,4,2,3,3,3,3,18,"2011-2012",null,null,{"$f":"'Répartition 11-12 B'!P28","v":0},{"$f":"'Répartition 11-12 B'!P29","v":1},{"$f":"'Répartition 11-12 B'!P30","v":0},{"$f":"'Répartition 11-12 B'!Y28","v":1},{"$f":"'Répartition 11-12 B'!Y29","v":0},{"$f":"'Répartition 11-12 B'!Y30","v":0},2]
[null,null,null,null,null,null,null,null,null,null,null,{"$f":"SUM(L26:L31)","v":12},13,9,9,14,19,null,null,null,null,null,null,null,null,null,null,null,{"$f":"SUM(AC26:AC31)","v":3},3,2,6,4,8]
[]
[]
[null,null,null,null,null,null,null,null,null,null,"GENERAL / BUTS POUR",null,null,null,null,null,null,null,"ECART",null,null,null,null,null,null,"GENERAL / BUTS CONTRE"]
[null,null,null,null,null,null,null,null,"SAISONS",null,null,"1-15","16-30","31-45","46-60","61-75","76-90",null,"1-15","16-30","31-45","46-60","61-75","76-90",null,"SAISONS",null,null,"1-15","16-30","31-45","46-60","61-75","76-90"]
[null,null,null,null,null,null,null,null,"2006-2007",null,null,{"$f":"L15+L26","v":0},0,0,0,0,0,{"$f":"SUM(L37:Q37)","v":0},{"$f":"L37-AC37","v":0},{"$f":"M37-AD37","v":0},0,0,0,0,{"$f":"SUM(S37:X37)","v":0},"2006-2007",null,null,{"$f":"AC15+AC26","v":0},0,0,0,0,0,{"$f":"SUM(AC37:AH37)","v":0}]
[null,null,null,null,null,null,null,null,"2007-2008",null,null,4,5,8,7,8,14,46,-2,-5,-4,-3,-5,0,-19,"2007-2008",null,null,6,10,12,10,13,14,65]
[null,null,null,null,null,null,null,null,"2008-2009",null,null,9,16,12,13,19,18,87,4,12,11,6,13,4,50,"2008-2009",null,null,5,4,1,7,6,14,37]
[null,null,null,null,null,null,null,null,"2009-2010",null,null,10,7,10,13,13,17,70,6,1,4,4,3,11,29,"2009-2010",null,null,4,6,6,9,10,6,41]
[null,null,null,null,null,null,null,null,"2010-2011",null,null,10,13,10,14,10,10,67,9,8,7,12,7,3,46,"2010-2011",null,null,1,5,3,2,3,7,21]
[null,null,null,null,null,null,null,null,"2011-2012",null,null,6,8,5,7,5,12,43,6,7,4,0,1,11,29,"2011-2012",null,null,0,1,1,7,4,1,14]
[null,null,null,null,null,null,null,null,null,null,null,{"$f":"SUM(L37:L42)","v":39},49,45,54,55,71,null,null,null,null,null,null,null,null,null,null,null,{"$f":"SUM(AC37:AC42)","v":16},26,23,35,36,42]

{"sheet":"Moyenne par matche B","index":30,"n_rows":23,"n_cols":31,"rows_kept":23,"cut":false,"hidden":false,"merged":[[22,13,22,14],[22,19,22,20],[22,25,22,26],[20,10,20,12],[20,13,20,14],[20,19,20,20],[20,25,20,26],[21,10,21,12],[21,13,21,14],[21,19,21,20],[21,25,21,26],[18,13,18,14],[18,19,18,20],[18,25,18,26],[18,10,18,12],[19,10,19,12],[19,13,19,14],[19,19,19,20],[19,25,19,26],[16,10,16,12],[16,13,16,14],[16,19,16,20],[16,25,16,26],[17,10,17,12],[17,13,17,14],[17,19,17,20],[17,25,17,26],[15,10,15,12],[15,13,15,14],[15,19,15,20],[15,25,15,26],[14,21,14,22],[14,23,14,24],[14,17,14,18],[0,0,0,38],[1,0,1,38],[2,0,2,38],[4,1,4,4],[4,12,4,14],[4,24,4,26],[14,27,14,28],[14,29,14,30],[6,1,6,4],[6,13,6,16],[6,25,6,28],[10,0,10,38],[13,13,13,18],[13,19,13,24],[13,25,13,30],[14,15,14,16]]}
["ASSOCIATION SPORTIVE DE CERISY GAILLY"]
["SAISON SENIORS 2011-2012"]
["SUIVI STATISTIQUE - SENIORS B"]
[]
[null,"Championnats :",null,null,null,"1ère division / 3ème division",null,null,null,null,null,null,"Stade : ",null,null,"rue du marais - 80800 Cerisy",null,null,null,null,null,null,null,null,"Site internet : ",null,null,"as-cerisy.footeo.com"]
[]
[null,"Entraîneur :",null,null,null,"DUPUTEL David",null,null,null,null,null,null,null,"Adjoint : ",null,null,null,"DUBOIS Sébastien",null,null,null,null,null,null,null,"Coach B :",null,null,null,"DEFOSSEZ Martial"]
[null,null,null,null,null,"duputel.david@gmail.com",null,null,null,null,null,null,null,null,null,null,null,"sebastien.dubois@aerolia.com",null,null,null,null,null,null,null,null,null,null,null,"martial.defossez@wanadoo.fr"]
[null,null,null,null,null,"Tél : 03.22.96.00.51 / 06.17.16.09.47",null,null,null,null,null,null,null,null,null,null,null,"Tél : 03.22.05.83.80 / 06.73.82.67.81",null,null,null,null,null,null,null,null,null,null,null,"Tél : 03.22.76.61.50"]
[]
[]
[]
[]
[null,null,null,null,null,null,null,null,null,null,null,null,null,"CHAMPIONNAT",null,null,null,null,null,"COUPES",null,null,null,null,null,"GENERAL"]
[null,null,null,null,null,null,null,null,null,null,null,null,null,null,null,"POUR",null,"CONTRE",null,null,null,"POUR",null,"CONTRE",null,null,null,"POUR",null,"CONTRE"]
[null,null,null,null,null,null,null,null,null,null,"SAISONS",null,null,"MATCHES",null,"BUTS","MOY","BUTS","MOY","MATCHES",null,"BUTS","MOY","BUTS","MOY","MATCHES",null,"BUTS","MOY","BUTS","MOY"]
[null,null,null,null,null,null,null,null,null,"","2006-2007",null,null,21,null,49,{"$f":"P17/N17","v":2.3333333333333335},15,{"$f":"R17/N17","v":0.7142857142857143},10,null,24,{"$f":"V17/T17","v":2.4},12,{"$f":"X17/T17","v":1.2},{"$f":"N17+T17","v":31},null,{"$f":"P17+V17","v":73},{"$f":"AB17/Z17","v":2.3548387096774195},{"$f":"R17+X17","v":27},{"$f":"AD17/Z17","v":0.87096774193548387}]
[null,null,null,null,null,null,null,null,null,null,"2007-2008",null,null,22,null,50,2.2727272727272729,13,0.59090909090909094,5,null,14,2.8,6,1.2,27,null,64,2.3703703703703702,19,0.70370370370370372]
[null,null,null,null,null,null,null,null,null,null,"2008-2009",null,null,22,null,42,1.9090909090909092,19,0.86363636363636365,11,null,28,2.5454545454545454,17,1.5454545454545454,33,null,70,2.1212121212121211,36,1.0909090909090908]
[null,null,null,null,null,null,null,null,null,null,"2009-2010",null,null,20,null,32,1.6,26,1.3,7,null,11,1.5714285714285714,12,1.7142857142857142,27,null,43,1.5925925925925926,38,1.4074074074074074]
[null,null,null,null,null,null,null,null,null,null,"2010-2011",null,null,22,null,65,2.9545454545454546,19,0.86363636363636365,1,null,0,0,2,2,23,null,65,2.8260869565217392,21,0.91304347826086951]
[null,null,null,null,null,null,null,null,null,null,"2011-2012",null,null,{"$f":"'Clst B'!S16","v":10},null,{"$f":"'Répartition Générale B'!R20","v":23},2.2999999999999998,{"$f":"'Répartition Générale B'!AI20","v":12},1.2,{"$f":"'Répartition 11-12 B'!AC27","v":2},null,{"$f":"'Répartition Générale B'!R31","v":20},10,{"$f":"'Répartition Générale B'!AI31","v":2},1,12,null,43,3.5833333333333335,14,1.1666666666666667]
[null,null,null,null,null,null,null,null,null,null,null,null,null,{"$f":"SUM(N17:O22)","v":117},null,{"$f":"SUM(P17:P22)","v":261},2.2307692307692308,{"$f":"SUM(R17:R22)","v":104},0.88888888888888884,{"$f":"SUM(T17:U22)","v":36},null,{"$f":"SUM(V17:V22)","v":97},2.6944444444444446,{"$f":"SUM(X17:X22)","v":51},1.4166666666666667,{"$f":"SUM(Z17:AA22)","v":153},null,{"$f":"SUM(AB17:AB22)","v":358},2.3398692810457518,{"$f":"SUM(AD17:AD22)","v":155},1.0130718954248366]

{"sheet":"Joueurs B","index":31,"n_rows":66,"n_cols":53,"rows_kept":66,"cut":false,"hidden":false,"merged":[[64,8,64,11],[55,8,55,11],[56,8,56,11],[57,8,57,11],[58,8,58,11],[47,8,47,11],[59,8,59,11],[60,8,60,11],[63,8,63,11],[48,8,48,11],[49,8,49,11],[50,8,50,11],[51,8,51,11],[52,8,52,11],[53,8,53,11],[61,8,61,11],[62,8,62,11],[54,8,54,11],[42,8,42,11],[43,8,43,11],[44,8,44,11],[45,8,45,11],[46,8,46,11],[40,8,40,11],[41,8,41,11],[30,8,30,11],[19,8,19,11],[20,8,20,11],[21,8,21,11],[22,8,22,11],[23,8,23,11],[28,8,28,11],[29,8,29,11],[38,8,38,11],[37,8,37,11],[39,8,39,11],[24,8,24,11],[32,8,32,11],[33,8,33,11],[34,8,34,11],[35,8,35,11],[36,8,36,11],[17,8,17,11],[13,8,13,11],[14,8,14,11],[15,8,15,11],[16,8,16,11],[18,8,18,11],[25,8,25,11],[26,8,26,11],[27,8,27,11],[31,8,31,11],[6,25,6,28],[10,0,10,52],[12,12,12,20],[12,22,12,28],[12,30,12,36],[12,38,12,44],[12,46,12,52],[6,1,6,4],[6,13,6,16],[0,0,0,52],[1,0,1,52],[2,0,2,52],[4,1,4,4],[4,12,4,14],[4,24,4,26]]}
["ASSOCIATION SPORTIVE DE CERISY GAILLY"]
["SAISON SENIORS 2011-2012"]
["SUIVI STATISTIQUE - SENIORS A"]
[]
[null,"Championnats :",null,null,null,"1ère division / 3ème division",null,null,null,null,null,null,"Stade : ",null,null,"rue du marais - 80800 Cerisy",null,null,null,null,null,null,null,null,"Site internet : ",null,null,"as-cerisy.footeo.com"]
[]
[null,"Entraîneur :",null,null,null,"DUPUTEL David",null,null,null,null,null,null,null,"Adjoint : ",null,null,null,"DUBOIS Sébastien",null,null,null,null,null,null,null,"Coach B :",null,null,null,"DEFOSSEZ Martial"]
[null,null,null,null,null,"duputel.david@gmail.com",null,null,null,null,null,null,null,null,null,null,null,"sebastien.dubois@aerolia.com",null,null,null,null,null,null,null,null,null,null,null,"martial.defossez@wanadoo.fr"]
[null,null,null,null,null,"Tél : 03.22.96.00.51 / 06.17.16.09.47",null,null,null,null,null,null,null,null,null,null,null,"Tél : 03.22.05.83.80 / 06.73.82.67.81",null,null,null,null,null,null,null,null,null,null,null,"Tél : 03.22.76.61.50"]
[]
[]
[]
[null,null,null,null,null,null,null,null,null,null,null,null,"Général",null,null,null,null,null,null,null,null,null,"Saison 2008-2009",null,null,null,null,null,null,null,"Saison 2009-2010",null,null,null,null,null,null,null,"Saison 2010-2011",null,null,null,null,null,null,null,"Saison 2011-2012"]
[null,null,null,null,null,null,null,null,"Joueurs Utilisés  ",null,null,null,null,"Titulaire","Joués","Titulaire","Remplaçant","Buts","Passes","Jaunes","Rouges",null,"Joués","Titulaire","Remplaçant","Buts","Passes","Jaunes","Rouges",null,"Joués","Titulaire","Remplaçant","Buts","Passes","Jaunes","Rouges",null,"Joués","Titulaire","Remplaçant","Buts","Passes","Jaunes","Rouges",null,"Joués","Titulaire","Remplaçant","Buts","Passes","Jaunes","Rouges"]
[null,null,null,null,null,null,null,null,"Roussel Dimitri",null,null,null,1,{"$f":"P15/O15","v":1},{"$f":"W15+AE15+AM15+AU15","v":23},{"$f":"X15+AF15+AN15+AV15","v":23},{"$f":"Y15+AG15+AO15+AW15","v":0},0,0,{"$f":"AB15+AJ15+AR15+AZ15","v":0},{"$f":"AC15+AK15+AS15+BA15","v":0},null,null,null,null,null,null,null,null,null,null,null,{"$f":"AE15-AF15","v":0},null,null,null,null,null,23,23,{"$f":"AM15-AN15","v":0},null,null,null,null,null,null,null,{"$f":"AU15-AV15","v":0}]
[null,null,null,null,null,null,null,null,"Dupont Kévin",null,null,null,1,{"$f":"P16/O16","v":0.83333333333333337},{"$f":"W16+AE16+AM16+AU16","v":24},20,4,14,13,1,0,null,null,null,null,null,null,null,null,null,null,null,{"$f":"AE16-AF16","v":0},null,null,null,null,null,18,15,{"$f":"AM16-AN16","v":3},9,10,null,null,1,6,5,{"$f":"AU16-AV16","v":1},5,3,1]
[null,null,null,null,null,null,null,null,"Dhiu Alexandre",null,null,null,1,{"$f":"P17/O17","v":0},30,null,1,0,0,0,0,null,null,null,null,null,null,null,null,null,null,null,{"$f":"AE17-AF17","v":0},null,null,null,null,null,19,18,{"$f":"AM17-AN17","v":1},null,null,null,null,null,11,11,{"$f":"AU17-AV17","v":0}]
[null,null,null,null,null,null,null,null,"Carette Cédric",null,null,null,1,0.96875,32,31,1,8,3,0,0,null,null,null,null,null,null,null,null,null,null,null,0,null,null,null,null,null,21,20,1,5,1,null,null,1,11,11,0,3,2]
[null,null,null,null,null,null,null,null,"Mascré Ghislain",null,null,null,1,0.95454545454545459,22,21,1,17,7,0,0,null,null,null,null,null,null,null,null,null,null,null,0,null,null,null,null,null,22,21,1,17,7,null,null,null,null,null,0]
[null,null,null,null,null,null,null,null,"Ranvin Rémi",null,null,null,1,1,23,23,0,5,7,0,0,null,null,null,null,null,null,null,null,null,null,null,0,null,null,null,null,null,23,23,0,5,7,null,null,null,null,null,0]
[null,null,null,null,null,null,null,null,"Ranvin Lori",null,null,null,1,1,10,10,0,10,8,1,0,null,null,null,null,null,null,null,null,null,null,null,0,null,null,null,null,null,3,3,0,2,null,null,null,1,7,7,0,8,8,1]
[null,null,null,null,null,null,null,null,"Beyaert Antoine",null,null,null,1,0.91666666666666663,12,11,1,1,4,0,0,null,null,null,null,null,null,null,null,null,null,null,0,null,null,null,null,null,12,11,1,1,4,null,null,null,null,null,0]
[null,null,null,null,null,null,null,null,"Josse Grégory",null,null,null,1,1,16,16,0,7,11,2,0,null,null,null,null,null,null,null,null,null,null,null,0,null,null,null,null,null,4,4,0,null,4,null,null,1,12,12,0,7,7,2]
[null,null,null,null,null,null,null,null,"Berton Thibault",null,null,null,1,0.82608695652173914,23,19,4,10,1,0,0,null,null,null,null,null,null,null,null,null,null,null,0,null,null,null,null,null,15,13,2,5,null,null,null,1,8,6,2,5,1]
[null,null,null,null,null,null,null,null,"Revaux Sylvain",null,null,null,1,1,20,20,0,0,0,0,0,null,null,null,null,null,null,null,null,null,null,null,0,null,null,null,null,null,20,20,0,null,null,null,null,null,null,null,0]
[null,null,null,null,null,null,null,null,"Diéval Maxime",null,null,null,1,1,2,2,0,0,0,0,0,null,null,null,null,null,null,null,null,null,null,null,0,null,null,null,null,null,2,2,{"$f":"AM26-AN26","v":0},null,null,null,null,null,null,null,0]
[null,null,null,null,null,null,null,null,"Tibault Jonathan",null,null,null,1,0.33333333333333331,15,5,10,4,1,0,0,null,null,null,null,null,null,null,null,null,null,null,0,null,null,null,null,null,15,5,10,4,1,null,null,null,null,null,0]
[null,null,null,null,null,null,null,null,"Dumont Eric",null,null,null,1,0.93103448275862066,29,27,2,0,0,1,0,null,null,null,null,null,null,null,null,null,null,null,0,null,null,null,null,null,20,20,0,null,null,null,null,1,9,7,2,null,null,1]
[null,null,null,null,null,null,null,null,"Courtois Kévin",null,null,null,1,0.88888888888888884,18,16,2,6,4,2,0,null,null,null,null,null,null,null,null,null,null,null,0,null,null,null,null,null,18,16,2,6,4,2,null,null,null,null,0]
[null,null,null,null,null,null,null,null,"Waquet Ludovic",null,null,null,1,1,1,1,0,0,1,0,0,null,null,null,null,null,null,null,null,null,null,null,0,null,null,null,null,null,1,1,0,null,1,null,null,null,null,null,0]
[null,null,null,null,null,null,null,null,"de Bruyne Rudy",null,null,null,1,0.7931034482758621,29,23,6,0,1,1,0,null,null,null,null,null,null,null,null,null,null,null,0,null,null,null,null,null,18,14,4,null,1,1,null,null,11,9,2]
[null,null,null,null,null,null,null,null,"Amarias Yannick",null,null,null,1,0.65,20,13,7,0,5,1,0,null,null,null,null,null,null,null,null,null,null,null,0,null,null,null,null,null,10,5,5,null,3,1,null,1,10,8,2,null,2]
[null,null,null,null,null,null,null,null,"Maurice Fabian",null,null,null,1,0.23529411764705882,17,4,13,6,0,0,0,null,null,null,null,null,null,null,null,null,null,null,0,null,null,null,null,null,10,2,8,3,null,null,null,1,7,2,5,3]
[null,null,null,null,null,null,null,null,"Jérôme Vincent",null,null,null,1,1,4,4,0,5,2,0,0,null,null,null,null,null,null,null,null,null,null,null,0,null,null,null,null,null,3,3,0,4,2,null,null,null,1,1,0,1]
[null,null,null,null,null,null,null,null,"Faqui Alexandre",null,null,null,1,0.69230769230769229,13,9,4,0,2,0,0,null,null,null,null,null,null,null,null,null,null,null,0,null,null,null,null,null,5,2,{"$f":"AM35-AN35","v":3},null,1,null,null,null,8,7,1,null,1]
[null,null,null,null,null,null,null,null,"Largillère Franck",null,null,null,1,0.5,8,4,4,1,0,0,0,null,null,null,null,null,null,null,null,null,null,null,0,null,null,null,null,null,8,4,4,1,null,null,null,null,null,null,0]
[null,null,null,null,null,null,null,null,"Ledoux Alexis",null,null,null,1,0,1,0,1,0,0,0,0,null,null,null,null,null,null,null,null,null,null,null,0,null,null,null,null,null,1,0,1,null,null,null,null,null,null,null,0]
[null,null,null,null,null,null,null,null,"Aince Philippe",null,null,null,1,0.8,5,4,1,0,0,0,0,null,null,null,null,null,null,null,null,null,null,null,0,null,null,null,null,null,5,4,1,null,null,null,null,null,null,null,0]
[null,null,null,null,null,null,null,null,"Chabat Cory",null,null,null,1,0,2,0,2,1,0,0,0,null,null,null,null,null,null,null,null,null,null,null,{"$f":"AE39-AF39","v":0},null,null,null,null,null,1,0,1,null,null,null,null,null,1,0,1,1]
[null,null,null,null,null,null,null,null,"Defossez Rémi",null,null,null,1,0.83333333333333337,6,5,1,1,0,0,0,null,null,null,null,null,null,null,null,null,null,null,{"$f":"AE40-AF40","v":0},null,null,null,null,null,2,2,{"$f":"AM40-AN40","v":0},1,null,null,null,null,4,3,1]
[null,null,null,null,null,null,null,null,"Defossez Aurélien",null,null,null,null,1,5,5,0,0,0,0,0,null,null,null,null,null,null,null,null,null,null,null,0,null,null,null,null,null,null,null,0,null,null,null,null,null,5,5,0]
[null,null,null,null,null,null,null,null,"Subitte Alexis",null,null,null,null,{"$error":"#DIV/0!"},0,1,1,0,0,1,0,null,null,null,null,null,null,null,null,null,null,null,0,null,null,null,null,null,null,null,0,null,null,null,null,null,0,1,{"$f":"AV42-AU42","v":1},null,null,1]
[null,null,null,null,null,null,null,null,"Plesnage Jérôme",null,null,null,null,0.66666666666666663,9,6,3,1,0,0,0,null,null,null,null,null,null,null,null,null,null,null,0,null,null,null,null,null,null,null,0,null,null,null,null,1,9,6,3,1]
[null,null,null,null,null,null,null,null,"Alépée Yannick",null,null,null,null,1,11,11,0,0,0,0,0,null,null,null,null,null,null,null,null,null,null,null,0,null,null,null,null,null,null,null,{"$f":"AM44-AN44","v":0},null,null,null,null,1,11,11,0]
[null,null,null,null,null,null,null,null,"Douay Clément",null,null,null,null,1,2,2,0,0,0,0,0,null,null,null,null,null,null,null,null,null,null,null,0,null,null,null,null,null,null,null,{"$f":"AM45-AN45","v":0},null,null,null,null,null,2,2,0]
[null,null,null,null,null,null,null,null,"Martins Rudy",null,null,null,null,1,2,2,0,1,0,0,0,null,null,null,null,null,null,null,null,null,null,null,0,null,null,null,null,null,null,null,{"$f":"AM46-AN46","v":0},null,null,null,null,null,2,2,0,1]
[null,null,null,null,null,null,null,null,"Larouette Yann",null,null,null,null,1,11,11,0,6,1,0,0,null,null,null,null,null,null,null,null,null,null,null,0,null,null,null,null,null,null,null,{"$f":"AM47-AN47","v":0},null,null,null,null,1,11,11,0,6,1]
[null,null,null,null,null,null,null,null,"Delplanque Maxime",null,null,null,null,0.66666666666666663,3,2,1,0,0,0,0,null,null,null,null,null,null,null,null,null,null,null,0,null,null,null,null,null,null,null,{"$f":"(AM48-AN48)","v":0},null,null,null,null,1,3,2,{"$f":"(AU48-AV48)","v":1}]
[null,null,null,null,null,null,null,null,"Borck Stéphane",null,null,null,null,1,1,1,0,0,0,0,0,null,null,null,null,null,null,null,null,null,null,null,0,null,null,null,null,null,null,null,{"$f":"AM49-AN49","v":0},null,null,null,null,null,1,1,{"$f":"AU49-AV49","v":0}]
[null,null,null,null,null,null,null,null,"Capelle Stéphane",null,null,null,null,0,1,0,1,1,0,0,0,null,null,null,null,null,null,null,null,null,null,null,null,null,null,null,null,null,null,null,0,null,null,null,null,null,1,0,1,1]
[null,null,null,null,null,null,null,null,"Pitarch Boris",null,null,null,null,0.66666666666666663,3,2,1,1,2,0,0,null,null,null,null,null,null,null,null,null,null,null,null,null,null,null,null,null,null,null,0,null,null,null,null,1,3,2,1,1,2]
[null,null,null,null,null,null,null,null,"Duquenoy Loïc",null,null,null,null,0.33333333333333331,3,1,2,0,1,0,0,null,null,null,null,null,null,null,null,null,null,null,null,null,null,null,null,null,null,null,0,null,null,null,null,1,3,1,2,null,1]
[null,null,null,null,null,null,null,null,"Dècle Jérôme",null,null,null,null,1,1,1,0,0,0,0,0,null,null,null,null,null,null,null,null,null,null,null,null,null,null,null,null,null,null,null,0,null,null,null,null,null,1,1,0]
[null,null,null,null,null,null,null,null,null,null,null,null,null,{"$error":"#DIV/0!"},0,0,0,0,0,0,0,null,null,null,null,null,null,null,null,null,null,null,null,null,null,null,null,null,null,null,0,null,null,null,null,null,null,null,0]
[null,null,null,null,null,null,null,null,null,null,null,null,null,{"$error":"#DIV/0!"},0,0,0,0,0,0,0,null,null,null,null,null,null,null,null,null,0,0,0,null,null,null,null,null,null,null,0,null,null,null,null,null,null,null,0]
[null,null,null,null,null,null,null,null,null,null,null,null,null,{"$error":"#DIV/0!"},0,0,0,0,0,0,0]
[null,null,null,null,null,null,null,null,null,null,null,null,null,{"$error":"#DIV/0!"},0,0,0,0,0,0,0]
[null,null,null,null,null,null,null,null,null,null,null,null,null,{"$error":"#DIV/0!"},0,0,0,0,0,0,0]
[null,null,null,null,null,null,null,null,null,null,null,null,null,{"$error":"#DIV/0!"},0,0,0,0,0,0,0]
[null,null,null,null,null,null,null,null,null,null,null,null,null,{"$error":"#DIV/0!"},0,0,0,0,0,0,0]
[null,null,null,null,null,null,null,null,null,null,null,null,null,{"$error":"#DIV/0!"},0,0,0,0,0,0,0]
[null,null,null,null,null,null,null,null,null,null,null,null,null,{"$error":"#DIV/0!"},0,0,0,0,0,0,0]
[null,null,null,null,null,null,null,null,null,null,null,null,null,{"$error":"#DIV/0!"},0,{"$f":"X63+AF63+AN63+AV63","v":0},0,0,0,0,0]
[null,null,null,null,null,null,null,null,null,null,null,null,null,{"$error":"#DIV/0!"},{"$f":"W64+AE64+AM64+AU64","v":0},0,0,0,0,0,0]
[null,null,null,null,null,null,null,null,null,null,null,null,null,{"$error":"#DIV/0!"},{"$f":"W65+AE65+AM65+AU65","v":0},0,0,0,0,0,0,null,null,null,null,null,null,null,null,null,0,0,{"$f":"AE65-AF65","v":0}]
[null,null,null,null,null,null,null,null,null,null,null,null,{"$f":"SUM(M15:M65)","v":26},null,{"$f":"SUM(O15:O65)","v":457},356,74,106,74,10,0,null,{"$f":"SUM(W15:W65)","v":0},0,0,0,0,0,0,null,{"$f":"SUM(AE15:AE65)","v":0},0,0,0,0,0,0,null,{"$f":"SUM(AM15:AM65)","v":299},251,48,63,46,4,0,{"$f":"SUM(AT15:AT65)","v":14},{"$f":"SUM(AU15:AU65)","v":158},134,26,43,28,6,0]

{"sheet":"Forme Buteurs B","index":32,"n_rows":41,"n_cols":44,"rows_kept":41,"cut":false,"hidden":false,"merged":[[13,7,13,10],[6,1,6,4],[6,13,6,16],[6,25,6,28],[10,0,10,38],[12,11,12,22],[12,23,12,43],[0,0,0,38],[1,0,1,38],[2,0,2,38],[4,1,4,4],[4,12,4,14],[4,24,4,26]]}
["ASSOCIATION SPORTIVE DE CERISY GAILLY"]
["SAISON SENIORS 2011-2012"]
["SUIVI STATISTIQUE - SENIORS B"]
[]
[null,"Championnats :",null,null,null,"1ère division / 3ème division",null,null,null,null,null,null,"Stade : ",null,null,"rue du marais - 80800 Cerisy",null,null,null,null,null,null,null,null,"Site internet : ",null,null,"as-cerisy.footeo.com"]
[]
[null,"Entraîneur :",null,null,null,"DUPUTEL David",null,null,null,null,null,null,null,"Adjoint : ",null,null,null,"DUBOIS Sébastien",null,null,null,null,null,null,null,"Coach B :",null,null,null,"DEFOSSEZ Martial"]
[null,null,null,null,null,"duputel.david@gmail.com",null,null,null,null,null,null,null,null,null,null,null,"sebastien.dubois@aerolia.com",null,null,null,null,null,null,null,null,null,null,null,"martial.defossez@wanadoo.fr"]
[null,null,null,null,null,"Tél : 03.22.96.00.51 / 06.17.16.09.47",null,null,null,null,null,null,null,null,null,null,null,"Tél : 03.22.05.83.80 / 06.73.82.67.81",null,null,null,null,null,null,null,null,null,null,null,"Tél : 03.22.76.61.50"]
[]
[]
[]
[null,null,null,null,null,null,null,null,null,null,null,2011,null,null,null,null,null,null,null,null,null,null,null,2012]
[null,null,null,null,null,null,null,"NOMS / PRENOMS",null,null,null,"2011-09-04","2011-09-11","2011-09-18","2011-10-09","2011-10-16","2011-10-23","2011-10-30","2011-11-06","2011-11-13","2011-11-20","2011-11-27","2011-12-04"]
[null,null,null,null,null,null,null,"RANVIN Lori",null,null,{"$f":"SUM(L15:AR15)","v":8},1,null,null,1,5,null,1]
[null,null,null,null,null,null,null,"JOSSE Grégory",null,null,7,null,1,null,null,4,null,null,null,1,1]
[null,null,null,null,null,null,null,"LAROUETTE Yann",null,null,6,null,2,null,null,2,null,null,null,null,1,1]
[null,null,null,null,null,null,null,"BERTON Thibault",null,null,5,null,2,null,null,2,null,null,null,null,null,1]
[null,null,null,null,null,null,null,"DUPONT Kévin",null,null,5,null,null,null,null,null,null,1,2,1,1]
[null,null,null,null,null,null,null,"CARETTE Cédric",null,null,3,null,1,null,null,1,null,1]
[null,null,null,null,null,null,null,"MAURICE Fabian",null,null,3,null,null,null,null,1,null,1,null,null,null,1]
[null,null,null,null,null,null,null,"CHABA Cory",null,null,1,null,1]
[null,null,null,null,null,null,null,"MARTINS Rudy",null,null,1,null,1]
[null,null,null,null,null,null,null,"CAPELLE Stéphane",null,null,1,null,null,null,null,null,1]
[null,null,null,null,null,null,null,"PLESNAGE Jérôme",null,null,1,null,null,null,null,1]
[null,null,null,null,null,null,null,"JEROME Vincent",null,null,1,null,null,null,null,null,null,null,null,1]
[null,null,null,null,null,null,null,"PITARCH Boris",null,null,1,null,null,null,null,null,null,null,null,null,1]
[null,null,null,null,null,null,null,null,null,null,0]
[null,null,null,null,null,null,null,null,null,null,0]
[null,null,null,null,null,null,null,null,null,null,0]
[null,null,null,null,null,null,null,null,null,null,0]
[null,null,null,null,null,null,null,null,null,null,0]
[null,null,null,null,null,null,null,null,null,null,0]
[null,null,null,null,null,null,null,null,null,null,0]
[null,null,null,null,null,null,null,null,null,null,0]
[null,null,null,null,null,null,null,null,null,null,0]
[null,null,null,null,null,null,null,null,null,null,0]
[null,null,null,null,null,null,null,null,null,null,0]
[null,null,null,null,null,null,null,null,null,null,0]
[]
[null,null,null,null,null,null,null,null,null,null,{"$f":"SUM(K15:K40)","v":43},{"$f":"SUM(L15:L40)","v":1},{"$f":"SUM(M15:M40)","v":8},0,1,16,1,4,2,3,4,3,0,0,0,0,0,0,0,0,0,0,0,0,0,0,0,0,0,0,0,0,0,0]

{"sheet":"Forme Passeurs B","index":33,"n_rows":41,"n_cols":44,"rows_kept":41,"cut":false,"hidden":false,"merged":[[13,7,13,10],[6,1,6,4],[6,13,6,16],[6,25,6,28],[10,0,10,38],[12,11,12,22],[12,23,12,43],[0,0,0,38],[1,0,1,38],[2,0,2,38],[4,1,4,4],[4,12,4,14],[4,24,4,26]]}
["ASSOCIATION SPORTIVE DE CERISY GAILLY"]
["SAISON SENIORS 2011-2012"]
["SUIVI STATISTIQUE - SENIORS B"]
[]
[null,"Championnats :",null,null,null,"1ère division / 3ème division",null,null,null,null,null,null,"Stade : ",null,null,"rue du marais - 80800 Cerisy",null,null,null,null,null,null,null,null,"Site internet : ",null,null,"as-cerisy.footeo.com"]
[]
[null,"Entraîneur :",null,null,null,"DUPUTEL David",null,null,null,null,null,null,null,"Adjoint : ",null,null,null,"DUBOIS Sébastien",null,null,null,null,null,null,null,"Coach B :",null,null,null,"DEFOSSEZ Martial"]
[null,null,null,null,null,"duputel.david@gmail.com",null,null,null,null,null,null,null,null,null,null,null,"sebastien.dubois@aerolia.com",null,null,null,null,null,null,null,null,null,null,null,"martial.defossez@wanadoo.fr"]
[null,null,null,null,null,"Tél : 03.22.96.00.51 / 06.17.16.09.47",null,null,null,null,null,null,null,null,null,null,null,"Tél : 03.22.05.83.80 / 06.73.82.67.81",null,null,null,null,null,null,null,null,null,null,null,"Tél : 03.22.76.61.50"]
[]
[]
[]
[null,null,null,null,null,null,null,null,null,null,null,2011,null,null,null,null,null,null,null,null,null,null,null,2012]
[null,null,null,null,null,null,null,"NOMS / PRENOMS",null,null,null,"2011-09-04","2011-09-11","2011-09-18","2011-10-09","2011-10-16","2011-10-23","2011-10-30","2011-11-06","2011-11-13","2011-11-20","2011-11-27","2011-12-04"]
[null,null,null,null,null,null,null,"RANVIN Lori",null,null,{"$f":"SUM(L15:AR15)","v":7},null,2,null,null,null,5]
[null,null,null,null,null,null,null,"JOSSE Grégory",null,null,7,null,4,null,1,null,null,null,null,null,1,1]
[null,null,null,null,null,null,null,"DUPONT Kévin",null,null,4,null,null,null,null,null,null,null,1,null,1,2]
[null,null,null,null,null,null,null,"AMARIAS Yannick",null,null,2,null,null,null,null,null,null,2]
[null,null,null,null,null,null,null,"CARETTE Cédric",null,null,2,null,null,null,null,null,null,1,null,1]
[null,null,null,null,null,null,null,"PITARCH Boris",null,null,2,null,null,null,null,null,null,1,null,null,1]
[null,null,null,null,null,null,null,"BERTON Thibault",null,null,1,null,1]
[null,null,null,null,null,null,null,"LAROUETTE Yann",null,null,1,null,null,null,null,null,1]
[null,null,null,null,null,null,null,"FAQUI Alexandre",null,null,1,null,null,null,null,null,null,null,null,1]
[null,null,null,null,null,null,null,"DUQUENOY Loïc",null,null,1,null,null,null,null,null,null,null,null,null,1]
[null,null,null,null,null,null,null,null,null,null,0]
[null,null,null,null,null,null,null,null,null,null,0]
[null,null,null,null,null,null,null,null,null,null,0]
[null,null,null,null,null,null,null,null,null,null,0]
[null,null,null,null,null,null,null,null,null,null,0]
[null,null,null,null,null,null,null,null,null,null,0]
[null,null,null,null,null,null,null,null,null,null,0]
[null,null,null,null,null,null,null,null,null,null,0]
[null,null,null,null,null,null,null,null,null,null,0]
[null,null,null,null,null,null,null,null,null,null,0]
[null,null,null,null,null,null,null,null,null,null,0]
[null,null,null,null,null,null,null,null,null,null,0]
[null,null,null,null,null,null,null,null,null,null,0]
[null,null,null,null,null,null,null,null,null,null,0]
[null,null,null,null,null,null,null,null,null,null,0]
[]
[null,null,null,null,null,null,null,null,null,null,{"$f":"SUM(K15:K40)","v":28},{"$f":"SUM(L15:L40)","v":0},{"$f":"SUM(M15:M40)","v":7},0,1,0,6,4,1,2,4,3,0,0,0,0,0,0,0,0,0,0,0,0,0,0,0,0,0,0,0,0,0,0]

{"sheet":"Résultats 2006-2011 B","index":34,"n_rows":148,"n_cols":14,"rows_kept":148,"cut":false,"hidden":false,"merged":[[65,10,65,13],[0,0,0,8],[57,10,57,13],[47,10,47,13],[39,10,39,13],[40,10,40,13],[42,10,42,13],[25,10,25,13],[37,10,37,13],[38,10,38,13],[62,10,62,13],[63,10,63,13],[64,10,64,13],[55,10,55,13],[52,10,52,13],[0,10,1,13],[3,10,3,11],[57,14,60,14],[58,10,58,13],[59,10,59,13],[60,10,60,13],[52,14,55,14],[53,10,53,13],[32,10,32,13],[54,10,54,13],[22,10,22,13],[23,10,23,13],[24,10,24,13],[42,14,45,14],[43,10,43,13],[44,10,44,13],[45,10,45,13],[47,14,50,14],[48,10,48,13],[49,10,49,13],[50,10,50,13],[32,14,35,14],[33,10,33,13],[34,10,34,13],[35,10,35,13],[27,10,27,13],[28,10,28,13],[29,10,29,13],[30,10,30,13],[20,10,20,13],[18,10,18,11],[16,10,16,11],[17,10,17,11],[5,10,5,11],[7,10,7,11],[9,10,9,11],[11,10,11,11],[12,10,12,11],[13,10,13,11],[14,10,14,11],[15,10,15,11]]}
["Résultats 2006 - 2001 Equipe B",null,null,null,null,null,null,null,null,null,"DEPUIS LA SAISON 2006-2007"]
["Jour","Mois","Années","Equipe Domicile","Equipe Extérieur","Score","Score","Compétitions","Résultats"]
[3,9,2006,"Rosières 2","Cerisy B",1,0,"Championnat 3ème Division","Défaite"]
[10,9,2006,"Cerisy B","Ham 2",3,2,"Championnat 3ème Division","Victoire",null,"Victoires ",null,{"$f":"N4/N10","v":0.50694444444444442},73]
[17,9,2006,"Sourdon ","Cerisy B",3,0,"Challenge Fromentin","Défaite"]
[24,9,2006,"Cerisy B","Le Hamel 2",10,3,"Championnat 3ème Division","Victoire",null,"Nuls",null,{"$f":"N6/N10","v":0.1388888888888889},20]
[1,10,2006,"Moislains 2","Cerisy B",6,0,"Championnat 3ème Division","Défaite"]
[15,10,2006,"Cerisy B","Dompierre 2",3,2,"Championnat 3ème Division","Victoire",null,"Défaites",null,{"$f":"N8/N10","v":0.35416666666666669},51]
[22,10,2006,"Braye sur Somme 2","Cerisy B",1,1,"Challenge Jouglet","Victoire"]
[29,10,2006,"Marchelepot","Cerisy B",8,1,"Championnat 3ème Division","Défaite",null,"Nbre de Matches",null,{"$f":"M4+M6+M8","v":1},{"$f":"N4+N6+N8","v":144}]
[5,11,2006,"Cerisy B","Sailly Saillisel 2",1,2,"Championnat 3ème Division","Défaite"]
[12,11,2006,"Cerisy B","Monchy",1,4,"Championnat 3ème Division","Défaite",null,"Championnats",null,{"$f":"M13+M14","v":117},{"$f":"M12/N10","v":0.8125}]
[19,11,2006,"Allaines","Cerisy B",3,0,"Championnat 3ème Division","Défaite",null,"3ème Division",null,52]
[17,12,2006,"Cerisy B","Rosières 2",5,1,"Championnat 3ème Division","Victoire",null,"4ème Division",null,65]
[7,1,2007,"Cerisy B","Chaulnes 2",4,1,"Challenge Jouglet","Victoire",null,"Challenge Fromentin",null,14,{"$f":"M15/N10","v":9.7222222222222224E-2}]
[14,1,2007,"Cerisy B","Ercheu Nesle 3",1,2,"Championnat 3ème Division","Défaite",null,"Challenge Jouglet",null,10,{"$f":"M16/N10","v":6.9444444444444448E-2}]
[18,2,2007,"Ham 2","Cerisy B",3,0,"Championnat 3ème Division","Défaite",null,"Challenge Guéant",null,3,{"$f":"M17/N10","v":2.0833333333333332E-2}]
[11,3,2007,"Cerisy B","Moislains 2",2,5,"Championnat 3ème Division","Défaite"]
[18,3,2007,"Le Hamel 2","Cerisy B",1,0,"Championnat 3ème Division","Défaite"]
[25,3,2007,"Dompierre 2","Cerisy B",1,1,"Championnat 3ème Division","nul",null,null,null,{"$f":"M12+M15+M16+M17","v":144}]
[1,4,2007,"Cerisy B","Marchelepot",1,2,"Championnat 3ème Division","Défaite",null,"Séries"]
[7,4,2007,"Moreuil 2","Cerisy B",5,2,"Championnat 3ème Division","Défaite"]
[9,4,2007,"Hombleux","Cerisy B",3,0,"Challenge Jouglet","Défaite",null,"Victoires Consécutives"]
[15,4,2007,"Monchy","Cerisy B",2,0,"Championnat 3ème Division","Défaite",null,6]
[22,4,2007,"Cerisy B","Allaines",4,1,"Championnat 3ème Division","Victoire",null,"Période"]
[6,5,2007,"Ercheu Nesle 3","Cerisy B",0,1,"Championnat 3ème Division","Victoire",null,"06/06/2010 au 10/10/2010"]
[13,5,2007,"Cerisy B","Moreuil 2",1,5,"Championnat 3ème Division","Défaite"]
[20,5,2007,"Sailly Saillisel 2","Cerisy B",0,3,"Championnat 3ème Division","Victoire",null,"Nuls Consécutifs"]
[2,9,2007,"Ham 2","Cerisy B",3,4,"Championnat 3ème Division","Victoire",null,2]
[16,9,2007,"Cerisy B","Allaines",1,1,"Championnat 3ème Division","nul",null,"Période"]
[23,9,2007,"Albert Sport 3","Cerisy B",0,3,"Challenge Fromentin","Victoire",null,"02/05/2010 au 05/05/2010"]
[30,9,2007,"Montdidier 3","Cerisy B",1,4,"Championnat 3ème Division","Victoire"]
[7,10,2007,"Monchy","Cerisy B",3,3,"Championnat 3ème Division","nul",null,"Défaites Consécutives"]
[14,10,2007,"Cerisy B","Licourt",2,1,"Championnat 3ème Division","Victoire",null,4]
[21,10,2007,"Maurepas","Cerisy B",1,0,"Challenge Fromentin","Défaite",null,"Période"]
[28,10,2007,"Sailly Saillisel 2","Cerisy B",5,2,"Championnat 3ème Division","Défaite",null,"21/12/2008 au 22/02/2009"]
[4,11,2007,"Cerisy B","Albert Sport 3",0,0,"Championnat 3ème Division","nul"]
[11,11,2007,"Cerisy B","Moreuil 2",1,1,"Championnat 3ème Division","nul",null,"Matches Consécutifs sans Défaite"]
[18,11,2007,"Equancourt","Cerisy B",3,1,"Championnat 3ème Division","Défaite",null,9]
[25,11,2007,"Cerisy B","Marcelcaves",2,0,"Challenge Jouglet","Victoire",null,"Période"]
[6,1,2008,"Cerisy B","Englebelmer 2",1,8,"Championnat 3ème Division","Défaite",null,"20/05/2007 au 07/11/2007"]
[13,1,2008,"Montdidier JS","Cerisy B",1,3,"Challenge Jouglet","Victoire"]
[27,1,2008,"Cerisy B","Caix",2,1,"Challenge Jouglet","Victoire",null,"Matches Consécutifs sans Victoire"]
[10,2,2008,"Cerisy B","Ham 2",2,3,"Championnat 3ème Division","Défaite",null,9]
[17,2,2008,"Allaines","Cerisy B",6,1,"Championnat 3ème Division","Défaite",null,"Période"]
[24,2,2008,"Cerisy B","Montdidier 3",3,0,"Championnat 3ème Division","Victoire",null,"06/04/2008 au 08/06/2008"]
[2,3,2008,"Sainte Emilie 2","Cerisy B",0,3,"Championnat 3ème Division","Victoire"]
[9,3,2008,"Dompierre","Cerisy B",2,2,"Challenge Jouglet","Victoire",null,"Matches Consécutifs sans Nul"]
[6,4,2008,"Moreuil 2","Cerisy B",2,0,"Championnat 3ème Division","Défaite",null,39]
[13,4,2008,"Licourt","Cerisy B",2,0,"Championnat 3ème Division","Défaite",null,"Période"]
[20,4,2008,"Cerisy B","Equancourt",0,5,"Championnat 3ème Division","Défaite",null,"19/10/2008 au 21/02/2010"]
[27,4,2008,"Englebelmer 2","Cerisy B",1,0,"Championnat 3ème Division","Défaite"]
[1,5,2008,"Cerisy B","Sailly Saillisel 2",2,2,"Championnat 3ème Division","nul",null,"Matches Consécutifs sans Victoire en Champ."]
[4,5,2008,"Cerisy B","Sainte Emilie 2",1,6,"Championnat 3ème Division","Défaite",null,8]
[18,5,2008,"Cerisy B","Monchy",1,5,"Championnat 3ème Division","Défaite",null,"Période"]
[25,5,2008,"Albert Sport 3","Cerisy B",3,3,"Championnat 3ème Division","nul",null,"14/01/07 au 15/04/07 et 06/04/08 au 25/5/08"]
[8,6,2008,"Ham 2","Cerisy B",0,0,"Challenge Jouglet","Défaite"]
[7,9,2008,"Cerisy B","Ribemont 2",4,0,"Championnat 4ème Division","Victoire",null,"Matches Consécutifs sans Nul en Champ."]
[14,9,2008,"Hargicourt","Cerisy B",3,3,"Championnat 4ème Division","nul",null,28]
[28,9,2008,"Cerisy B","Méaulte 2",6,1,"Championnat 4ème Division","Victoire",null,"Période"]
[5,10,2008,"Harbonnières","Cerisy B",1,0,"Championnat 4ème Division","Défaite",null,"26/10/2008 au 21/02/2010"]
[12,10,2008,"Cardonnette","Cerisy B",1,1,"Championnat 4ème Division","nul"]
[19,10,2008,"Cerisy B","Caix",10,0,"Challenge Fromentin","Victoire",null,"Matches Consécutifs sans Défaite en Champ."]
[26,10,2008,"Cerisy B","Hangest en Santerre",1,0,"Championnat 4ème Division","Victoire",null,8]
[2,11,2008,"Cartigny","Cerisy B",0,5,"Challenge Fromentin","Victoire",null,"Période"]
[9,11,2008,"Ailly sur Noye 2","Cerisy B",0,3,"Championnat 4ème Division","Victoire",null,"20/05/2007 au 07/11/2007"]
[16,11,2008,"Cerisy B","Allonville 2",0,3,"Championnat 4ème Division","Défaite"]
[30,11,2008,"Plessiers 2","Cerisy B",0,11,"Championnat 4ème Division","Victoire"]
[21,12,2008,"Cerisy B","Allaines",2,2,"Challenge Fromentin","Défaite"]
[1,2,2009,"Domart sur la Luce","Cerisy B",0,0,"Challenge Jouglet","Défaite"]
[15,2,2009,"Cerisy B","Querrieu 2",0,1,"Championnat 4ème Division","Défaite"]
[22,2,2009,"Ribemont 2","Cerisy B",3,0,"Championnat 4ème Division","Défaite"]
[1,3,2009,"Cerisy B","Englebelmer 3",5,3,"Championnat 4ème Division","Victoire"]
[8,3,2009,"Cerisy B","Hargicourt",3,0,"Championnat 4ème Division","Victoire"]
[15,3,2009,"Méaulte 2","Cerisy B",2,5,"Championnat 4ème Division","Victoire"]
[22,3,2009,"Cerisy B","Cardonnette",0,3,"Championnat 4ème Division","Défaite"]
[5,4,2009,"Hangest en Santerre","Cerisy B",1,2,"Championnat 4ème Division","Victoire"]
[19,4,2009,"Cerisy B","Ailly sur Noye 2",2,3,"Championnat 4ème Division","Défaite"]
[26,4,2009,"Allonville 2","Cerisy B",0,4,"Championnat 4ème Division","Victoire"]
[8,5,2009,"Cerisy B","Péronne 3",4,3,"Challenge Guéant","Victoire"]
[10,5,2009,"Equancourt","Cerisy B",0,2,"Challenge Jouglet","Victoire"]
[10,5,2009,"Querrieu 2","Cerisy B",0,4,"Championnat 4ème Division","Victoire"]
[17,5,2009,"Cerisy B","Harbonnières",1,2,"Championnat 4ème Division","Défaite"]
[21,5,2009,"Montdidier JS","Cerisy B",0,4,"Challenge Guéant","Victoire"]
[31,5,2009,"Sourdon ","Cerisy B",1,2,"Challenge Guéant","Victoire"]
[7,6,2009,"Englebelmer 3","Cerisy B",2,0,"Championnat 4ème Division","Défaite"]
[6,9,2009,"Cerisy B","Ribemont 2",3,0,"Championnat 4ème Division","Victoire"]
[13,9,2009,"Cardonnette","Cerisy B",2,0,"Championnat 4ème Division","Défaite"]
[27,9,2009,"Cerisy B","Grouches Luchuel",5,1,"Championnat 4ème Division","Victoire"]
[4,10,2009,"Cerisy B","USO Albert 2",5,1,"Challenge Fromentin","Victoire"]
[11,10,2009,"Méaulte 2","Cerisy B",1,3,"Championnat 4ème Division","Victoire"]
[18,10,2009,"Cerisy B","Englebelmer 3",1,2,"Championnat 4ème Division","Défaite"]
[25,10,2009,"Cerisy B","Arvillers",7,0,"Championnat 4ème Division","Victoire"]
[1,11,2009,"Sainte Emilie 2","Cerisy B",2,2,"Challenge Fromentin","Victoire"]
[15,11,2009,"Cerisy B","Rivery",4,2,"Championnat 4ème Division","Victoire"]
[22,11,2009,"Cerisy B","Rethonvillers",1,1,"Challenge Fromentin","Victoire"]
[21,2,2010,"Amiens RIF 2","Cerisy B",4,1,"Championnat 4ème Division","Défaite"]
[7,3,2010,"USO Albert","Cerisy B",0,5,"Championnat 4ème Division","Victoire"]
[14,3,2010,"Cerisy B","Etinehem",0,3,"Championnat 4ème Division","Défaite"]
[21,3,2010,"Ribemont 2","Cerisy B",2,5,"Championnat 4ème Division","Victoire"]
[28,3,2010,"Cerisy B","Cardonnette",2,0,"Championnat 4ème Division","Victoire"]
[4,4,2010,"Querrieu 2","Cerisy B",1,1,"Championnat 4ème Division","nul"]
[11,4,2010,"Grouches Luchuel","Cerisy B",1,0,"Championnat 4ème Division","Défaite"]
[18,4,2010,"Cerisy B","Méaulte 2",3,1,"Championnat 4ème Division","Victoire"]
[25,4,2010,"Arvillers","Cerisy B",0,2,"Championnat 4ème Division","Victoire"]
[2,5,2010,"Cerisy B","Querrieu 2",2,2,"Championnat 4ème Division","nul"]
[5,5,2010,"Chaulnes 2","Cerisy B",0,0,"Challenge Fromentin","nul","(vainqueur  aux tirs au but 3-2)"]
[9,5,2010,"Rivery","Cerisy B",3,4,"Championnat 4ème Division","Victoire"]
[13,5,2010,"Etinehem","Cerisy B",2,1,"Championnat 4ème Division","Défaite"]
[16,5,2010,"Cerisy B","Amiens RIF 2",3,4,"Championnat 4ème Division","Défaite"]
[24,5,2010,"Albert Sport 3","Cerisy B",4,1,"Challenge Fromentin","Défaite"]
[6,6,2010,"Englebelmer 3","Cerisy B",1,4,"Championnat 4ème Division","Victoire"]
[13,6,2010,"Cerisy B","USO Albert",3,0,"Championnat 4ème Division","Victoire"]
[5,9,2010,"Cerisy B","Marcelcave",3,1,"Championnat 4ème Division","Victoire"]
[12,9,2010,"Sourdon ","Cerisy B",2,4,"Championnat 4ème Division","Victoire"]
[27,9,2010,"Cerisy B","Montdidier 3",5,0,"Championnat 4ème Division","Victoire"]
[10,10,2010,"Ailly sur Noye 2","Cerisy B",0,4,"Championnat 4ème Division","Victoire"]
[17,10,2010,"Dompierre","Cerisy B",2,2,"Challenge Fromentin","nul","(perdu  aux tirs au but)"]
[31,10,2010,"Hargicourt","Cerisy B",0,4,"Championnat 4ème Division","Victoire"]
[7,11,2010,"Caix","Cerisy B",0,4,"Championnat 4ème Division","Victoire"]
[11,11,2010,"Cerisy B","Querrieu 2",1,2,"Championnat 4ème Division","Défaite"]
[28,11,2010,"Montdidier JS","Cerisy B",1,5,"Championnat 4ème Division","Victoire"]
[30,1,2011,"Cerisy B","Rivery",7,1,"Championnat 4ème Division","Victoire"]
[6,2,2011,"Cerisy B","Sains saint Fuscien",3,0,"Championnat 4ème Division","Victoire"]
[13,2,2011,"Marcelcave","Cerisy B",1,3,"Championnat 4ème Division","Victoire"]
[20,2,2011,"Cerisy B","Ribemont 2",2,1,"Championnat 4ème Division","Victoire"]
[27,2,2011,"Cerisy B","Sourdon ",0,0,"Championnat 4ème Division","nul"]
[6,3,2011,"Montdidier 3","Cerisy B",0,1,"Championnat 4ème Division","Victoire"]
[20,3,2011,"Cerisy B","Ailly sur Noye 2",2,0,"Championnat 4ème Division","Victoire"]
[27,3,2011,"Querrieu 2","Cerisy B",2,1,"Championnat 4ème Division","Défaite"]
[10,4,2011,"Cerisy B","Caix",3,3,"Championnat 4ème Division","nul"]
[17,4,2011,"Rivery","Cerisy B",0,0,"Championnat 4ème Division","nul"]
[1,5,2011,"Cerisy B","Montdidier JS",2,1,"Championnat 4ème Division","Victoire"]
[8,5,2011,"Sains saint Fuscien","Cerisy B",0,0,"Championnat 4ème Division","nul"]
[15,5,2011,"Ribemont 2","Cerisy B",0,5,"Championnat 4ème Division","Victoire"]
[28,5,2011,"Cerisy B","Hargicourt",6,4,"Championnat 4ème Division","Victoire"]
[4,9,2011,"Licourt","Cerisy B",0,1,"Championnat 3ème Division","Victoire"]
[11,9,2011,"Cerisy B","Englebelmer B",8,0,"Championnat 3ème Division","Victoire"]
[18,9,2011,"Sainte Emilie 2","Cerisy B",0,0,"Championnat 3ème Division","nul"]
[9,10,2011,"Cerisy B","Hangest en Santerre",1,2,"Championnat 3ème Division","Défaite"]
[16,10,2011,"Marchelepot 2","Cerisy B",0,16,"Challenge Fromentin","Victoire"]
[23,10,2011,"Equancourt","Cerisy B",1,1,"Championnat 3ème Division","nul"]
[30,10,2011,"Cerisy B","Roisel 2",4,1,"Championnat 3ème Division","Victoire"]
[6,11,2011,"Domart sur la Luce","Cerisy B",0,2,"Championnat 3ème Division","Victoire"]
[13,11,2011,"Cerisy B","Méaulte 2",3,2,"Championnat 3ème Division","Victoire"]
[20,11,2011,"Cerisy B","Bray sur Somme 2",4,2,"Challenge Fromentin","Victoire"]
[27,11,2011,"Chaulnes 2","Cerisy B",3,3,"Championnat 3ème Division","nul"]
[4,12,2011,"Cerisy B","Estrées Mons",0,3,"Championnat 3ème Division","Défaite"]

{"sheet":"N°2 - TRP%(fiab)","index":35,"n_rows":68,"n_cols":27,"rows_kept":68,"cut":false,"hidden":true,"merged":[[10,2,10,7],[57,13,57,15],[37,13,37,15],[55,13,55,15],[56,13,56,15],[36,13,36,15],[34,8,34,9],[57,10,57,12],[37,10,37,12],[38,8,38,9],[39,8,39,9],[40,8,40,9],[40,10,40,12],[38,13,38,15],[36,10,36,12],[38,10,38,12],[39,10,39,12],[39,13,39,15],[40,13,40,15],[41,13,41,15],[55,10,55,12],[67,12,67,14],[67,10,68,11],[58,13,58,15],[64,2,64,4],[66,10,66,11],[64,10,64,14],[64,15,64,19],[60,13,60,15],[64,5,64,9],[67,15,68,19],[66,12,66,14],[66,15,66,19],[59,10,59,12],[63,15,63,19],[59,13,59,15],[60,10,60,12],[63,5,63,9],[63,10,63,14],[61,13,61,15],[56,10,56,12],[41,10,41,12],[41,8,41,9],[58,10,58,12],[61,10,61,12]]}
["DIVISION VEHICULES INDUSTRIELS"]
["DEPLOIEMENT DE POLITIQUE - PAQ 2010"]
[" SUIVI  DE  LA  CONTRIBUTION  DE  FONCTION    N° 2"]
[]
[null,null,"5 AXES",null,null,null,null,null," TOP 10 N + 1 "]
[null,null,"IP","SPV","IF","IC","QT",null,1,2,3,4,5,6,7,8,9,10]
[null,null,null,"x",null,null,null,null,null,"x"]
[null,null,null,null,null,""]
[]
["   Objectif:",null,"Améliorer l’utilisation des moyens de production "]
[]
["   Indicateur:",null,"TRP%",null,null,null,null,null,null,null,null,"OBJ.  : ",null,0.6]
[]
["   Budget:",null,null,null,null,null,null,null,null,null,null,null,null,null,null,null,null,null,null,null,null,null,null,"Obj.","TRP%",null,"Ligne "]
[null,null,null,null,null,null,null,null,null,null,null,null,null,null,null,null,null,null,null,null,null,null,"2010-01-31",{"$f":"#REF!","v":{"$error":"#REF!"}},{"$f":"#REF!","v":{"$error":"#REF!"}}]
[null,null,null,null,null,null,null,null,null,null,null,null,null,null,null,null,null,null,null,null,null,null,"2010-02-01",{"$f":"#REF!","v":{"$error":"#REF!"}},{"$f":"#REF!","v":{"$error":"#REF!"}}]
[null,null,null,null,null,null,null,null,null,null,null,null,null,null,null,null,null,null,null,null,null,null,"2010-03-01",{"$f":"#REF!","v":{"$error":"#REF!"}},{"$f":"#REF!","v":{"$error":"#REF!"}}]
[null,null,null,null,null,null,null,null,null,null,null,null,null,null,null,null,null,null,null,null,null,null,"2010-04-01",{"$f":"#REF!","v":{"$error":"#REF!"}},{"$f":"#REF!","v":{"$error":"#REF!"}}]
[null,null,null,null,null,null,null,null,null,null,null,null,null,null,null,null,null,null,null,null,null,null,"2010-05-01",{"$f":"#REF!","v":{"$error":"#REF!"}},{"$f":"#REF!","v":{"$error":"#REF!"}}]
[null,null,null,null,null,null,null,null,null,null,null,null,null,null,null,null,null,null,null,null,null,null,"2010-06-01",{"$f":"#REF!","v":{"$error":"#REF!"}},{"$f":"#REF!","v":{"$error":"#REF!"}}]
[null,null,null,null,null,null,null,null,null,null,null,null,null,null,null,null,null,null,null,null,null,null,"2010-07-01",{"$f":"#REF!","v":{"$error":"#REF!"}},{"$f":"#REF!","v":{"$error":"#REF!"}}]
[null,null,null,null,null,null,null,null,null,null,null,null,null,null,null,null,null,null,null,null,null,null,"2010-08-01",{"$f":"#REF!","v":{"$error":"#REF!"}},{"$f":"#REF!","v":{"$error":"#REF!"}}]
[null,null,null,null,null,null,null,null,null,null,null,null,null,null,null,null,null,null,null,null,null,null,"2010-09-01",{"$f":"#REF!","v":{"$error":"#REF!"}},{"$f":"#REF!","v":{"$error":"#REF!"}}]
[null,null,null,null,null,null,null,null,null,null,null,null,null,null,null,null,null,null,null,null,null,null,"2010-10-01",{"$f":"#REF!","v":{"$error":"#REF!"}},{"$f":"#REF!","v":{"$error":"#REF!"}}]
[null,null,null,null,null,null,null,null,null,null,null,null,null,null,null,null,null,null,null,null,null,null,"2010-11-01",{"$f":"#REF!","v":{"$error":"#REF!"}},{"$f":"#REF!","v":{"$error":"#REF!"}}]
[null,null,null,null,null,null,null,null,null,null,null,null,null,null,null,null,null,null,null,null,null,null,"dec-10",{"$f":"#REF!","v":{"$error":"#REF!"}},{"$f":"#REF!","v":{"$error":"#REF!"}}]
[]
[]
[]
[]
[]
[]
[]
[]
["Actions de progrès",null,null,null,null,null,null,null,"Gain",null,"Responsable",null,null,"Délai",null,null,"PDCA"]
[null,null,null," "]
[]
["* ","Actions de fiabilisation + risques industriels"]
["*","Améliration de l'aspiration du laser Balliu GD2",null,null,null,null,null,null,"FIAB",null,"F Giai-Pron",null,null,"2010-06-01",null,null,"EC"]
["*","Rétrofit mécanique/cartérisation sertisseuse GD2",null,null,null,null,null,null,"FIAB",null,"F Giai-Pron",null,null,"2010-07-01",null,null,"x","x","x","x"]
["*","Evolution soft Twinpro W2K => WXP",null,null,null,null,null,null,"RISK",null,"F Giai-Pron",null,null,"2010-09-01",null,null,"x","x","x","x"]
["*","Rétrofit 1 HF GD (générateur + Camera + Axes/CN) ",null,null,null,null,null,null,"RISK",null,"F Giai-Pron",null,null,"?"]
["*"]
["*"]
["*"]
["*"]
[]
[]
[]
[]
[]
[]
[]
[]
[]
[]
[]
[]
[]
[]
[]
[]
[]
[null,null," Origine:",null,null,"Creé",null,null,null,null,"PILOTE: ",null,null,null,null," Date creation"]
[null,null,null,null,null,"COURTEHOUX",null,null,null,null,"COURTEHOUX",null,null,null,null,"2010-04-01"]
[]
[null,null," Destinataires:",null,null,null,null,null,null,null,"n° Fiche",null,"Avancement %",null,null,"Data mise a jour:"]
[null,null,null,"PAQ 10",null,null,null,null,null,null,null,null,null,null,null,"2010-06-04"]